{"text_format":"1","workbook":"xlsx","n_sheets":16,"sheets":["はじめに","第一面","第二面","第二面  (別紙)","第三面","別記第一号（防火扉）","別記第二号（防火シャッター）","別記第三号（耐火クロススクリーン）","別記第四号（ドレンチャー）","別添1様式　防火図面","別添2様式　防火写真 ","概要書第一面","概要書第二面","概要書第二面  (別紙) ","市区町村","建築士登録・都道府県"],"not_rendered":{"charts":0,"images":1,"macros":1,"external_links":4,"defined_names":35,"comments":7,"pivot_tables":0},"unopened":[],"bounds":{"document_bytes":16777216,"sheet_cells":100000,"rows_first":2000,"rows_last":500,"rows_between":2000,"halvings":0,"cell_chars":16384,"cell_head_chars":4096},"cells_cut":0,"cells_raw":0,"read":"whole","date_system":"1900"}

{"sheet":"はじめに","index":0,"n_rows":84,"n_cols":15,"rows_kept":84,"cut":false,"hidden":false,"merged":[]}
[]
[null,"ご利用の際の注意事項等について"]
[]
[null,"1.このファイルに関して"]
[null,"（1）マクロの使用"]
[null,null,"このExcelファイルは、マクロが使用されています。"]
[]
[]
[null,null,"セキュリティの警告「マクロが無効にされました。」が表示されている場合、マクロは使用できません。"]
[null,null,"コンテンツの有効化をクリックし、マクロを有効にしてください。"]
[null,null,"お使いのExcelのバージョンによっては、上記の記載と異なる場合があります。"]
[]
[null,"（2）「シートの保護」について"]
[null,null,"このExcelファイルは、ワークシートに[シートの保護]の設定をしています。"]
[null,null,"シートの保護の解除を行い、行の挿入等を行った場合マクロが正常に作動しなくなる場合があります。"]
[null,null,"シートの保護の解除を行う場合には、[校閲]タブより[シートの保護の解除]を行ってください。"]
[]
[null,"2.書類作成の注意事項"]
[null,"（1）検査に当たっては、「平成28年国土交通省告示第723号」及び（一財）日本建築防災協会発行「防火設備定期検査業務基準」の内容を十分に"]
[null,"　　確認の上、作成してください。"]
[null,"（2）書類作成に当たっては、入力画面だけではなく、印刷して確認を行ってください。"]
[]
[]
[]
[]
[]
[null,"3.　提出時の用紙に関して"]
[null,null,"報告書のご提出は、必ず検査日より２ヶ月以内にご提出ください。２ヶ月を超えた場合は受付出来ません。"]
[]
[]
[]
[]
[]
[]
[]
[]
[]
[]
[]
[]
[]
[]
[]
[]
[]
[]
[]
[]
[]
[]
[]
[]
[null,null,"報告書（両面印刷不可）は正副２部、概要書は１部作成して下さい。綴じ方は左上１点をホチキスで留めて下さい。"]
[null,null,"正本は押印があるものとし、副本は印影のあるコピーでも問題ありません。"]
[null,null,"概要書は検査の判定が「指摘なし」の場合は、第一面のみの提出となります。"]
[]
[null,null,"※１　第二面(別紙)は、３人以上で検査された場合にのみ添付して下さい。"]
[null,null,"※２　第三面は、不具合があった場合のみ添付して下さい。不具合がなかった場合は添付は不要です。"]
[null,null,"※３　検査結果表は、対象となる防火設備の用紙のみを添付して下さい。"]
[null,null,"※４　検査結果図は、防火設備の設置がない階も含め、すべての階の平面図を添付をして下さい。"]
[null,null,"※５　関係写真は、「要是正」の指摘があった場合は必ず添付して下さい。既存不適格や特記事項の場合は写真添付は任意です。"]
[null,null,"※６　検査の判定が「指摘なし」の場合は、概要書の第二面、（別紙）は不要です。"]
[null,null,"※７　概要書(別紙)は、※１を添付された場合に添付して下さい。"]
[null,null,"※８　送付明細書は指定の様式を添付して下さい。"]
[]
[]
[]
[null,"4.　事務手数料等に関して"]
[null,null,"報告書をご提出頂く際、事務手数料を頂戴しております。"]
[null,null,"報告書等を郵送等でご提出いただき、受付完了後に請求書をお送り致します。"]
[null,null,"金額は、次のとおりです。"]
[]
[null,null,null,null,null,null,"防火設備定期報告事務手数料"]
[]
[null,null,"　防火設備定期検査報告書（延べ面積、一棟につき）"]
[null,null,"　　延べ面積",null,null,null,null,null,null,null,null,"金額",null,null,"（ 消費税抜き ）"]
[null,null,"　3,000ｍ²以内のもの",null,null,null,null,null,null,null,null,"3,300円",null,null,"（　3,000円　）"]
[null,null,"　3,000ｍ²を超え、10,000ｍ²以内のもの",null,null,null,null,null,null,null,null,"5,500円",null,null,"（　5,000円　）"]
[null,null,"　10,000ｍ²を超えるのもの",null,null,null,null,null,null,null,null,"8,800円",null,null,"（　8,000円　）"]
[]
[null,"・","　報告書は通常、郵送等にてご提出してください。"]
[null,"・","　送付明細書をダウンロードし、必要事項を記載の上、報告書に同封して郵送等をしてください。"]
[null,"・","　報告書の控えが必要な方は、提出書類の他に控えの報告書（及び返信用封筒（第一面だけの場合は不要））を同封してください。"]
[null,null,"控えの報告書に受付印を押印したものをご返却します。"]

{"sheet":"第一面","index":1,"n_rows":53,"n_cols":45,"rows_kept":53,"cut":false,"hidden":false,"merged":[[27,0,27,12],[27,13,27,46],[35,0,35,12],[35,13,35,46],[48,8,49,9],[48,2,49,3],[48,4,49,4],[48,5,49,6],[54,0,54,46],[46,40,46,43],[28,13,28,30],[28,32,28,45],[47,35,47,45],[46,31,46,32],[29,13,29,30],[29,32,29,45],[46,34,46,35],[46,37,46,38],[32,13,32,45],[33,0,33,46],[43,3,43,10],[47,0,47,10],[47,11,47,34],[44,0,44,46],[55,0,55,46],[56,0,56,46],[48,7,49,7],[48,0,49,1],[48,35,53,45],[50,0,51,1],[50,2,51,9],[50,10,51,10],[48,10,49,10],[48,11,53,34],[52,0,53,2],[52,3,53,10],[46,0,46,24],[46,44,46,46],[45,0,45,46],[40,0,40,46],[42,0,42,46],[34,0,34,46],[43,0,43,1],[43,13,43,21],[43,23,43,46],[36,0,36,12],[37,0,37,12],[38,0,38,12],[39,0,39,12],[38,13,38,45],[39,13,39,45],[36,13,36,16],[36,17,36,23],[36,24,36,45],[0,0,0,46],[1,0,1,46],[2,0,2,46],[3,0,3,46],[4,0,4,46],[5,0,5,46],[23,13,23,45],[24,13,24,45],[37,13,37,45],[28,0,28,12],[29,0,29,12],[30,0,30,12],[31,0,31,12],[32,0,32,12],[30,13,30,45],[31,13,31,45],[6,6,6,46],[7,6,7,46],[6,0,6,5],[7,0,7,5],[8,0,8,46],[20,13,20,30],[9,16,9,46],[9,1,9,15],[14,28,14,42],[15,28,15,42],[16,28,16,42],[10,1,10,15],[10,40,10,42],[12,28,12,45],[11,0,11,46],[12,0,12,27],[13,0,13,46],[14,43,14,46],[10,16,10,28],[16,43,16,46],[15,43,15,46],[15,0,15,27],[14,22,14,27],[16,22,16,27],[14,0,14,21],[16,0,16,21],[10,43,10,46],[10,32,10,34],[10,36,10,38],[23,0,23,12],[24,0,24,12],[25,0,25,46],[26,0,26,46],[17,0,17,46],[18,0,18,46],[20,0,20,12],[21,0,21,12],[22,0,22,12],[22,13,22,45],[21,13,21,30],[21,32,21,45],[20,32,20,45],[19,0,19,12],[19,13,19,46]]}
["第三十六号の八様式（第六条関係）　（Ａ４）"]
[]
["定期検査報告書"]
["（防火設備）"]
["（第一面）"]
[]
[null,null,null,null,null,null,"　建築基準法第12条第３項の規定により、定期検査の結果を報告します。"]
[null,null,null,null,null,null,"この報告書に記載の事項は事実に相違ありません。"]
[]
[null,{"$f":"VLOOKUP(R37,市区町村!A1:E73,2,0)","v":"　"},null,null,null,null,null,null,null,null,null,null,null,null,null,null,"様"]
[null,{"$f":"VLOOKUP(R37,市区町村!A1:E73,3,0)","v":"　"},null,null,null,null,null,null,null,null,null,null,null,null,null,null,null,null,null,null,null,null,null,null,null,null,null,null,null,null,null,null,null,null,null,"年",null,null,null,"月",null,null,null,"日"]
[]
[null,null,null,null,null,null,null,null,null,null,null,null,null,null,null,null,null,null,null,null,null,null,null,null,null,null,null,null,{"$f":"(IF(N30=\"\",N22,N30))","v":0}]
[]
[null,null,null,null,null,null,null,null,null,null,null,null,null,null,null,null,null,null,null,null,null,null,"報告者氏名",null,null,null,null,null,{"$f":"(IF(AG30=\"\",AG22,AG30))","v":0},null,null,null,null,null,null,null,null,null,null,null,null,null,null,"印"]
[]
[null,null,null,null,null,null,null,null,null,null,null,null,null,null,null,null,null,null,null,null,null,null,"検査者氏名",null,null,null,null,null,null,null,null,null,null,null,null,null,null,null,null,null,null,null,null,"印"]
[]
[]
["【１. 所有者】"]
["　　　【イ. 氏名のフリガナ】",null,null,null,null,null,null,null,null,null,null,null,null,{"$f":"ASC(PHONETIC(N22:AE22))","v":""},null,null,null,null,null,null,null,null,null,null,null,null,null,null,null,null,null,null,{"$f":"ASC(PHONETIC(AG22))","v":""}]
["　　　【ロ. 氏名】"]
["　　　【ハ. 郵便番号】"]
["　　　【ニ. 住所】"]
["　　　【ホ. 電話番号】"]
[]
[]
[" 【２. 管理者】"]
["　　　【イ. 氏名のフリガナ】",null,null,null,null,null,null,null,null,null,null,null,null,{"$f":"ASC(PHONETIC(N30))","v":""},null,null,null,null,null,null,null,null,null,null,null,null,null,null,null,null,null,null,{"$f":"ASC(PHONETIC(AG30))","v":""}]
["　　　【ロ. 氏名】"]
["　　　【ハ. 郵便番号】"]
["　　　【ニ. 住所】"]
["　　　【ホ. 電話番号】"]
[]
[]
[" 【３. 報告対象建築物】"]
["　　　【イ. 所在地】",null,null,null,null,null,null,null,null,null,null,null,null,"埼玉県",null,null,null,"リスト選択"]
["　　　【ロ. 名称のフリガナ】",null,null,null,null,null,null,null,null,null,null,null,null,{"$f":"ASC(PHONETIC(N39:AT39))","v":""}]
["　　　【ハ. 名称】"]
["　　　【ニ. 用途】"]
[]
[]
[" 【４. 検査による指摘の概要】"]
[null,null,null,"要是正の指摘あり",null,null,null,null,null,null,null,"（",null,"既存不適格）",null,null,null,null,null,null,null,null,null,"指摘なし"]
[]
[]
[null,null,null,null,null,null,null,null,null,null,null,null,null,null,null,null,null,null,null,null,null,null,null,null,null,"（","台帳番号：",null,null,null,null,null,null,"-",{"$f":"VLOOKUP(R37,市区町村!A1:E73,4,0)","v":" "},null,"-",{"$f":"VLOOKUP(R37,市区町村!A1:E73,5,0)","v":" "},null,"-",null,null,null,null,"）"]
[" ※受付欄",null,null,null,null,null,null,null,null,null,null," ※特記欄",null,null,null,null,null,null,null,null,null,null,null,null,null,null,null,null,null,null,null,null,null,null,null," ※整理番号欄"]
[null,null,null,null,"年",null,null,"月",null,null,"日"]
[]
[" 第",null,null,null,null,null,null,null,null,null,"号"]
[]
[" 係員印"]

{"sheet":"第二面","index":2,"n_rows":98,"n_cols":64,"rows_kept":98,"cut":false,"hidden":false,"merged":[[60,0,60,48],[61,24,61,48],[57,38,57,48],[59,38,59,48],[61,0,61,5],[42,18,42,48],[43,47,43,48],[44,24,44,48],[45,18,45,48],[46,27,46,48],[59,18,59,21],[59,7,59,16],[59,25,59,30],[59,32,59,35],[55,19,55,48],[57,0,57,5],[59,0,59,5],[56,0,56,48],[58,0,58,48],[53,0,53,48],[49,19,49,48],[50,19,50,48],[52,0,52,5],[51,0,51,48],[13,47,13,48],[14,47,14,48],[15,47,15,48],[33,47,33,48],[38,47,38,48],[39,47,39,48],[41,18,41,48],[38,21,38,22],[28,24,28,26],[29,21,29,36],[29,19,29,20],[28,47,28,48],[29,47,29,48],[36,27,36,48],[37,18,37,48],[40,18,40,48],[39,21,39,36],[33,23,33,28],[33,30,33,33],[33,35,33,38],[33,40,33,46],[20,0,20,48],[19,37,19,48],[23,0,23,17],[28,0,28,17],[28,21,28,22],[28,34,28,36],[28,28,28,32],[28,38,28,46],[29,0,29,17],[29,38,29,46],[55,0,55,17],[57,7,57,16],[57,18,57,21],[57,25,57,30],[57,32,57,35],[54,7,54,9],[54,11,54,29],[54,0,54,5],[54,31,54,48],[44,0,44,17],[45,0,45,17],[46,0,46,17],[47,0,47,48],[48,0,48,48],[49,0,49,17],[44,18,44,23],[46,18,46,26],[62,0,62,48],[63,0,63,48],[64,0,64,17],[65,0,65,17],[65,20,65,27],[65,30,65,38],[64,19,64,48],[65,40,65,48],[67,40,67,48],[67,22,67,23],[66,19,66,48],[74,0,74,48],[75,44,75,48],[75,24,75,27],[3,0,3,48],[5,19,5,48],[6,25,6,27],[6,34,6,48],[7,29,7,48],[8,29,8,48],[7,19,7,20],[8,19,8,20],[11,19,11,48],[7,21,7,26],[8,21,8,26],[9,0,9,48],[10,0,10,48],[8,0,8,17],[66,0,66,17],[67,0,67,17],[67,24,67,26],[67,28,67,30],[67,32,67,36],[61,7,61,16],[61,18,61,21],[76,0,76,48],[77,0,77,48],[70,19,70,48],[75,29,75,30],[78,6,81,48],[52,25,52,48],[50,0,50,17],[52,7,52,16],[52,18,52,21],[68,0,68,48],[69,0,69,48],[70,0,70,17],[71,0,71,17],[73,0,73,17],[75,0,75,17],[75,20,75,22],[75,31,75,32],[75,34,75,35],[75,37,75,41],[71,20,71,23],[73,20,73,23],[71,25,71,48],[73,26,73,48],[72,0,72,48],[43,40,43,46],[39,0,39,17],[39,38,39,46],[40,0,40,17],[41,0,41,17],[42,0,42,17],[43,0,43,17],[43,20,43,21],[43,23,43,28],[43,30,43,33],[43,35,43,38],[30,0,30,17],[31,0,31,17],[32,0,32,17],[34,0,34,17],[30,18,30,48],[31,18,31,48],[32,18,32,48],[38,34,38,36],[38,38,38,46],[33,0,33,17],[33,20,33,21],[35,0,35,17],[36,0,36,17],[34,18,34,23],[36,18,36,26],[38,28,38,32],[37,0,37,17],[38,0,38,17],[34,24,34,48],[35,18,35,48],[24,0,24,48],[25,0,25,48],[26,0,26,17],[27,0,27,17],[21,20,21,21],[22,0,22,48],[23,20,23,24],[23,26,23,48],[21,42,21,48],[21,37,21,40],[26,19,26,48],[27,19,27,48],[21,0,21,17],[21,23,21,24],[21,25,21,27],[21,29,21,31],[21,33,21,35],[18,0,18,17],[19,0,19,17],[19,23,19,24],[19,25,19,27],[19,29,19,31],[19,33,19,35],[18,19,18,48],[19,19,19,22],[16,0,16,48],[17,0,17,48],[15,0,15,17],[15,20,15,25],[15,27,15,34],[0,0,0,48],[1,0,1,48],[2,0,2,48],[4,0,4,48],[5,0,5,17],[6,0,6,17],[6,19,6,20],[6,21,6,23],[6,28,6,29],[6,30,6,32],[13,20,13,25],[13,27,13,34],[14,0,14,17],[14,19,14,23],[14,24,14,26],[14,28,14,30],[14,32,14,34],[14,38,14,46],[13,36,13,46],[15,36,15,46],[12,47,12,48],[12,38,12,46],[13,0,13,17],[11,0,11,17],[12,0,12,17],[12,19,12,23],[12,24,12,26],[12,28,12,30],[12,32,12,34],[7,0,7,17]]}
["（第二面）"]
[]
["防火設備の状況等"]
[]
[]
["　【１.　建築物の概要】",null,null,null,null,null,null,null,null,null,null,null,null,null,null,null,null,null,null,null,null,null,null,null,null,null,null,null,null,null,null,null,null,null,null,null,null,null,null,null,null,null,null,null,null,null,null,null,null,null,null,null,null,null,null,null,null,null,null,null,null,null,null,"令和"]
["　　　【イ.　階数】",null,null,null,null,null,null,null,null,null,null,null,null,null,null,null,null,null,null,"地上",null,null,null,null,"階",null,null,null,"地下",null,null,null,null,"階",null,null,null,null,null,null,null,null,null,null,null,null,null,null,null,null,null,null,null,null,null,null,null,null,null,null,null,null,null,"平成"]
["　　　【ロ.　建築面積】",null,null,null,null,null,null,null,null,null,null,null,null,null,null,null,null,null,null,null,null,null,null,null,null,null,null,null,"㎡",null,null,null,null,null,null,null,null,null,null,null,null,null,null,null,null,null,null,null,null,null,null,null,null,null,null,null,null,null,null,null,null,null,null,"昭和"]
["　　　【ハ.　延べ面積】",null,null,null,null,null,null,null,null,null,null,null,null,null,null,null,null,null,null,null,null,null,null,null,null,null,null,null,"㎡",null,null,null,null,null,null,null,null,null,null,null,null,null,null,null,null,null,null,null,null,null,null,null,null,null,null,null,null,null,null,null,null,null,null,"不明"]
[]
[]
["　【２.　確認済証交付年月日等】"]
["　　　【イ.　確認済証交付年月日】",null,null,null,null,null,null,null,null,null,null,null,null,null,null,null,null,null,null,null,null,null,null,null,null,null,null,"年",null,null,null,"月",null,null,null,"日",null,"第",null,null,null,null,null,null,null,null,null,"号",null,null,null,null,null,null,null,null,null,null,null,null,null,null,null,"(財)さいたま住宅検査ｾﾝﾀｰ"]
["　　　【ロ.　確認済証交付者】",null,null,null,null,null,null,null,null,null,null,null,null,null,null,null,null,null,null,null,"建築主事",null,null,null,null,null,null,"指定確認検査機関",null,null,null,null,null,null,null,"（",null,null,null,null,null,null,null,null,null,null,null,"）",null,null,null,null,null,null,null,null,null,null,null,null,null,null,null,"(一財)さいたま住宅検査ｾﾝﾀｰ"]
["　　　【ハ.　検査済証交付年月日】",null,null,null,null,null,null,null,null,null,null,null,null,null,null,null,null,null,null,null,null,null,null,null,null,null,null,"年",null,null,null,"月",null,null,null,"日",null,"第",null,null,null,null,null,null,null,null,null,"号",null,null,null,null,null,null,null,null,null,null,null,null,null,null,null,"(財)日本建築ｾﾝﾀｰ"]
["　　　【ニ.　検査済証交付者】",null,null,null,null,null,null,null,null,null,null,null,null,null,null,null,null,null,null,null,"建築主事",null,null,null,null,null,null,"指定確認検査機関",null,null,null,null,null,null,null,"（",null,null,null,null,null,null,null,null,null,null,null,"）",null,null,null,null,null,null,null,null,null,null,null,null,null,null,null,"(一財)日本建築ｾﾝﾀｰ"]
[null,null,null,null,null,null,null,null,null,null,null,null,null,null,null,null,null,null,null,null,null,null,null,null,null,null,null,null,null,null,null,null,null,null,null,null,null,null,null,null,null,null,null,null,null,null,null,null,null,null,null,null,null,null,null,null,null,null,null,null,null,null,null,"(財)日本建築設備･昇降機ｾﾝﾀｰ"]
[]
["　【３.　検査日等】",null,null,null,null,null,null,null,null,null,null,null,null,null,null,null,null,null,null,null,null,null,null,null,null,null,null,null,null,null,null,null,null,null,null,null,null,null,null,null,null,null,null,null,null,null,null,null,null,null,null,null,null,null,null,null,null,null,null,null,null,null,null,"(一財)日本建築設備･昇降機ｾﾝﾀｰ"]
["　　　【イ.　今回の検査】",null,null,null,null,null,null,null,null,null,null,null,null,null,null,null,null,null,null,null,null,null,null,null,null,null,null,null,"年",null,null,null,"月",null,null,null,"日","実施",null,null,null,null,null,null,null,null,null,null,null,null,null,null,null,null,null,null,null,null,null,null,null,null,null,"日本E.R.I(株)"]
[null,null,null,null,null,null,null,null,null,null,null,null,null,null,null,null,null,null,null,null,null,null,null,null,null,null,null,null,null,null,null,null,null,null,null,null,null,null,null,null,null,null,null,null,null,null,null,null,null,null,null,null,null,null,null,null,null,null,null,null,null,null,null,"(財)住宅金融普及協会"]
["　　　【ロ.　前回の検査】",null,null,null,null,null,null,null,null,null,null,null,null,null,null,null,null,null,null,null,"実施",null,"（",null,null,null,null,null,"年",null,null,null,"月",null,null,null,"日","報告 ）",null,null,null,null,"未実施",null,null,null,null,null,null,null,null,null,null,null,null,null,null,null,null,null,null,null,null,"(一財)住宅金融普及協会"]
[null,null,null,null,null,null,null,null,null,null,null,null,null,null,null,null,null,null,null,null,null,null,null,null,null,null,null,null,null,null,null,null,null,null,null,null,null,null,null,null,null,null,null,null,null,null,null,null,null,null,null,null,null,null,null,null,null,null,null,null,null,null,null,"(株)東日本住宅評価センター"]
["　　　【ハ.　前回の検査に関する書類の写し】",null,null,null,null,null,null,null,null,null,null,null,null,null,null,null,null,null,null,null,"有",null,null,null,null,null,"無",null,null,null,null,null,null,null,null,null,null,null,null,null,null,null,null,null,null,null,null,null,null,null,null,null,null,null,null,null,null,null,null,null,null,null,null,"(株)東京建築検査機構"]
[null,null,null,null,null,null,null,null,null,null,null,null,null,null,null,null,null,null,null,null,null,null,null,null,null,null,null,null,null,null,null,null,null,null,null,null,null,null,null,null,null,null,null,null,null,null,null,null,null,null,null,null,null,null,null,null,null,null,null,null,null,null,null,"ﾊｳｽﾌﾟﾗｽ確認検査(株)"]
[null,null,null,null,null,null,null,null,null,null,null,null,null,null,null,null,null,null,null,null,null,null,null,null,null,null,null,null,null,null,null,null,null,null,null,null,null,null,null,null,null,null,null,null,null,null,null,null,null,null,null,null,null,null,null,null,null,null,null,null,null,null,null,"(株)住宅性能評価ｾﾝﾀｰ"]
["　【４.　防火設備の検査者】",null,null,null,null,null,null,null,null,null,null,null,null,null,null,null,null,null,null,null,null,null,null,null,null,null,null,null,null,null,null,null,null,null,null,null,null,null,null,null,null,null,null,null,null,null,null,null,null,null,null,null,null,null,null,null,null,null,null,null,null,null,null,"ﾋﾞｭｰﾛｰﾍﾞﾘﾀｽｼﾞｬﾊﾟﾝ(株)"]
["　（代表となる検査者）",null,null,null,null,null,null,null,null,null,null,null,null,null,null,null,null,null,null,null,null,null,null,null,null,null,null,null,null,null,null,null,null,null,null,null,null,null,null,null,null,null,null,null,null,null,null,null,null,null,null,null,null,null,null,null,null,null,null,null,null,null,null,"(株)都市居住評価ｾﾝﾀｰ"]
["　　　【イ.　資格】",null,null,null,null,null,null,null,null,null,null,null,null,null,null,null,null,null,null,null,"（",null,null,"）","建築士",null,null,"（",null,null,null,null,null,"）","登録",null,null,"第",null,null,null,null,null,null,null,null,null,"号",null,null,null,null,null,null,null,null,null,null,null,null,null,null,null,"(財)ﾍﾞﾀｰﾘﾋﾞﾝｸﾞ"]
[null,null,null,null,null,null,null,null,null,null,null,null,null,null,null,null,null,null,null,null,null,"防火設備検査員",null,null,null,null,null,null,null,null,null,null,null,null,null,null,null,"第",null,null,null,null,null,null,null,null,null,"号",null,null,null,null,null,null,null,null,null,null,null,null,null,null,null,"(一財)ﾍﾞﾀｰﾘﾋﾞﾝｸﾞ"]
["　　　【ロ.　氏名のフリガナ】",null,null,null,null,null,null,null,null,null,null,null,null,null,null,null,null,null,{"$f":"ASC(PHONETIC(S32))","v":""},null,null,null,null,null,null,null,null,null,null,null,null,null,null,null,null,null,null,null,null,null,null,null,null,null,null,null,null,null,null,null,null,null,null,null,null,null,null,null,null,null,null,null,null,"(株)ﾋﾞﾙﾃﾞｨﾝｸﾞﾅﾋﾞｹﾞｰｼｮﾝ確認評価機構"]
["　　　【ハ.　氏名】",null,null,null,null,null,null,null,null,null,null,null,null,null,null,null,null,null,null,null,null,null,null,null,null,null,null,null,null,null,null,null,null,null,null,null,null,null,null,null,null,null,null,null,null,null,null,null,null,null,null,null,null,null,null,null,null,null,null,null,null,null,null,"富士建築ｾﾝﾀｰ(株)"]
["　　　【ニ.　勤務先】",null,null,null,null,null,null,null,null,null,null,null,null,null,null,null,null,null,null,null,null,null,null,null,null,null,null,null,null,null,null,null,null,null,null,null,null,null,null,null,null,null,null,null,null,null,null,null,null,null,null,null,null,null,null,null,null,null,null,null,null,null,null,"ﾕｰﾃﾞｨｰｱｲ確認検査(株)"]
[null,null,null,null,null,null,null,null,null,null,null,null,null,null,null,null,null,null,null,"（",null,null,"）","建築士事務所",null,null,null,null,null,"（",null,null,null,null,"）","知事登録",null,null,null,"第",null,null,null,null,null,null,null,"号",null,null,null,null,null,null,null,null,null,null,null,null,null,null,null,"ﾕｰﾃﾞｨｰｱｲ確認検査(株)"]
["　　　【ホ.　郵便番号】",null,null,null,null,null,null,null,null,null,null,null,null,null,null,null,null,null,null,null,null,null,null,null,null,null,null,null,null,null,null,null,null,null,null,null,null,null,null,null,null,null,null,null,null,null,null,null,null,null,null,null,null,null,null,null,null,null,null,null,null,null,null,"ｲｰﾊｳｽ建築ｾﾝﾀｰ(株)"]
["　　　【ヘ.　所在地】",null,null,null,null,null,null,null,null,null,null,null,null,null,null,null,null,null,null,null,null,null,null,null,null,null,null,null,null,null,null,null,null,null,null,null,null,null,null,null,null,null,null,null,null,null,null,null,null,null,null,null,null,null,null,null,null,null,null,null,null,null,null,"(社)日本住宅性能評価機構"]
["　　　【ト.　電話番号】",null,null,null,null,null,null,null,null,null,null,null,null,null,null,null,null,null,null,null,null,null,null,null,null,null,null,null,null,null,null,null,null,null,null,null,null,null,null,null,null,null,null,null,null,null,null,null,null,null,null,null,null,null,null,null,null,null,null,null,null,null,null,"(一社)日本住宅性能評価機構"]
["　（その他の検査者）",null,null,null,null,null,null,null,null,null,null,null,null,null,null,null,null,null,null,null,null,null,null,null,null,null,null,null,null,null,null,null,null,null,null,null,null,null,null,null,null,null,null,null,null,null,null,null,null,null,null,null,null,null,null,null,null,null,null,null,null,null,null,"(株)ｶﾞｲｱ"]
["　　　【イ.　資格】",null,null,null,null,null,null,null,null,null,null,null,null,null,null,null,null,null,null,null,"（",null,null,"）","建築士",null,null,"（",null,null,null,null,null,"）","登録",null,null,"第",null,null,null,null,null,null,null,null,null,"号",null,null,null,null,null,null,null,null,null,null,null,null,null,null,null,"(株)ｸﾞｯﾄﾞ･ｱｲｽﾞ建築検査機構"]
[null,null,null,null,null,null,null,null,null,null,null,null,null,null,null,null,null,null,null,null,null,"防火設備検査員",null,null,null,null,null,null,null,null,null,null,null,null,null,null,null,"第",null,null,null,null,null,null,null,null,null,"号",null,null,null,null,null,null,null,null,null,null,null,null,null,null,null,"(株)ｼﾞｪｲ･ｲｰ･ｻﾎﾟｰﾄ"]
["　　　【ロ.　氏名のフリガナ】",null,null,null,null,null,null,null,null,null,null,null,null,null,null,null,null,null,{"$f":"ASC(PHONETIC(S42))","v":""},null,null,null,null,null,null,null,null,null,null,null,null,null,null,null,null,null,null,null,null,null,null,null,null,null,null,null,null,null,null,null,null,null,null,null,null,null,null,null,null,null,null,null,null,"日本建築検査協会(株)"]
["　　　【ハ.　氏名】",null,null,null,null,null,null,null,null,null,null,null,null,null,null,null,null,null,null,null,null,null,null,null,null,null,null,null,null,null,null,null,null,null,null,null,null,null,null,null,null,null,null,null,null,null,null,null,null,null,null,null,null,null,null,null,null,null,null,null,null,null,null,"(株)国際確認検査ｾﾝﾀｰ"]
["　　　【ニ.　勤務先】",null,null,null,null,null,null,null,null,null,null,null,null,null,null,null,null,null,null,null,null,null,null,null,null,null,null,null,null,null,null,null,null,null,null,null,null,null,null,null,null,null,null,null,null,null,null,null,null,null,null,null,null,null,null,null,null,null,null,null,null,null,null,"日本確認ｾﾝﾀｰ(株)"]
[null,null,null,null,null,null,null,null,null,null,null,null,null,null,null,null,null,null,null,"（",null,null,"）","建築士事務所",null,null,null,null,null,"（",null,null,null,null,"）","知事登録",null,null,null,"第",null,null,null,null,null,null,null,"号",null,null,null,null,null,null,null,null,null,null,null,null,null,null,null,"(株)J建築検査ｾﾝﾀｰ"]
["　　　【ホ.　郵便番号】",null,null,null,null,null,null,null,null,null,null,null,null,null,null,null,null,null,null,null,null,null,null,null,null,null,null,null,null,null,null,null,null,null,null,null,null,null,null,null,null,null,null,null,null,null,null,null,null,null,null,null,null,null,null,null,null,null,null,null,null,null,null,"多摩確認検査(株)"]
["　　　【ヘ.　所在地】",null,null,null,null,null,null,null,null,null,null,null,null,null,null,null,null,null,null,null,null,null,null,null,null,null,null,null,null,null,null,null,null,null,null,null,null,null,null,null,null,null,null,null,null,null,null,null,null,null,null,null,null,null,null,null,null,null,null,null,null,null,null,"ｱｳｪｲ建築評価ﾈｯﾄ(株)"]
["　　　【ト.　電話番号】",null,null,null,null,null,null,null,null,null,null,null,null,null,null,null,null,null,null,null,null,null,null,null,null,null,null,null,null,null,null,null,null,null,null,null,null,null,null,null,null,null,null,null,null,null,null,null,null,null,null,null,null,null,null,null,null,null,null,null,null,null,null,"(株)EMI確認検査機構"]
[null,null,null,null,null,null,null,null,null,null,null,null,null,null,null,null,null,null,null,null,null,null,null,null,null,null,null,null,null,null,null,null,null,null,null,null,null,null,null,null,null,null,null,null,null,null,null,null,null,null,null,null,null,null,null,null,null,null,null,null,null,null,null,"(株)確認ｻｰﾋﾞｽ"]
[null,null,null,null,null,null,null,null,null,null,null,null,null,null,null,null,null,null,null,null,null,null,null,null,null,null,null,null,null,null,null,null,null,null,null,null,null,null,null,null,null,null,null,null,null,null,null,null,null,null,null,null,null,null,null,null,null,null,null,null,null,null,null,"SBIｱｰｷｸｵﾘﾃｨ(株)"]
["　【５.　防火設備の概要】",null,null,null,null,null,null,null,null,null,null,null,null,null,null,null,null,null,null,null,null,null,null,null,null,null,null,null,null,null,null,null,null,null,null,null,null,null,null,null,null,null,null,null,null,null,null,null,null,null,null,null,null,null,null,null,null,null,null,null,null,null,null,"SGSｼﾞｬﾊﾟﾝ(株)"]
["　　　【イ.　避難安全検証法等の適用】",null,null,null,null,null,null,null,null,null,null,null,null,null,null,null,null,null,null,null,null,null,null,null,null,null,null,null,null,null,null,null,null,null,null,null,null,null,null,null,null,null,null,null,null,null,null,null,null,null,null,null,null,null,null,null,null,null,null,null,null,null,null,"日本建物評価機構(株)"]
[null,null,null,null,null,null,null,null,null,null,null,null,null,null,null,null,null,null,null,null,null,null,null,null,null,null,null,null,null,null,null,null,null,null,null,null,null,null,null,null,null,null,null,null,null,null,null,null,null,null,null,null,null,null,null,null,null,null,null,null,null,null,null,"(株)神奈川建築確認検査機関"]
[null,null,null,null,null,null,null,"階避難安全検証法",null,null,null,null,null,null,null,null,null,"（",null,null,null,null,"階","）",null,"全館避難安全検証法",null,null,null,null,null,null,null,null,null,null,null,null,null,null,null,null,null,null,null,null,null,null,null,null,null,null,null,null,null,null,null,null,null,null,null,null,null,"(株)北関東建築検査機構"]
[null,null,null,null,null,null,null,null,null,null,null,null,null,null,null,null,null,null,null,null,null,null,null,null,null,null,null,null,null,null,null,null,null,null,null,null,null,null,null,null,null,null,null,null,null,null,null,null,null,null,null,null,null,null,null,null,null,null,null,null,null,null,null,"(株)高良GUT"]
[null,null,null,null,null,null,null,"その他",null,null,"（",null,null,null,null,null,null,null,null,null,null,null,null,null,null,null,null,null,null,null,"）",null,null,null,null,null,null,null,null,null,null,null,null,null,null,null,null,null,null,null,null,null,null,null,null,null,null,null,null,null,null,null,null,"(株)都市建築確認ｾﾝﾀｰ"]
["　　　【ロ.　防火設備】",null,null,null,null,null,null,null,null,null,null,null,null,null,null,null,null,null,null,null,null,null,null,null,null,null,null,null,null,null,null,null,null,null,null,null,null,null,null,null,null,null,null,null,null,null,null,null,null,null,null,null,null,null,null,null,null,null,null,null,null,null,null,"(株)埼玉建築確認検査機構"]
[null,null,null,null,null,null,null,null,null,null,null,null,null,null,null,null,null,null,null,null,null,null,null,null,null,null,null,null,null,null,null,null,null,null,null,null,null,null,null,null,null,null,null,null,null,null,null,null,null,null,null,null,null,null,null,null,null,null,null,null,null,null,null,"(財)住宅保証機構"]
[null,null,null,null,null,null,null,"防火扉",null,null,null,null,null,null,null,null,null,"（",null,null,null,null,"枚","）",null,"防火シャッター",null,null,null,null,null,"（",null,null,null,null,"枚","）",null,null,null,null,null,null,null,null,null,null,null,null,null,null,null,null,null,null,null,null,null,null,null,null,null,"(一財)住宅保証機構"]
[null,null,null,null,null,null,null,null,null,null,null,null,null,null,null,null,null,null,null,null,null,null,null,null,null,null,null,null,null,null,null,null,null,null,null,null,null,null,null,null,null,null,null,null,null,null,null,null,null,null,null,null,null,null,null,null,null,null,null,null,null,null,null,"(株)日本住宅保証検査機構"]
[null,null,null,null,null,null,null,"耐火クロススクリーン",null,null,null,null,null,null,null,null,null,"（",null,null,null,null,"枚","）",null,"ドレンチャー",null,null,null,null,null,"（",null,null,null,null,"台","）",null,null,null,null,null,null,null,null,null,null,null,null,null,null,null,null,null,null,null,null,null,null,null,null,null,"ｲｰﾎｰﾑｽﾞ(株)"]
[null,null,null,null,null,null,null,null,null,null,null,null,null,null,null,null,null,null,null,null,null,null,null,null,null,null,null,null,null,null,null,null,null,null,null,null,null,null,null,null,null,null,null,null,null,null,null,null,null,null,null,null,null,null,null,null,null,null,null,null,null,null,null,"(株)確認検査機構ﾄﾗｽﾄ"]
[null,null,null,null,null,null,null,"その他",null,null,null,null,null,null,null,null,null,"（",null,null,null,null,"台","）",null,null,null,null,null,null,null,null,null,null,null,null,null,null,null,null,null,null,null,null,null,null,null,null,null,null,null,null,null,null,null,null,null,null,null,null,null,null,null,"(株)TSK建築確認安全ｾﾝﾀｰ"]
[null,null,null,null,null,null,null,null,null,null,null,null,null,null,null,null,null,null,null,null,null,null,null,null,null,null,null,null,null,null,null,null,null,null,null,null,null,null,null,null,null,null,null,null,null,null,null,null,null,null,null,null,null,null,null,null,null,null,null,null,null,null,null,"ｼｰ･ｱｲ･ｼﾞｬﾊﾟﾝ(株)"]
[null,null,null,null,null,null,null,null,null,null,null,null,null,null,null,null,null,null,null,null,null,null,null,null,null,null,null,null,null,null,null,null,null,null,null,null,null,null,null,null,null,null,null,null,null,null,null,null,null,null,null,null,null,null,null,null,null,null,null,null,null,null,null,"AI確認検査ｾﾝﾀｰ(株)"]
["　【６.　防火設備の検査の状況】",null,null,null,null,null,null,null,null,null,null,null,null,null,null,null,null,null,null,null,null,null,null,null,null,null,null,null,null,null,null,null,null,null,null,null,null,null,null,null,null,null,null,null,null,null,null,null,null,null,null,null,null,null,null,null,null,null,null,null,null,null,null,"日本ﾀﾘｱｾﾝ(株)"]
["　　　【イ.　指摘の内容】",null,null,null,null,null,null,null,null,null,null,null,null,null,null,null,null,null,null,null,"要是正の指摘あり",null,null,null,null,null,null,null,"（",null,"既存不適格）",null,null,null,null,null,null,null,null,null,"指摘なし",null,null,null,null,null,null,null,null,null,null,null,null,null,null,null,null,null,null,null,null,null,null,"ﾊｳｽﾌﾟﾗｽ住宅保証(株)"]
["　　　【ロ.　指摘の概要】"]
["　　　【ハ.　改善予定の有無】",null,null,null,null,null,null,null,null,null,null,null,null,null,null,null,null,null,null,null,"有","（",null,null,null,null,null,"年",null,null,null,"月","に改善予定",null,null,null,null,"）",null,null,"無"]
[]
[]
["　【７.　防火設備の不具合の発生状況】",null,null,null,null,null,null,null,null,null,null,null,null,null,null,null,null,null,null,null,null,null,null,null,null,null,null,null,null,null,null,null,null,null,null,null,null,null,null,null,null,null,null,null,null,null,null,null,null,null,null,null,null,null,null,null,null,null,null,null,null,null,null,"防火扉（竪穴区画）"]
["　　　【イ.　不具合】",null,null,null,null,null,null,null,null,null,null,null,null,null,null,null,null,null,null,null,"有",null,null,null,null,"無",null,null,null,null,null,null,null,null,null,null,null,null,null,null,null,null,null,null,null,null,null,null,null,null,null,null,null,null,null,null,null,null,null,null,null,null,null,"防火扉（面積区画）"]
[null,null,null,null,null,null,null,null,null,null,null,null,null,null,null,null,null,null,null,null,null,null,null,null,null,null,null,null,null,null,null,null,null,null,null,null,null,null,null,null,null,null,null,null,null,null,null,null,null,null,null,null,null,null,null,null,null,null,null,null,null,null,null,"防火扉（竪穴区画、面積区画）"]
["　　　【ロ.　不具合記録】",null,null,null,null,null,null,null,null,null,null,null,null,null,null,null,null,null,null,null,"有",null,null,null,null,"無",null,null,null,null,null,null,null,null,null,null,null,null,null,null,null,null,null,null,null,null,null,null,null,null,null,null,null,null,null,null,null,null,null,null,null,null,null,"防火シャッター（竪穴区画）"]
[null,null,null,null,null,null,null,null,null,null,null,null,null,null,null,null,null,null,null,null,null,null,null,null,null,null,null,null,null,null,null,null,null,null,null,null,null,null,null,null,null,null,null,null,null,null,null,null,null,null,null,null,null,null,null,null,null,null,null,null,null,null,null,"防火シャッター（面積区画）"]
["　　　【ハ.　改善の状況】",null,null,null,null,null,null,null,null,null,null,null,null,null,null,null,null,null,null,null,"実施済",null,null,null,"改善予定",null,null,null,"（",null,null,null,null,"年",null,null,"月","に改善予定",null,null,null,null,"）",null,"予定なし",null,null,null,null,null,null,null,null,null,null,null,null,null,null,null,null,null,null,"防火シャッター（竪穴区画、面積区画）"]
[null,null,null,null,null,null,null,null,null,null,null,null,null,null,null,null,null,null,null,null,null,null,null,null,null,null,null,null,null,null,null,null,null,null,null,null,null,null,null,null,null,null,null,null,null,null,null,null,null,null,null,null,null,null,null,null,null,null,null,null,null,null,null,"防火シャッター（その他の区画）"]
[null,null,null,null,null,null,null,null,null,null,null,null,null,null,null,null,null,null,null,null,null,null,null,null,null,null,null,null,null,null,null,null,null,null,null,null,null,null,null,null,null,null,null,null,null,null,null,null,null,null,null,null,null,null,null,null,null,null,null,null,null,null,null,"耐火クロススクリーン（竪穴区画）"]
["　【８.　備考】",null,null,null,null,null,null,null,null,null,null,null,null,null,null,null,null,null,null,null,null,null,null,null,null,null,null,null,null,null,null,null,null,null,null,null,null,null,null,null,null,null,null,null,null,null,null,null,null,null,null,null,null,null,null,null,null,null,null,null,null,null,null,"防火扉（竪穴区画）防火シャッター（竪穴区画）"]
[null,null,null,null,null,null,null,null,null,null,null,null,null,null,null,null,null,null,null,null,null,null,null,null,null,null,null,null,null,null,null,null,null,null,null,null,null,null,null,null,null,null,null,null,null,null,null,null,null,null,null,null,null,null,null,null,null,null,null,null,null,null,null,"防火扉（竪穴区画）防火シャッター（面積区画）"]
[null,null,null,null,null,null,null,null,null,null,null,null,null,null,null,null,null,null,null,null,null,null,null,null,null,null,null,null,null,null,null,null,null,null,null,null,null,null,null,null,null,null,null,null,null,null,null,null,null,null,null,null,null,null,null,null,null,null,null,null,null,null,null,"防火扉（面積区画）防火シャッター（竪穴区画）"]
[null,null,null,null,null,null,null,null,null,null,null,null,null,null,null,null,null,null,null,null,null,null,null,null,null,null,null,null,null,null,null,null,null,null,null,null,null,null,null,null,null,null,null,null,null,null,null,null,null,null,null,null,null,null,null,null,null,null,null,null,null,null,null,"防火扉（面積区画）防火シャッター（面積区画）"]
[null,null,null,null,null,null,null,null,null,null,null,null,null,null,null,null,null,null,null,null,null,null,null,null,null,null,null,null,null,null,null,null,null,null,null,null,null,null,null,null,null,null,null,null,null,null,null,null,null,null,null,null,null,null,null,null,null,null,null,null,null,null,null,"防火扉（竪穴区画、面積区画）防火シャッター（竪穴区画）"]
[null,null,null,null,null,null,null,null,null,null,null,null,null,null,null,null,null,null,null,null,null,null,null,null,null,null,null,null,null,null,null,null,null,null,null,null,null,null,null,null,null,null,null,null,null,null,null,null,null,null,null,null,null,null,null,null,null,null,null,null,null,null,null,"防火扉（竪穴区画）防火シャッター（竪穴区画、面積区画）"]
[null,null,null,null,null,null,null,null,null,null,null,null,null,null,null,null,null,null,null,null,null,null,null,null,null,null,null,null,null,null,null,null,null,null,null,null,null,null,null,null,null,null,null,null,null,null,null,null,null,null,null,null,null,null,null,null,null,null,null,null,null,null,null,"防火扉（竪穴区画、面積区画）防火シャッター（竪穴区画、面積区画）"]
[null,null,null,null,null,null,null,null,null,null,null,null,null,null,null,null,null,null,null,null,null,null,null,null,null,null,null,null,null,null,null,null,null,null,null,null,null,null,null,null,null,null,null,null,null,null,null,null,null,null,null,null,null,null,null,null,null,null,null,null,null,null,null,"防火扉（竪穴区画）耐火クロススクリーン（竪穴区画）"]
[null,null,null,null,null,null,null,null,null,null,null,null,null,null,null,null,null,null,null,null,null,null,null,null,null,null,null,null,null,null,null,null,null,null,null,null,null,null,null,null,null,null,null,null,null,null,null,null,null,null,null,null,null,null,null,null,null,null,null,null,null,null,null,"防火扉（面積区画）耐火クロススクリーン（竪穴区画）"]
[null,null,null,null,null,null,null,null,null,null,null,null,null,null,null,null,null,null,null,null,null,null,null,null,null,null,null,null,null,null,null,null,null,null,null,null,null,null,null,null,null,null,null,null,null,null,null,null,null,null,null,null,null,null,null,null,null,null,null,null,null,null,null,"防火扉（竪穴区画、面積区画）耐火クロススクリーン（竪穴区画）"]
[null,null,null,null,null,null,null,null,null,null,null,null,null,null,null,null,null,null,null,null,null,null,null,null,null,null,null,null,null,null,null,null,null,null,null,null,null,null,null,null,null,null,null,null,null,null,null,null,null,null,null,null,null,null,null,null,null,null,null,null,null,null,null,"防火シャッター（竪穴区画）耐火クロススクリーン（竪穴区画）"]
[null,null,null,null,null,null,null,null,null,null,null,null,null,null,null,null,null,null,null,null,null,null,null,null,null,null,null,null,null,null,null,null,null,null,null,null,null,null,null,null,null,null,null,null,null,null,null,null,null,null,null,null,null,null,null,null,null,null,null,null,null,null,null,"防火シャッター（面積区画）耐火クロススクリーン（竪穴区画）"]
[null,null,null,null,null,null,null,null,null,null,null,null,null,null,null,null,null,null,null,null,null,null,null,null,null,null,null,null,null,null,null,null,null,null,null,null,null,null,null,null,null,null,null,null,null,null,null,null,null,null,null,null,null,null,null,null,null,null,null,null,null,null,null,"防火シャッター（竪穴区画、面積区画）耐火クロススクリーン（竪穴区画）"]
[null,null,null,null,null,null,null,null,null,null,null,null,null,null,null,null,null,null,null,null,null,null,null,null,null,null,null,null,null,null,null,null,null,null,null,null,null,null,null,null,null,null,null,null,null,null,null,null,null,null,null,null,null,null,null,null,null,null,null,null,null,null,null,"防火扉（竪穴区画）防火シャッター（竪穴区画）耐火クロススクリーン（竪穴区画）"]
[null,null,null,null,null,null,null,null,null,null,null,null,null,null,null,null,null,null,null,null,null,null,null,null,null,null,null,null,null,null,null,null,null,null,null,null,null,null,null,null,null,null,null,null,null,null,null,null,null,null,null,null,null,null,null,null,null,null,null,null,null,null,null,"防火扉（竪穴区画）防火シャッター（面積区画）耐火クロススクリーン（竪穴区画）"]
[null,null,null,null,null,null,null,null,null,null,null,null,null,null,null,null,null,null,null,null,null,null,null,null,null,null,null,null,null,null,null,null,null,null,null,null,null,null,null,null,null,null,null,null,null,null,null,null,null,null,null,null,null,null,null,null,null,null,null,null,null,null,null,"防火扉（面積区画）防火シャッター（竪穴区画）耐火クロススクリーン（竪穴区画）"]
[null,null,null,null,null,null,null,null,null,null,null,null,null,null,null,null,null,null,null,null,null,null,null,null,null,null,null,null,null,null,null,null,null,null,null,null,null,null,null,null,null,null,null,null,null,null,null,null,null,null,null,null,null,null,null,null,null,null,null,null,null,null,null,"防火扉（面積区画）防火シャッター（面積区画）耐火クロススクリーン（竪穴区画）"]
[null,null,null,null,null,null,null,null,null,null,null,null,null,null,null,null,null,null,null,null,null,null,null,null,null,null,null,null,null,null,null,null,null,null,null,null,null,null,null,null,null,null,null,null,null,null,null,null,null,null,null,null,null,null,null,null,null,null,null,null,null,null,null,"予備1"]
[null,null,null,null,null,null,null,null,null,null,null,null,null,null,null,null,null,null,null,null,null,null,null,null,null,null,null,null,null,null,null,null,null,null,null,null,null,null,null,null,null,null,null,null,null,null,null,null,null,null,null,null,null,null,null,null,null,null,null,null,null,null,null,"予備2"]
[null,null,null,null,null,null,null,null,null,null,null,null,null,null,null,null,null,null,null,null,null,null,null,null,null,null,null,null,null,null,null,null,null,null,null,null,null,null,null,null,null,null,null,null,null,null,null,null,null,null,null,null,null,null,null,null,null,null,null,null,null,null,null,"予備3"]

{"sheet":"第二面  (別紙)","index":3,"n_rows":56,"n_cols":49,"rows_kept":56,"cut":false,"hidden":false,"merged":[[28,16,28,46],[29,16,29,46],[31,22,31,46],[32,16,32,46],[33,25,33,46],[35,16,35,46],[36,16,36,17],[37,16,37,18],[37,19,37,34],[30,18,30,19],[30,21,30,26],[30,28,30,31],[30,33,30,36],[34,0,34,46],[33,16,33,24],[32,0,32,15],[33,0,33,15],[31,16,31,21],[28,0,28,15],[31,0,31,15],[29,0,29,15],[30,38,30,44],[35,0,35,15],[36,0,36,15],[27,16,27,46],[19,33,19,36],[23,0,23,46],[22,16,22,24],[21,0,21,15],[22,0,22,15],[24,0,24,15],[25,0,25,15],[25,32,25,34],[25,36,25,44],[25,19,25,20],[25,26,25,30],[26,0,26,15],[26,36,26,44],[27,0,27,15],[20,16,20,21],[20,0,20,15],[22,25,22,46],[24,16,24,46],[25,16,25,17],[26,16,26,18],[26,19,26,34],[19,38,19,44],[19,0,19,15],[19,18,19,19],[19,21,19,26],[19,28,19,31],[14,19,14,20],[14,26,14,30],[15,0,15,15],[15,36,15,44],[16,0,16,15],[17,0,17,15],[18,0,18,15],[20,22,20,46],[21,16,21,46],[56,0,56,46],[53,0,53,15],[54,0,54,15],[55,0,55,15],[51,0,51,15],[52,0,52,15],[52,18,52,19],[52,21,52,26],[55,16,55,24],[52,28,52,31],[52,33,52,36],[52,38,52,44],[53,16,53,21],[51,16,51,46],[53,22,53,46],[54,16,54,46],[55,25,55,46],[48,0,48,15],[48,36,48,44],[44,16,44,24],[43,0,43,15],[44,0,44,15],[49,0,49,15],[50,0,50,15],[45,0,45,46],[46,0,46,15],[47,0,47,15],[47,32,47,34],[47,36,47,44],[47,19,47,20],[47,26,47,30],[49,16,49,46],[50,16,50,46],[47,16,47,17],[48,16,48,18],[48,19,48,34],[46,16,46,46],[43,16,43,46],[44,25,44,46],[36,32,36,34],[36,36,36,44],[36,19,36,20],[36,26,36,30],[37,0,37,15],[37,36,37,44],[38,0,38,15],[38,16,38,46],[39,0,39,15],[42,0,42,15],[40,0,40,15],[41,38,41,44],[41,0,41,15],[41,18,41,19],[41,21,41,26],[41,28,41,31],[41,33,41,36],[39,16,39,46],[40,16,40,46],[42,22,42,46],[42,16,42,21],[30,0,30,15],[11,0,11,15],[7,0,7,15],[8,0,8,15],[8,18,8,19],[9,0,9,15],[10,0,10,15],[9,22,9,46],[10,16,10,46],[11,25,11,46],[13,16,13,46],[14,16,14,17],[15,16,15,18],[15,19,15,34],[16,16,16,46],[17,16,17,46],[9,16,9,21],[11,16,11,24],[18,16,18,46],[12,0,12,46],[13,0,13,15],[14,0,14,15],[14,32,14,34],[14,36,14,44],[0,0,0,46],[1,0,1,46],[2,0,2,15],[3,0,3,15],[3,32,3,34],[3,36,3,44],[3,19,3,20],[3,26,3,30],[8,38,8,44],[2,16,2,46],[3,16,3,17],[3,22,3,24],[4,16,4,18],[4,19,4,34],[5,16,5,46],[6,16,6,46],[7,16,7,46],[8,21,8,26],[8,28,8,31],[8,33,8,36],[4,0,4,15],[4,36,4,44],[5,0,5,15],[6,0,6,15]]}
["（第二面の別紙）"]
[]
["　（その他の検査者）"]
["　　　【イ.　資格】",null,null,null,null,null,null,null,null,null,null,null,null,null,null,null,null,null,"（",null,null,"）","建築士",null,null,"（",null,null,null,null,null,"）","登録",null,null,"第",null,null,null,null,null,null,null,null,null,"号",null,{"$f":"IF(T4=\"\",\"\",T4)","v":""},{"$f":"IF(AA4=\"\",\"\",AA4)","v":""}]
[null,null,null,null,null,null,null,null,null,null,null,null,null,null,null,null,null,null,null,"防火設備検査員",null,null,null,null,null,null,null,null,null,null,null,null,null,null,null,"第",null,null,null,null,null,null,null,null,null,"号"]
["　　　【ロ.　氏名のフリガナ】",null,null,null,null,null,null,null,null,null,null,null,null,null,null,null,{"$f":"ASC(PHONETIC(Q7))","v":""}]
["　　　【ハ.　氏名】"]
["　　　【ニ.　勤務先】"]
[null,null,null,null,null,null,null,null,null,null,null,null,null,null,null,null,null,"（",null,null,"）","建築士事務所",null,null,null,null,null,"（",null,null,null,null,"）","知事登録",null,null,null,"第",null,null,null,null,null,null,null,"号",null,{"$f":"IF(S9=\"\",\"\",S9)","v":""},{"$f":"IF(AC9=\"\",\"\",AC9)","v":""}]
["　　　【ホ.　郵便番号】"]
["　　　【ヘ.　所在地】"]
["　　　【ト.　電話番号】"]
[]
["　（その他の検査者）"]
["　　　【イ.　資格】",null,null,null,null,null,null,null,null,null,null,null,null,null,null,null,null,null,"（",null,null,"）","建築士",null,null,"（",null,null,null,null,null,"）","登録",null,null,"第",null,null,null,null,null,null,null,null,null,"号",null,{"$f":"IF(T15=\"\",\"\",T15)","v":""},{"$f":"IF(AA15=\"\",\"\",AA15)","v":""}]
[null,null,null,null,null,null,null,null,null,null,null,null,null,null,null,null,null,null,null,"防火設備検査員",null,null,null,null,null,null,null,null,null,null,null,null,null,null,null,"第",null,null,null,null,null,null,null,null,null,"号"]
["　　　【ロ.　氏名のフリガナ】",null,null,null,null,null,null,null,null,null,null,null,null,null,null,null,{"$f":"ASC(PHONETIC(Q18))","v":""}]
["　　　【ハ.　氏名】"]
["　　　【ニ.　勤務先】"]
[null,null,null,null,null,null,null,null,null,null,null,null,null,null,null,null,null,"（",null,null,"）","建築士事務所",null,null,null,null,null,"（",null,null,null,null,"）","知事登録",null,null,null,"第",null,null,null,null,null,null,null,"号",null,{"$f":"IF(S20=\"\",\"\",S20)","v":""},{"$f":"IF(AC20=\"\",\"\",AC20)","v":""}]
["　　　【ホ.　郵便番号】"]
["　　　【ヘ.　所在地】"]
["　　　【ト.　電話番号】"]
[]
["　（その他の検査者）"]
["　　　【イ.　資格】",null,null,null,null,null,null,null,null,null,null,null,null,null,null,null,null,null,"（",null,null,"）","建築士",null,null,"（",null,null,null,null,null,"）","登録",null,null,"第",null,null,null,null,null,null,null,null,null,"号",null,{"$f":"IF(T26=\"\",\"\",T26)","v":""},{"$f":"IF(AA26=\"\",\"\",AA26)","v":""}]
[null,null,null,null,null,null,null,null,null,null,null,null,null,null,null,null,null,null,null,"防火設備検査員",null,null,null,null,null,null,null,null,null,null,null,null,null,null,null,"第",null,null,null,null,null,null,null,null,null,"号"]
["　　　【ロ.　氏名のフリガナ】",null,null,null,null,null,null,null,null,null,null,null,null,null,null,null,{"$f":"ASC(PHONETIC(Q29))","v":""}]
["　　　【ハ.　氏名】"]
["　　　【ニ.　勤務先】"]
[null,null,null,null,null,null,null,null,null,null,null,null,null,null,null,null,null,"（",null,null,"）","建築士事務所",null,null,null,null,null,"（",null,null,null,null,"）","知事登録",null,null,null,"第",null,null,null,null,null,null,null,"号",null,{"$f":"IF(S31=\"\",\"\",S31)","v":""},{"$f":"IF(AC31=\"\",\"\",AC31)","v":""}]
["　　　【ホ.　郵便番号】"]
["　　　【ヘ.　所在地】"]
["　　　【ト.　電話番号】"]
[]
["　（その他の検査者）"]
["　　　【イ.　資格】",null,null,null,null,null,null,null,null,null,null,null,null,null,null,null,null,null,"（",null,null,"）","建築士",null,null,"（",null,null,null,null,null,"）","登録",null,null,"第",null,null,null,null,null,null,null,null,null,"号",null,{"$f":"IF(T37=\"\",\"\",T37)","v":""},{"$f":"IF(AA37=\"\",\"\",AA37)","v":""}]
[null,null,null,null,null,null,null,null,null,null,null,null,null,null,null,null,null,null,null,"防火設備検査員",null,null,null,null,null,null,null,null,null,null,null,null,null,null,null,"第",null,null,null,null,null,null,null,null,null,"号"]
["　　　【ロ.　氏名のフリガナ】",null,null,null,null,null,null,null,null,null,null,null,null,null,null,null,{"$f":"ASC(PHONETIC(Q40))","v":""}]
["　　　【ハ.　氏名】"]
["　　　【ニ.　勤務先】"]
[null,null,null,null,null,null,null,null,null,null,null,null,null,null,null,null,null,"（",null,null,"）","建築士事務所",null,null,null,null,null,"（",null,null,null,null,"）","知事登録",null,null,null,"第",null,null,null,null,null,null,null,"号",null,{"$f":"IF(S42=\"\",\"\",S42)","v":""},{"$f":"IF(AC42=\"\",\"\",AC42)","v":""}]
["　　　【ホ.　郵便番号】"]
["　　　【ヘ.　所在地】"]
["　　　【ト.　電話番号】"]
[]
["　（その他の検査者）"]
["　　　【イ.　資格】",null,null,null,null,null,null,null,null,null,null,null,null,null,null,null,null,null,"（",null,null,"）","建築士",null,null,"（",null,null,null,null,null,"）","登録",null,null,"第",null,null,null,null,null,null,null,null,null,"号",null,{"$f":"IF(T48=\"\",\"\",T48)","v":""},{"$f":"IF(AA48=\"\",\"\",AA48)","v":""}]
[null,null,null,null,null,null,null,null,null,null,null,null,null,null,null,null,null,null,null,"防火設備検査員",null,null,null,null,null,null,null,null,null,null,null,null,null,null,null,"第",null,null,null,null,null,null,null,null,null,"号"]
["　　　【ロ.　氏名のフリガナ】",null,null,null,null,null,null,null,null,null,null,null,null,null,null,null,{"$f":"ASC(PHONETIC(Q51))","v":""}]
["　　　【ハ.　氏名】"]
["　　　【ニ.　勤務先】"]
[null,null,null,null,null,null,null,null,null,null,null,null,null,null,null,null,null,"（",null,null,"）","建築士事務所",null,null,null,null,null,"（",null,null,null,null,"）","知事登録",null,null,null,"第",null,null,null,null,null,null,null,"号",null,{"$f":"IF(S53=\"\",\"\",S53)","v":""},{"$f":"IF(AC53=\"\",\"\",AC53)","v":""}]
["　　　【ホ.　郵便番号】"]
["　　　【ヘ.　所在地】"]
["　　　【ト.　電話番号】"]

{"sheet":"第三面","index":4,"n_rows":14,"n_cols":48,"rows_kept":14,"cut":false,"hidden":false,"merged":[[16,0,53,43],[0,0,0,43],[1,0,1,43],[2,0,2,43],[3,1,3,43],[4,0,4,43],[7,35,9,43],[5,35,6,43],[7,27,9,34],[5,1,6,8],[5,9,6,17],[5,18,6,26],[5,27,6,34],[7,9,9,17],[7,18,9,26],[7,1,9,2],[7,3,9,4],[7,5,9,5],[7,6,9,7],[7,8,9,8],[13,9,15,17],[10,9,12,17],[13,18,15,26],[13,27,15,34],[13,35,15,43],[10,27,12,34],[10,35,12,43],[10,18,12,26],[10,1,12,2],[10,3,12,4],[10,5,12,5],[10,6,12,7],[10,8,12,8],[13,1,15,2],[13,3,15,4],[13,5,15,5],[13,6,15,7],[13,8,15,8]]}
[]
["(第三面)"]
[]
[null,"防火設備に係る不具合の状況"]
[]
[null,"不具合を把\n握した年月",null,null,null,null,null,null,null,"不具合の概要",null,null,null,null,null,null,null,null,"考えられる原因",null,null,null,null,null,null,null,null,"改善\n(予定)年月",null,null,null,null,null,null,null,"改善措置の概要等"]
[]
[null,null,null,null,null,"年",null,null,"月"]
[]
[]
[null,null,null,null,null,"年",null,null,"月",null,null,null,null,null,null,null,null,null,null,null,null,null,null,null,null,null,null,null,null,null,null,null,null,null,null,null,null,null,null,null,null,null,null,null,null,null,null,"平成"]
[null,null,null,null,null,null,null,null,null,null,null,null,null,null,null,null,null,null,null,null,null,null,null,null,null,null,null,null,null,null,null,null,null,null,null,null,null,null,null,null,null,null,null,null,null,null,null,"令和"]
[]
[null,null,null,null,null,"年",null,null,"月"]

{"sheet":"別記第一号（防火扉）","index":5,"n_rows":96,"n_cols":81,"rows_kept":96,"cut":false,"hidden":false,"merged":[[7,15,8,37],[9,15,10,37],[5,38,6,46],[7,38,8,46],[9,38,10,46],[24,47,24,49],[25,47,25,49],[26,47,26,49],[26,38,26,39],[26,40,26,41],[26,42,26,43],[26,44,26,46],[23,38,23,39],[23,40,23,41],[23,42,23,43],[23,44,23,46],[24,38,24,39],[24,40,24,41],[24,42,24,43],[24,44,24,46],[19,40,19,41],[19,42,19,43],[19,44,19,46],[20,42,20,43],[27,47,27,49],[28,47,28,49],[29,47,29,49],[30,47,30,49],[31,47,31,49],[32,47,32,49],[12,47,15,49],[16,47,16,49],[17,47,17,49],[18,47,18,49],[19,47,19,49],[20,47,20,49],[21,47,21,49],[22,47,22,49],[23,47,23,49],[0,1,0,46],[45,15,45,28],[45,29,45,41],[46,1,46,2],[46,3,46,14],[46,15,46,28],[46,29,46,41],[46,42,46,46],[47,1,47,2],[47,3,47,14],[47,15,47,28],[33,1,33,46],[31,42,31,43],[31,44,31,46],[32,38,32,39],[32,40,32,41],[32,42,32,43],[32,44,32,46],[29,38,29,39],[29,40,29,41],[29,42,29,43],[29,44,29,46],[30,38,30,39],[30,40,30,41],[68,2,68,46],[69,2,69,46],[70,2,70,46],[73,2,73,46],[74,2,74,46],[71,2,71,46],[72,2,72,46],[49,1,49,2],[49,3,49,14],[49,15,49,28],[49,29,49,41],[49,42,49,46],[50,1,50,2],[50,3,50,14],[67,1,67,46],[52,1,52,2],[52,3,52,14],[52,15,52,28],[52,29,52,41],[52,42,52,46],[53,1,53,2],[53,3,53,14],[53,15,53,28],[53,29,53,41],[1,1,1,46],[2,1,2,46],[47,29,47,41],[47,42,47,46],[48,1,48,2],[48,3,48,14],[48,15,48,28],[48,29,48,41],[48,42,48,46],[45,1,45,2],[44,1,44,46],[45,3,45,14],[45,42,45,46],[34,3,34,37],[35,3,35,37],[36,3,36,37],[34,38,34,39],[34,40,34,41],[34,42,34,43],[34,44,34,46],[35,38,35,39],[35,40,35,41],[35,42,35,43],[35,44,35,46],[36,38,36,39],[36,40,36,41],[36,42,36,43],[36,44,36,46],[36,1,36,2],[35,1,35,2],[30,42,30,43],[30,44,30,46],[27,38,27,39],[27,40,27,41],[27,42,27,43],[27,44,27,46],[28,38,28,39],[28,40,28,41],[28,42,28,43],[28,44,28,46],[20,3,30,6],[21,15,21,37],[22,15,22,37],[23,15,23,37],[24,15,24,37],[20,7,21,14],[22,7,22,14],[20,40,20,41],[20,44,20,46],[25,38,25,39],[25,40,25,41],[25,42,25,43],[25,44,25,46],[17,38,17,39],[17,40,17,41],[17,42,17,43],[17,44,17,46],[18,38,18,39],[18,40,18,41],[18,42,18,43],[18,44,18,46],[21,38,21,39],[21,40,21,41],[21,42,21,43],[21,44,21,46],[22,38,22,39],[22,40,22,41],[22,42,22,43],[22,44,22,46],[19,38,19,39],[25,15,25,37],[23,7,26,14],[27,7,28,14],[29,7,30,14],[20,1,20,2],[21,1,21,2],[22,1,22,2],[23,1,23,2],[24,1,24,2],[25,1,25,2],[26,1,26,2],[27,1,27,2],[28,1,28,2],[29,1,29,2],[30,1,30,2],[26,15,26,37],[27,15,27,37],[28,15,28,37],[29,15,29,37],[30,15,30,37],[19,7,19,14],[20,38,20,39],[4,38,4,46],[4,7,4,14],[5,7,6,14],[11,1,11,46],[16,15,16,37],[17,15,17,37],[18,15,18,37],[19,15,19,37],[20,15,20,37],[12,44,15,46],[12,38,12,43],[13,38,15,39],[13,40,15,41],[13,42,13,43],[14,42,15,43],[16,42,16,43],[16,44,16,46],[16,1,16,2],[17,1,17,2],[18,1,18,2],[19,1,19,2],[16,3,19,6],[16,7,16,14],[17,7,18,14],[95,2,95,46],[83,2,83,46],[84,2,84,46],[85,2,85,46],[87,2,87,46],[88,2,88,46],[89,2,89,46],[90,2,90,46],[92,2,92,46],[93,2,93,46],[94,2,94,46],[75,2,75,46],[78,2,78,46],[80,2,80,46],[82,2,82,46],[86,2,86,46],[91,2,91,46],[76,2,76,46],[77,2,77,46],[79,2,79,46],[81,2,81,46],[37,40,37,41],[12,15,15,37],[4,15,4,37],[50,15,50,28],[50,29,50,41],[50,42,50,46],[3,1,3,46],[31,15,31,37],[32,15,32,37],[31,3,32,14],[31,1,31,2],[32,1,32,2],[31,38,31,39],[31,40,31,41],[34,1,34,2],[7,7,10,14],[4,1,10,6],[5,15,6,37],[12,1,15,2],[12,3,15,14],[16,38,16,39],[16,40,16,41],[37,1,37,2],[37,3,37,37],[37,38,37,39],[37,42,37,43],[37,44,37,46],[38,1,38,2],[38,3,38,37],[38,38,38,39],[38,40,38,41],[38,42,38,43],[38,44,38,46],[39,1,39,2],[39,3,39,37],[39,38,39,39],[39,40,39,41],[39,42,39,43],[39,44,39,46],[40,1,40,2],[40,3,40,37],[40,38,40,39],[40,40,40,41],[40,42,40,43],[40,44,40,46],[41,1,41,2],[41,3,41,37],[41,38,41,39],[41,40,41,41],[41,42,41,43],[41,44,41,46],[42,1,42,2],[42,3,42,37],[42,38,42,39],[42,40,42,41],[42,42,42,43],[42,44,42,46],[43,1,43,2],[43,3,43,37],[43,38,43,39],[43,40,43,41],[43,42,43,43],[43,44,43,46],[51,1,51,2],[51,3,51,14],[51,15,51,28],[51,29,51,41],[51,42,51,46],[53,42,53,46],[54,1,54,2],[54,3,54,14],[54,15,54,28],[54,29,54,41],[54,42,54,46],[55,1,55,2],[55,3,55,14],[55,15,55,28],[55,29,55,41],[55,42,55,46],[56,1,56,2],[56,3,56,14],[56,15,56,28],[56,29,56,41],[56,42,56,46],[57,1,57,2],[57,3,57,14],[57,15,57,28],[57,29,57,41],[57,42,57,46],[58,1,58,2],[58,3,58,14],[58,15,58,28],[58,29,58,41],[58,42,58,46],[59,1,59,2],[59,3,59,14],[59,15,59,28],[59,29,59,41],[59,42,59,46],[60,1,60,2],[60,3,60,14],[60,15,60,28],[60,29,60,41],[60,42,60,46],[61,1,61,2],[61,3,61,14],[61,15,61,28],[61,29,61,41],[61,42,61,46],[62,1,62,2],[62,3,62,14],[62,15,62,28],[62,29,62,41],[62,42,62,46],[65,1,65,2],[65,3,65,14],[65,15,65,28],[65,29,65,41],[65,42,65,46],[63,1,63,2],[63,3,63,14],[63,15,63,28],[63,29,63,41],[63,42,63,46],[64,1,64,2],[64,3,64,14],[64,15,64,28],[64,29,64,41],[64,42,64,46]]}
[null,"防火扉　別記第一号（A４)　"]
[null,"検査結果表"]
[null,"（防火扉）"]
[]
[null,"当該検査に関与した検査者",null,null,null,null,null,null,null,null,null,null,null,null,null,"氏　　　　　名",null,null,null,null,null,null,null,null,null,null,null,null,null,null,null,null,null,null,null,null,null,null,"検査者番号"]
[null,null,null,null,null,null,null,"代表となる検査者",null,null,null,null,null,null,null,{"$f":"IF(第二面!S32<>\"\",第二面!S32,\"\")","v":""},null,null,null,null,null,null,null,null,null,null,null,null,null,null,null,null,null,null,null,null,null,null,{"$f":"IF(P8<>\"\",1,\"\")","v":""}]
[]
[null,null,null,null,null,null,null,"その他の検査者",null,null,null,null,null,null,null,{"$f":"IF(第二面!S42<>\"\",第二面!S42,\"\")","v":""},null,null,null,null,null,null,null,null,null,null,null,null,null,null,null,null,null,null,null,null,null,null,{"$f":"IF(P8<>\"\",2,\"\")","v":""}]
[]
[null,null,null,null,null,null,null,null,null,null,null,null,null,null,null,{"$f":"IF('第二面  (別紙)'!Q18<>\"\",'第二面  (別紙)'!Q18,\"\")","v":""},null,null,null,null,null,null,null,null,null,null,null,null,null,null,null,null,null,null,null,null,null,null,{"$f":"IF(P10<>\"\",3,\"\")","v":""}]
[]
[]
[null,"番号",null,"検　査　項　目　",null,null,null,null,null,null,null,null,null,null,null,"検　査　事　項",null,null,null,null,null,null,null,null,null,null,null,null,null,null,null,null,null,null,null,null,null,null,"検査結果",null,null,null,null,null,"担当\n検査者\n番号",null,null,"該当　　しない　項目"]
[null,null,null,null,null,null,null,null,null,null,null,null,null,null,null,null,null,null,null,null,null,null,null,null,null,null,null,null,null,null,null,null,null,null,null,null,null,null,"指摘\nなし",null,"要是正"]
[null,null,null,null,null,null,null,null,null,null,null,null,null,null,null,null,null,null,null,null,null,null,null,null,null,null,null,null,null,null,null,null,null,null,null,null,null,null,null,null,null,null,"既存\n不適格"]
[]
[null,"(1)",null,"防火扉",null,null,null,"設置場所の周囲状況",null,null,null,null,null,null,null,"閉鎖の障害となる物品の放置の状況",null,null,null,null,null,null,null,null,null,null,null,null,null,null,null,null,null,null,null,null,null,null,null,null,null,null,null,null,null,null,null,null,null,null,null,null,null,null,null,null,null,null,null,null,null,null,null,null,null,null,null,null,null,null,null,null,null,null,null,null,null,null,null,"  (1)  設置場所の周囲状況","防火扉：設置場所の周囲状況"]
[null,"(2)",null,null,null,null,null,"扉、枠及び金物",null,null,null,null,null,null,null,"扉の取付けの状況",null,null,null,null,null,null,null,null,null,null,null,null,null,null,null,null,null,null,null,null,null,null,null,null,null,null,null,null,null,null,null,null,null,null,null,null,null,null,null,null,null,null,null,null,null,null,null,null,null,null,null,null,null,null,null,null,null,null,null,null,null,null,null,"  (2)  扉、枠及び金物","防火扉：扉、枠及び金物"]
[null,"(3)",null,null,null,null,null,null,null,null,null,null,null,null,null,"扉、枠及び金物の劣化及び損傷の状況",null,null,null,null,null,null,null,null,null,null,null,null,null,null,null,null,null,null,null,null,null,null,null,null,null,null,null,null,null,null,null,null,null,null,null,null,null,null,null,null,null,null,null,null,null,null,null,null,null,null,null,null,null,null,null,null,null,null,null,null,null,null,null,"  (3)  扉、枠及び金物","防火扉：扉、枠及び金物"]
[null,"(4)",null,null,null,null,null,"危害防止装置",null,null,null,null,null,null,null,"作動の状況",null,null,null,null,null,null,null,null,null,null,null,null,null,null,null,null,null,null,null,null,null,null,null,null,null,null,null,null,null,null,null,null,null,null,null,null,null,null,null,null,null,null,null,null,null,null,null,null,null,null,null,null,null,null,null,null,null,null,null,null,null,null,null,"  (4)  危害防止装置","防火扉：危害防止装置"]
[null,"(5)",null,"連動機構",null,null,null,"煙感知器、熱煙複合式感知器及び熱感知器",null,null,null,null,null,null,null,"設置位置",null,null,null,null,null,null,null,null,null,null,null,null,null,null,null,null,null,null,null,null,null,null,null,null,null,null,null,null,null,null,null,null,null,null,null,null,null,null,null,null,null,null,null,null,null,null,null,null,null,null,null,null,null,null,null,null,null,null,null,null,null,null,null,"  (5)  煙感知器、熱煙複合式感知器及び熱感知器","連動機構：煙感知器、熱煙複合式感知器及び熱感知器"]
[null,"(6)",null,null,null,null,null,null,null,null,null,null,null,null,null,"感知の状況",null,null,null,null,null,null,null,null,null,null,null,null,null,null,null,null,null,null,null,null,null,null,null,null,null,null,null,null,null,null,null,null,null,null,null,null,null,null,null,null,null,null,null,null,null,null,null,null,null,null,null,null,null,null,null,null,null,null,null,null,null,null,null,"  (6)  煙感知器、熱煙複合式感知器及び熱感知器","連動機構：煙感知器、熱煙複合式感知器及び熱感知器"]
[null,"(7)",null,null,null,null,null,"温度ヒューズ装置",null,null,null,null,null,null,null,"設置の状況",null,null,null,null,null,null,null,null,null,null,null,null,null,null,null,null,null,null,null,null,null,null,null,null,null,null,null,null,null,null,null,null,null,null,null,null,null,null,null,null,null,null,null,null,null,null,null,null,null,null,null,null,null,null,null,null,null,null,null,null,null,null,null,"  (7)  温度ヒューズ装置","連動機構：温度ヒューズ装置"]
[null,"(8)",null,null,null,null,null,"連動制御器",null,null,null,null,null,null,null,"スイッチ類及び表示灯の状況",null,null,null,null,null,null,null,null,null,null,null,null,null,null,null,null,null,null,null,null,null,null,null,null,null,null,null,null,null,null,null,null,null,null,null,null,null,null,null,null,null,null,null,null,null,null,null,null,null,null,null,null,null,null,null,null,null,null,null,null,null,null,null,"  (8)  連動制御器","連動機構：連動制御器"]
[null,"(9)",null,null,null,null,null,null,null,null,null,null,null,null,null,"結線接続の状況",null,null,null,null,null,null,null,null,null,null,null,null,null,null,null,null,null,null,null,null,null,null,null,null,null,null,null,null,null,null,null,null,null,null,null,null,null,null,null,null,null,null,null,null,null,null,null,null,null,null,null,null,null,null,null,null,null,null,null,null,null,null,null,"  (9)  連動制御器","連動機構：連動制御器"]
[null,"(10)",null,null,null,null,null,null,null,null,null,null,null,null,null,"接地の状況",null,null,null,null,null,null,null,null,null,null,null,null,null,null,null,null,null,null,null,null,null,null,null,null,null,null,null,null,null,null,null,null,null,null,null,null,null,null,null,null,null,null,null,null,null,null,null,null,null,null,null,null,null,null,null,null,null,null,null,null,null,null,null," (10)  連動制御器","連動機構：連動制御器"]
[null,"(11)",null,null,null,null,null,null,null,null,null,null,null,null,null,"予備電源への切り替えの状況",null,null,null,null,null,null,null,null,null,null,null,null,null,null,null,null,null,null,null,null,null,null,null,null,null,null,null,null,null,null,null,null,null,null,null,null,null,null,null,null,null,null,null,null,null,null,null,null,null,null,null,null,null,null,null,null,null,null,null,null,null,null,null," (11)  連動制御器","連動機構：連動制御器"]
[null,"(12)",null,null,null,null,null,"連動機構用予備電源",null,null,null,null,null,null,null,"劣化及び損傷の状況",null,null,null,null,null,null,null,null,null,null,null,null,null,null,null,null,null,null,null,null,null,null,null,null,null,null,null,null,null,null,null,null,null,null,null,null,null,null,null,null,null,null,null,null,null,null,null,null,null,null,null,null,null,null,null,null,null,null,null,null,null,null,null," (12)  連動機構用予備電源","連動機構：連動機構用予備電源"]
[null,"(13)",null,null,null,null,null,null,null,null,null,null,null,null,null,"容量の状況",null,null,null,null,null,null,null,null,null,null,null,null,null,null,null,null,null,null,null,null,null,null,null,null,null,null,null,null,null,null,null,null,null,null,null,null,null,null,null,null,null,null,null,null,null,null,null,null,null,null,null,null,null,null,null,null,null,null,null,null,null,null,null," (13)  連動機構用予備電源","連動機構：連動機構用予備電源"]
[null,"(14)",null,null,null,null,null,"自動閉鎖装置",null,null,null,null,null,null,null,"設置の状況",null,null,null,null,null,null,null,null,null,null,null,null,null,null,null,null,null,null,null,null,null,null,null,null,null,null,null,null,null,null,null,null,null,null,null,null,null,null,null,null,null,null,null,null,null,null,null,null,null,null,null,null,null,null,null,null,null,null,null,null,null,null,null," (14)  自動閉鎖装置","連動機構：自動閉鎖装置"]
[null,"(15)",null,null,null,null,null,null,null,null,null,null,null,null,null,"再ロック防止機構の作動の状況",null,null,null,null,null,null,null,null,null,null,null,null,null,null,null,null,null,null,null,null,null,null,null,null,null,null,null,null,null,null,null,null,null,null,null,null,null,null,null,null,null,null,null,null,null,null,null,null,null,null,null,null,null,null,null,null,null,null,null,null,null,null,null," (15)  自動閉鎖装置","連動機構：自動閉鎖装置"]
[null,"(16)",null,"総合的な作動の状況",null,null,null,null,null,null,null,null,null,null,null,"防火扉の閉鎖の状況",null,null,null,null,null,null,null,null,null,null,null,null,null,null,null,null,null,null,null,null,null,null,null,null,null,null,null,null,null,null,null,null,null,null,null,null,null,null,null,null,null,null,null,null,null,null,null,null,null,null,null,null,null,null,null,null,null,null,null,null,null,null,null," (16)  総合的な作動の状況","総合的な作動の状況"]
[null,"(17)",null,null,null,null,null,null,null,null,null,null,null,null,null,"防火区画の形成の状況",null,null,null,null,null,null,null,null,null,null,null,null,null,null,null,null,null,null,null,null,null,null,null,null,null,null,null,null,null,null,null,null,null,null,null,null,null,null,null,null,null,null,null,null,null,null,null,null,null,null,null,null,null,null,null,null,null,null,null,null,null,null,null," (17)  総合的な作動の状況","総合的な作動の状況"]
[null,"上記以外の検査項目"]
[]
[]
[]
[]
[]
[]
[]
[]
[]
[]
[null,"特記事項"]
[null,"番号",null,"検査項目",null,null,null,null,null,null,null,null,null,null,null,"指摘の具体的内容等",null,null,null,null,null,null,null,null,null,null,null,null,null,"改善の具体的内容等",null,null,null,null,null,null,null,null,null,null,null,null,"改善（予定）年月"]
[null,null,null,{"$f":"IF(B47=\"\",\"\",VLOOKUP(B47,$CB$17:$CC$33,2,0))","v":""}]
[null,null,null,{"$f":"IF(B48=\"\",\"\",VLOOKUP(B48,$CB$17:$CC$33,2,0))","v":""}]
[null,null,null,{"$f":"IF(B49=\"\",\"\",VLOOKUP(B49,$CB$17:$CC$33,2,0))","v":""}]
[null,null,null,""]
[null,null,null,""]
[null,null,null,""]
[null,null,null,""]
[null,null,null,""]
[null,null,null,""]
[null,null,null,""]
[null,null,null,""]
[null,null,null,""]
[null,null,null,""]
[null,null,null,""]
[null,null,null,""]
[null,null,null,""]
[null,null,null,""]
[null,null,null,""]
[null,null,null,""]
[null,null,null,""]
[]
[null,"（注意）"]
[null,"①","　この書類は、建築物ごとに作成してください。"]
[null,"②","　記入欄が不足する場合は、枠を拡大、行を追加して記入するか、別紙に必要な事項を記入して添えてください。"]
[null,"③","　「当該検査に関与した検査者」欄は、建築基準法施行規則別記第36の８様式第二面４欄に記入した検査者について記入"]
[null,null," し、「検査者番号」欄に検査者を特定できる番号、記号等を記入してください。当該防火設備の検査を行った検査者が"]
[null,null," １人の場合は、その他の検査者欄は削除して構いません。"]
[null,"④","　該当しない検査項目がある場合は、当該項目の「番号」欄から「担当検査者番号」欄までを取消線で抹消してください。"]
[null,"⑤","　「検査結果」欄は、別表（い）欄に掲げる各検査項目ごとに記入してください。"]
[null,"⑥","　「検査結果」欄のうち「要是正」欄は、別表（い）欄に掲げる検査項目について同表（ろ）欄に掲げる検査事項のいず"]
[null,null,"  れかが同表（に）欄に掲げる判定基準に該当する場合に○印を記入してください。"]
[null,"⑦","　「検査結果」欄のうち「指摘なし」欄は、⑥に該当しない場合に○印を記入してください。"]
[null,"⑧","　「既存不適格」欄は、「要是正」欄に○印を記入した場合で、建築基準法第３条第２項の規定の適用を受けているもの"]
[null,null,"  であることが確認されたときは、○印を記入してください。"]
[null,"⑨","　「担当検査者番号」欄は、「検査に関与した検査者」欄で記入した番号、記号等を記入してください。ただし、当該防"]
[null,null,"  火設備の検査を行った検査者が１人の場合は、記入しなくても構いません。"]
[null,"⑩","　「上記以外の検査項目」欄は、第１ただし書の規定により特定行政庁が検査項目を追加したときに、当該検査項目を追"]
[null,null,"　加し、⑤から⑨に準じて検査結果等を記入してください。また、第１第２項の規定により同項に規定する図書等に検査"]
[null,null,"  の方法が記載されている場合に、当該図書等に記載されている検査項目を追加し、⑤から⑨に準じて検査結果等を記入"]
[null,null,"　してください。なお、これらの項目がない場合は、この欄を削除して構いません。"]
[null,"⑪","　「特記事項」は、検査の結果、要是正の指摘があった場合のほか、指摘がない場合にあっても特記すべき事項がある場"]
[null,null,"　合に、該当する検査項目の番号、検査項目を記入し、「指摘の具体的内容等」欄に指摘又は特記すべき事項の具体的内"]
[null,null,"  容を記入するとともに、改善済みの場合及び改善策が明らかになっている場合は「改善策の具体的内容等」欄にその内"]
[null,null,"　容を記入し、改善した場合は「改善（予定）年月」欄に当該年月を記入し、改善予定年月が明らかになっている場合は"]
[null,null,"  「改善（予定）年月」欄に当該年月を（　）書きで記入してください。"]
[null,"⑫","　各階平面図を別添１の様式に従い添付し、防火扉の設置されている箇所及び指摘(特記すべき事項を含む）のあった箇"]
[null,null,"  を明記してください。なお、別添１の様式は別記第二号、別記第三号又は別記第四号の各々の別添２の様式に記載すべ"]
[null,null,"　き事項を合わせて記載することとして構いません。"]
[null,"⑬","　要是正とされた検査項目（既存不適格の場合を除く。）については、要是正とされた部分を撮影した写真を別添２の"]
[null,null,"　様式に従い添付するとともに、撮影した写真の位置を別添１の様式に明記してください。"]

{"sheet":"別記第二号（防火シャッター）","index":6,"n_rows":110,"n_cols":68,"rows_kept":110,"cut":false,"hidden":false,"merged":[[43,47,43,49],[44,47,44,49],[45,47,45,49],[17,47,18,49],[26,47,27,49],[20,47,21,49],[33,47,33,49],[34,47,34,49],[35,47,35,49],[36,47,36,49],[37,47,37,49],[38,47,38,49],[39,47,39,49],[40,47,40,49],[41,47,41,49],[24,47,24,49],[25,47,25,49],[28,47,28,49],[29,47,29,49],[30,47,30,49],[31,47,31,49],[32,47,32,49],[12,47,15,49],[16,47,16,49],[19,47,19,49],[22,47,22,49],[23,47,23,49],[65,29,65,41],[25,40,25,41],[25,42,25,43],[25,44,25,46],[20,15,21,37],[20,38,21,39],[20,40,21,41],[20,42,21,43],[20,44,21,46],[24,44,24,46],[17,15,18,37],[19,15,19,37],[51,44,51,46],[48,44,48,46],[52,44,52,46],[46,1,46,46],[59,1,59,2],[59,3,59,14],[59,15,59,28],[59,29,59,41],[59,42,59,46],[23,38,23,39],[23,40,23,41],[23,42,23,43],[23,44,23,46],[29,15,29,37],[28,38,28,39],[28,40,28,41],[28,42,28,43],[28,44,28,46],[26,42,27,43],[26,40,27,41],[26,38,27,39],[24,42,24,43],[30,42,30,43],[30,44,30,46],[25,15,25,37],[28,15,28,37],[36,42,36,43],[36,44,36,46],[30,1,30,2],[31,1,31,2],[32,1,32,2],[51,38,51,39],[51,40,51,41],[25,38,25,39],[82,60,82,68],[17,1,18,2],[26,1,27,2],[26,7,27,14],[26,15,27,37],[26,44,27,46],[31,38,31,39],[31,40,31,41],[31,42,31,43],[32,38,32,39],[32,40,32,41],[32,42,32,43],[29,38,29,39],[29,40,29,41],[29,42,29,43],[29,44,29,46],[30,38,30,39],[30,40,30,41],[22,42,22,43],[42,47,42,49],[17,7,22,14],[23,7,24,14],[19,38,19,39],[19,40,19,41],[19,42,19,43],[19,44,19,46],[22,38,22,39],[22,40,22,41],[24,38,24,39],[24,40,24,41],[22,15,22,37],[23,15,23,37],[24,15,24,37],[17,38,18,39],[17,40,18,41],[17,42,18,43],[17,44,18,46],[22,44,22,46],[42,44,42,46],[40,44,40,46],[36,38,36,39],[36,40,36,41],[119,2,119,46],[96,2,96,46],[100,2,100,46],[97,2,97,46],[98,2,98,46],[99,2,99,46],[81,2,81,46],[82,2,82,46],[83,2,83,46],[86,2,86,46],[87,2,87,46],[88,2,88,46],[104,2,104,46],[105,2,105,46],[106,2,106,46],[84,2,84,46],[85,2,85,46],[89,2,89,46],[92,2,92,46],[94,2,94,46],[101,2,101,46],[102,2,102,46],[103,2,103,46],[80,1,80,46],[63,1,63,2],[63,3,63,14],[63,15,63,28],[32,15,32,37],[30,15,30,37],[31,15,31,37],[31,44,31,46],[32,44,32,46],[49,1,49,2],[49,3,49,37],[49,38,49,39],[49,40,49,41],[49,42,49,43],[49,44,49,46],[58,42,58,46],[50,1,50,2],[50,3,50,37],[50,38,50,39],[50,40,50,41],[50,42,50,43],[50,44,50,46],[51,1,51,2],[51,3,51,37],[120,2,120,46],[121,2,121,46],[122,2,122,46],[0,1,0,46],[22,1,22,2],[23,1,23,2],[24,1,24,2],[25,1,25,2],[113,2,113,46],[114,2,114,46],[115,2,115,46],[116,2,116,46],[117,2,117,46],[118,2,118,46],[107,2,107,46],[108,2,108,46],[109,2,109,46],[110,2,110,46],[111,2,111,46],[112,2,112,46],[90,2,90,46],[91,2,91,46],[93,2,93,46],[95,2,95,46],[52,1,52,2],[52,3,52,37],[52,38,52,39],[52,40,52,41],[52,42,52,43],[48,1,48,2],[48,3,48,37],[48,38,48,39],[48,40,48,41],[48,42,48,43],[51,42,51,43],[47,1,47,2],[47,3,47,37],[47,38,47,39],[47,40,47,41],[47,42,47,43],[47,44,47,46],[44,44,44,46],[45,1,45,2],[45,15,45,37],[45,38,45,39],[45,40,45,41],[45,42,45,43],[45,44,45,46],[44,1,44,2],[44,3,45,14],[44,15,44,37],[44,38,44,39],[44,40,44,41],[44,42,44,43],[43,1,43,2],[43,15,43,37],[43,38,43,39],[43,40,43,41],[43,42,43,43],[43,44,43,46],[42,7,42,14],[43,7,43,14],[42,1,42,2],[42,15,42,37],[42,38,42,39],[42,40,42,41],[42,42,42,43],[41,1,41,2],[41,15,41,37],[41,38,41,39],[41,40,41,41],[41,42,41,43],[41,44,41,46],[40,1,40,2],[40,7,41,14],[40,15,40,37],[40,38,40,39],[40,40,40,41],[40,42,40,43],[37,1,37,2],[38,44,38,46],[39,1,39,2],[39,15,39,37],[39,38,39,39],[39,40,39,41],[39,42,39,43],[39,44,39,46],[37,15,37,37],[37,38,37,39],[37,40,37,41],[37,42,37,43],[37,44,37,46],[38,1,38,2],[38,15,38,37],[38,38,38,39],[38,40,38,41],[38,42,38,43],[33,1,33,2],[33,3,43,6],[33,7,34,14],[33,15,33,37],[33,38,33,39],[33,40,33,41],[33,42,33,43],[33,44,33,46],[34,1,34,2],[34,15,34,37],[34,38,34,39],[34,40,34,41],[34,42,34,43],[34,44,34,46],[35,1,35,2],[35,7,35,14],[35,15,35,37],[35,38,35,39],[35,40,35,41],[35,42,35,43],[35,44,35,46],[36,1,36,2],[36,7,39,14],[36,15,36,37],[12,1,15,2],[12,3,15,14],[12,15,15,37],[12,38,12,43],[12,44,15,46],[13,38,15,39],[11,1,11,46],[16,44,16,46],[19,1,19,2],[13,40,15,41],[13,42,13,43],[14,42,15,43],[16,1,16,2],[16,3,32,6],[16,7,16,14],[16,15,16,37],[16,38,16,39],[16,40,16,41],[16,42,16,43],[25,7,25,14],[28,7,32,14],[20,1,21,2],[28,1,28,2],[29,1,29,2],[1,1,1,46],[2,1,2,46],[4,1,10,6],[4,7,4,14],[4,15,4,37],[4,38,4,46],[5,7,6,14],[5,15,6,37],[7,7,10,14],[3,1,3,46],[7,15,8,37],[9,15,10,37],[5,38,6,46],[7,38,8,46],[9,38,10,46],[53,1,53,2],[53,3,53,37],[53,38,53,39],[53,40,53,41],[53,42,53,43],[53,44,53,46],[54,1,54,2],[54,3,54,37],[54,38,54,39],[54,40,54,41],[54,42,54,43],[54,44,54,46],[55,1,55,2],[55,3,55,37],[55,38,55,39],[55,40,55,41],[55,42,55,43],[55,44,55,46],[64,1,64,2],[64,3,64,14],[64,15,64,28],[64,29,64,41],[64,42,64,46],[56,1,56,2],[56,3,56,37],[56,38,56,39],[56,40,56,41],[56,42,56,43],[56,44,56,46],[57,1,57,46],[58,1,58,2],[58,3,58,14],[58,15,58,28],[58,29,58,41],[60,1,60,2],[60,3,60,14],[60,15,60,28],[60,29,60,41],[60,42,60,46],[61,1,61,2],[61,3,61,14],[61,15,61,28],[66,1,66,2],[66,3,66,14],[66,15,66,28],[66,29,66,41],[66,42,66,46],[61,29,61,41],[65,42,65,46],[61,42,61,46],[63,29,63,41],[63,42,63,46],[62,1,62,2],[62,3,62,14],[62,15,62,28],[62,29,62,41],[62,42,62,46],[65,1,65,2],[65,3,65,14],[65,15,65,28],[67,1,67,2],[67,3,67,14],[67,15,67,28],[67,29,67,41],[67,42,67,46],[68,1,68,2],[68,3,68,14],[68,15,68,28],[68,29,68,41],[68,42,68,46],[69,1,69,2],[69,3,69,14],[69,15,69,28],[69,29,69,41],[69,42,69,46],[70,1,70,2],[70,3,70,14],[70,15,70,28],[70,29,70,41],[70,42,70,46],[71,1,71,2],[71,3,71,14],[71,15,71,28],[71,29,71,41],[71,42,71,46],[72,1,72,2],[72,3,72,14],[72,15,72,28],[72,29,72,41],[72,42,72,46],[73,1,73,2],[73,3,73,14],[73,15,73,28],[73,29,73,41],[73,42,73,46],[74,1,74,2],[74,3,74,14],[74,15,74,28],[74,29,74,41],[74,42,74,46],[75,1,75,2],[75,3,75,14],[75,15,75,28],[75,29,75,41],[75,42,75,46],[78,1,78,2],[78,3,78,14],[78,15,78,28],[78,29,78,41],[78,42,78,46],[76,1,76,2],[76,3,76,14],[76,15,76,28],[76,29,76,41],[76,42,76,46],[77,1,77,2],[77,3,77,14],[77,15,77,28],[77,29,77,41],[77,42,77,46]]}
[null,"防火シャッター　別記第二号（A４）"]
[null,"検査結果表"]
[null,"（防火シャッター）"]
[]
[null,"当該検査に関与した検査者",null,null,null,null,null,null,null,null,null,null,null,null,null,"氏　　　　　名",null,null,null,null,null,null,null,null,null,null,null,null,null,null,null,null,null,null,null,null,null,null,"検査者番号"]
[null,null,null,null,null,null,null,"代表となる検査者",null,null,null,null,null,null,null,{"$f":"IF(第二面!S32<>\"\",第二面!S32,\"\")","v":""},null,null,null,null,null,null,null,null,null,null,null,null,null,null,null,null,null,null,null,null,null,null,{"$f":"IF(P8<>\"\",1,\"\")","v":""}]
[]
[null,null,null,null,null,null,null,"その他の検査者",null,null,null,null,null,null,null,{"$f":"IF(第二面!S42<>\"\",第二面!S42,\"\")","v":""},null,null,null,null,null,null,null,null,null,null,null,null,null,null,null,null,null,null,null,null,null,null,{"$f":"IF(P8<>\"\",2,\"\")","v":""}]
[]
[null,null,null,null,null,null,null,null,null,null,null,null,null,null,null,{"$f":"IF('第二面  (別紙)'!Q18<>\"\",'第二面  (別紙)'!Q18,\"\")","v":""},null,null,null,null,null,null,null,null,null,null,null,null,null,null,null,null,null,null,null,null,null,null,{"$f":"IF(P10<>\"\",3,\"\")","v":""}]
[]
[]
[null,"番号",null,"検　査　項　目　",null,null,null,null,null,null,null,null,null,null,null,"検　査　事　項",null,null,null,null,null,null,null,null,null,null,null,null,null,null,null,null,null,null,null,null,null,null,"検査結果",null,null,null,null,null,"担当\n検査者\n番号",null,null,"該当 　しない　項目"]
[null,null,null,null,null,null,null,null,null,null,null,null,null,null,null,null,null,null,null,null,null,null,null,null,null,null,null,null,null,null,null,null,null,null,null,null,null,null,"指摘\nなし",null,"要是正"]
[null,null,null,null,null,null,null,null,null,null,null,null,null,null,null,null,null,null,null,null,null,null,null,null,null,null,null,null,null,null,null,null,null,null,null,null,null,null,null,null,null,null,"既存\n不適格"]
[]
[null,"(1)",null,"防火シャッター",null,null,null,"設置場所の周囲状況",null,null,null,null,null,null,null,"閉鎖の障害となる物品の放置の状況",null,null,null,null,null,null,null,null,null,null,null,null,null,null,null,null,null,null,null,null,null,null,null,null,null,null,null,null,null,null,null,null,null,null,null,null,null,null,null,null,null,null,null,null,null,null,null,null,null,null,"  (1)  設置場所の周囲状況","防火シャッター：設置場所の周囲状況"]
[null,"(2)",null,null,null,null,null,"駆動装置",null,null,null,null,null,null,null,"軸受け部のブラケット、巻取りシャフト及び開閉機の取付\nけの状況※",null,null,null,null,null,null,null,null,null,null,null,null,null,null,null,null,null,null,null,null,null,null,null,null,null,null,null,null,null,null,null,null,null,null,null,null,null,null,null,null,null,null,null,null,null,null,null,null,null,null,"  (2)  駆動装置","防火シャッター：駆動装置"]
[null,null,null,null,null,null,null,null,null,null,null,null,null,null,null,null,null,null,null,null,null,null,null,null,null,null,null,null,null,null,null,null,null,null,null,null,null,null,null,null,null,null,null,null,null,null,null,null,null,null,null,null,null,null,null,null,null,null,null,null,null,null,null,null,null,null,"  (3)  駆動装置","防火シャッター：駆動装置"]
[null,"(3)",null,null,null,null,null,null,null,null,null,null,null,null,null,"スプロケットの設置の状況※",null,null,null,null,null,null,null,null,null,null,null,null,null,null,null,null,null,null,null,null,null,null,null,null,null,null,null,null,null,null,null,null,null,null,null,null,null,null,null,null,null,null,null,null,null,null,null,null,null,null,"  (4)  駆動装置","防火シャッター：駆動装置"]
[null,"(4)",null,null,null,null,null,null,null,null,null,null,null,null,null,"軸受け部のブラケット、ベアリング及びスプロケット又は\nロープ車の劣化及び損傷の状況※",null,null,null,null,null,null,null,null,null,null,null,null,null,null,null,null,null,null,null,null,null,null,null,null,null,null,null,null,null,null,null,null,null,null,null,null,null,null,null,null,null,null,null,null,null,null,null,null,null,null,"  (5)  駆動装置","防火シャッター：駆動装置"]
[null,null,null,null,null,null,null,null,null,null,null,null,null,null,null,null,null,null,null,null,null,null,null,null,null,null,null,null,null,null,null,null,null,null,null,null,null,null,null,null,null,null,null,null,null,null,null,null,null,null,null,null,null,null,null,null,null,null,null,null,null,null,null,null,null,null,"  (6)  カーテン部 ","防火シャッター：カーテン部 "]
[null,"(5)",null,null,null,null,null,null,null,null,null,null,null,null,null,"ローラチェーン又はワイヤーロープの劣化及び損傷の状況",null,null,null,null,null,null,null,null,null,null,null,null,null,null,null,null,null,null,null,null,null,null,null,null,null,null,null,null,null,null,null,null,null,null,null,null,null,null,null,null,null,null,null,null,null,null,null,null,null,null,"  (7)  カーテン部 ","防火シャッター：カーテン部 "]
[null,"(6)",null,null,null,null,null,"カーテン部 ",null,null,null,null,null,null,null,"スラット及び座板の劣化等の状況",null,null,null,null,null,null,null,null,null,null,null,null,null,null,null,null,null,null,null,null,null,null,null,null,null,null,null,null,null,null,null,null,null,null,null,null,null,null,null,null,null,null,null,null,null,null,null,null,null,null,"  (8)  ケース","防火シャッター：ケース"]
[null,"(7)",null,null,null,null,null,null,null,null,null,null,null,null,null,"吊り元の劣化及び損傷並びに固定の状況",null,null,null,null,null,null,null,null,null,null,null,null,null,null,null,null,null,null,null,null,null,null,null,null,null,null,null,null,null,null,null,null,null,null,null,null,null,null,null,null,null,null,null,null,null,null,null,null,null,null,"  (9)  まぐさ及びガイドレール","防火シャッター：まぐさ及びガイドレール"]
[null,"(8)",null,null,null,null,null,"ケース",null,null,null,null,null,null,null,"劣化及び損傷の状況",null,null,null,null,null,null,null,null,null,null,null,null,null,null,null,null,null,null,null,null,null,null,null,null,null,null,null,null,null,null,null,null,null,null,null,null,null,null,null,null,null,null,null,null,null,null,null,null,null,null," (10)  危害防止装置","防火シャッター：危害防止装置"]
[null,"(9)",null,null,null,null,null,"まぐさ及びガイドレール",null,null,null,null,null,null,null,"劣化及び損傷の状況",null,null,null,null,null,null,null,null,null,null,null,null,null,null,null,null,null,null,null,null,null,null,null,null,null,null,null,null,null,null,null,null,null,null,null,null,null,null,null,null,null,null,null,null,null,null,null,null,null,null," (11)  危害防止装置","防火シャッター：危害防止装置"]
[null,null,null,null,null,null,null,null,null,null,null,null,null,null,null,null,null,null,null,null,null,null,null,null,null,null,null,null,null,null,null,null,null,null,null,null,null,null,null,null,null,null,null,null,null,null,null,null,null,null,null,null,null,null,null,null,null,null,null,null,null,null,null,null,null,null," (12)  危害防止装置","防火シャッター：危害防止装置"]
[null,"(10)",null,null,null,null,null,"危害防止装置",null,null,null,null,null,null,null,"危害防止用連動中継器の配線の状況",null,null,null,null,null,null,null,null,null,null,null,null,null,null,null,null,null,null,null,null,null,null,null,null,null,null,null,null,null,null,null,null,null,null,null,null,null,null,null,null,null,null,null,null,null,null,null,null,null,null," (13)  危害防止装置","防火シャッター：危害防止装置"]
[null,"(11)",null,null,null,null,null,null,null,null,null,null,null,null,null,"危害防止装置用予備電源の劣化及び損傷の状況",null,null,null,null,null,null,null,null,null,null,null,null,null,null,null,null,null,null,null,null,null,null,null,null,null,null,null,null,null,null,null,null,null,null,null,null,null,null,null,null,null,null,null,null,null,null,null,null,null,null," (14)  危害防止装置","防火シャッター：危害防止装置"]
[null,"(12)",null,null,null,null,null,null,null,null,null,null,null,null,null,"危害防止装置用予備電源の容量の状況",null,null,null,null,null,null,null,null,null,null,null,null,null,null,null,null,null,null,null,null,null,null,null,null,null,null,null,null,null,null,null,null,null,null,null,null,null,null,null,null,null,null,null,null,null,null,null,null,null,null," (15)  煙感知器、熱煙複合式感知器及び熱感知器","連動機構：煙感知器、熱煙複合式感知器及び熱感知器"]
[null,"(13)",null,null,null,null,null,null,null,null,null,null,null,null,null,"座板感知部の劣化及び損傷並びに作動の状況",null,null,null,null,null,null,null,null,null,null,null,null,null,null,null,null,null,null,null,null,null,null,null,null,null,null,null,null,null,null,null,null,null,null,null,null,null,null,null,null,null,null,null,null,null,null,null,null,null,null," (16)  煙感知器、熱煙複合式感知器及び熱感知器","連動機構：煙感知器、熱煙複合式感知器及び熱感知器"]
[null,"(14)",null,null,null,null,null,null,null,null,null,null,null,null,null,"作動の状況",null,null,null,null,null,null,null,null,null,null,null,null,null,null,null,null,null,null,null,null,null,null,null,null,null,null,null,null,null,null,null,null,null,null,null,null,null,null,null,null,null,null,null,null,null,null,null,null,null,null," (17)  温度ヒューズ装置","連動機構：温度ヒューズ装置"]
[null,"(15)",null,"連動機構",null,null,null,"煙感知器、熱煙複合式感知器及び熱感知器",null,null,null,null,null,null,null,"設置位置",null,null,null,null,null,null,null,null,null,null,null,null,null,null,null,null,null,null,null,null,null,null,null,null,null,null,null,null,null,null,null,null,null,null,null,null,null,null,null,null,null,null,null,null,null,null,null,null,null,null," (18)  連動制御器","連動機構：連動制御器"]
[null,"(16)",null,null,null,null,null,null,null,null,null,null,null,null,null,"感知の状況",null,null,null,null,null,null,null,null,null,null,null,null,null,null,null,null,null,null,null,null,null,null,null,null,null,null,null,null,null,null,null,null,null,null,null,null,null,null,null,null,null,null,null,null,null,null,null,null,null,null," (19)  連動制御器","連動機構：連動制御器"]
[null,"(17)",null,null,null,null,null,"温度ヒューズ装置",null,null,null,null,null,null,null,"設置の状況",null,null,null,null,null,null,null,null,null,null,null,null,null,null,null,null,null,null,null,null,null,null,null,null,null,null,null,null,null,null,null,null,null,null,null,null,null,null,null,null,null,null,null,null,null,null,null,null,null,null," (20)  連動制御器","連動機構：連動制御器"]
[null,"(18)",null,null,null,null,null,"連動制御器",null,null,null,null,null,null,null,"スイッチ類及び表示灯の状況",null,null,null,null,null,null,null,null,null,null,null,null,null,null,null,null,null,null,null,null,null,null,null,null,null,null,null,null,null,null,null,null,null,null,null,null,null,null,null,null,null,null,null,null,null,null,null,null,null,null," (21)  連動制御器","連動機構：連動制御器"]
[null,"(19)",null,null,null,null,null,null,null,null,null,null,null,null,null,"結線接続の状況",null,null,null,null,null,null,null,null,null,null,null,null,null,null,null,null,null,null,null,null,null,null,null,null,null,null,null,null,null,null,null,null,null,null,null,null,null,null,null,null,null,null,null,null,null,null,null,null,null,null," (22)  連動機構用予備電源","連動機構：連動機構用予備電源"]
[null,"(20)",null,null,null,null,null,null,null,null,null,null,null,null,null,"接地の状況",null,null,null,null,null,null,null,null,null,null,null,null,null,null,null,null,null,null,null,null,null,null,null,null,null,null,null,null,null,null,null,null,null,null,null,null,null,null,null,null,null,null,null,null,null,null,null,null,null,null," (23)  連動機構用予備電源","連動機構：連動機構用予備電源"]
[null,"(21)",null,null,null,null,null,null,null,null,null,null,null,null,null,"予備電源への切り替えの状況",null,null,null,null,null,null,null,null,null,null,null,null,null,null,null,null,null,null,null,null,null,null,null,null,null,null,null,null,null,null,null,null,null,null,null,null,null,null,null,null,null,null,null,null,null,null,null,null,null,null," (24)  自動閉鎖装置","連動機構：自動閉鎖装置"]
[null,"(22)",null,null,null,null,null,"連動機構用予備電源",null,null,null,null,null,null,null,"劣化及び損傷の状況",null,null,null,null,null,null,null,null,null,null,null,null,null,null,null,null,null,null,null,null,null,null,null,null,null,null,null,null,null,null,null,null,null,null,null,null,null,null,null,null,null,null,null,null,null,null,null,null,null,null," (25)  手動閉鎖装置","連動機構：手動閉鎖装置"]
[null,"(23)",null,null,null,null,null,null,null,null,null,null,null,null,null,"容量の状況",null,null,null,null,null,null,null,null,null,null,null,null,null,null,null,null,null,null,null,null,null,null,null,null,null,null,null,null,null,null,null,null,null,null,null,null,null,null,null,null,null,null,null,null,null,null,null,null,null,null," (26)  総合的な作動の状況","総合的な作動の状況"]
[null,"(24)",null,null,null,null,null,"自動閉鎖装置",null,null,null,null,null,null,null,"設置の状況",null,null,null,null,null,null,null,null,null,null,null,null,null,null,null,null,null,null,null,null,null,null,null,null,null,null,null,null,null,null,null,null,null,null,null,null,null,null,null,null,null,null,null,null,null,null,null,null,null,null," (27)  総合的な作動の状況","総合的な作動の状況"]
[null,"(25)",null,null,null,null,null,"手動閉鎖装置",null,null,null,null,null,null,null,"設置の状況"]
[null,"(26)",null,"総合的な作動の状況",null,null,null,null,null,null,null,null,null,null,null,"防火シャッターの閉鎖の状況"]
[null,"(27)",null,null,null,null,null,null,null,null,null,null,null,null,null,"防火区画の形成の状況"]
[null,"上記以外の検査項目"]
[]
[]
[]
[]
[]
[]
[]
[]
[]
[]
[null,"特記事項"]
[null,"番号",null,"検査項目",null,null,null,null,null,null,null,null,null,null,null,"指摘の具体的内容等",null,null,null,null,null,null,null,null,null,null,null,null,null,"改善の具体的内容等",null,null,null,null,null,null,null,null,null,null,null,null,"改善（予定）年月"]
[null,null,null,{"$f":"IF(B60=\"\",\"\",VLOOKUP(B60,$BO$17:$BP$43,2,0))","v":""}]
[null,null,null,{"$f":"IF(B61=\"\",\"\",VLOOKUP(B61,$BO$17:$BP$43,2,0))","v":""}]
[null,null,null,""]
[null,null,null,""]
[null,null,null,""]
[null,null,null,""]
[null,null,null,""]
[null,null,null,""]
[null,null,null,""]
[null,null,null,""]
[null,null,null,""]
[null,null,null,""]
[null,null,null,""]
[null,null,null,""]
[null,null,null,""]
[null,null,null,""]
[null,null,null,""]
[null,null,null,""]
[null,null,null,""]
[null,null,null,""]
[]
[null,"（注意）"]
[null,"①","　この書類は、建築物ごとに作成してください。"]
[null,"②","　記入欄が不足する場合は、枠を拡大、行を追加して記入するか、別紙に必要な事項を記入して添えてください。"]
[null,"③","　「当該検査に関与した検査者」欄は、建築基準法施行規則別記第36の８様式第二面４欄に記入した検査者について記入"]
[null,null,"　し、「検査者番号」欄に検査者を特定できる番号、記号等を記入してください。当該防火設備の検査を行った検査者が"]
[null,null,"  １人の場合は、その他の検査者欄は削除して構いません。"]
[null,"④","　該当しない検査項目がある場合は、当該項目の「番号」欄から「担当検査者番号」欄までを取消線で抹消してください。"]
[null,"⑤","　「検査結果」欄は、別表（い）欄に掲げる各検査項目ごとに記入してください。"]
[null,"⑥","　「検査結果」欄のうち「要是正」欄は、別表（い）欄に掲げる検査項目について同表（ろ）欄に掲げる検査事項のいず"]
[null,null,"  れかが同表（に）欄に掲げる判定基準に該当する場合に○印を記入してください。"]
[null,"⑦","　「検査結果」欄のうち「指摘なし」欄は、⑥に該当しない場合に○印を記入してください。"]
[null,"⑧","　「既存不適格」欄は、「要是正」欄に○印を記入した場合で、建築基準法第３条第２項の規定の適用を受けているもの"]
[null,null,"  であることが確認されたときは、○印を記入してください。"]
[null,"⑨","　「担当検査者番号」欄は、「検査に関与した検査者」欄で記入した番号、記号等を記入してください。ただし、当該防"]
[null,null,"　火設備の検査を行った検査者が１人の場合は、記入しなくても構いません。"]
[null,"⑩","　※欄は、日常的に開閉するものについてのみ記入してください。"]
[null,"⑪","　「上記以外の検査項目」欄は、第１ただし書の規定により特定行政庁が検査項目を追加したときに、当該検査項目を追"]
[null,null,"  加し、⑤から⑨に準じて検査結果等を記入してください。また、第１第２項の規定により同項に規定する図書等に検査"]
[null,null,"  の方法が記載されている場合に、当該図書等に記載されている検査項目を追加し、⑤から⑨に準じて検査結果等を記入"]
[null,null,"  してください。なお、これらの項目がない場合は、この欄を削除して構いません。"]
[null,"⑫","　「特記事項」は、検査の結果、要是正の指摘があった場合のほか、指摘がない場合にあっても特記すべき事項がある場"]
[null,null,"　合に、該当する検査項目の番号、検査項目を記入し、「指摘の具体的内容等」欄に指摘又は特記すべき事項の具体的内"]
[null,null,"　容を記入するとともに、改善済みの場合及び改善策が明らかになっている場合は「改善策の具体的内容等」欄にその内"]
[null,null,"　容を記入し、改善した場合は「改善（予定）年月」欄に当該年月を記入し、改善予定年月が明らかになっている場合は"]
[null,null,"　「改善（予定）年月」欄に当該年月を（　）書きで記入してください。"]
[null,"⑬","　各階平面図を別添１の様式に従い添付し、防火シャッターの設置されている箇所及び指摘(特記すべき事項を含む）の"]
[null,null,"　あった箇所を明記してください。なお、別添１の様式は別記第一号、別記第三号又は別記第四号の各々の別添１の様式"]
[null,null,"　に記載すべき事項を合わせて記載することとして構いません。"]
[null,"⑭","　要是正とされた検査項目（既存不適格の場合を除く。）については、要是正とされた部分を撮影した写真を別添２の"]
[null,null,"　様式に従い添付するとともに、撮影した写真の位置を別添１の様式に明記してください。"]

{"sheet":"別記第三号（耐火クロススクリーン）","index":7,"n_rows":103,"n_cols":68,"rows_kept":103,"cut":false,"hidden":false,"merged":[[67,1,67,2],[67,3,67,14],[67,15,67,28],[67,29,67,41],[67,42,67,46],[68,1,68,2],[68,3,68,14],[68,15,68,28],[68,29,68,41],[68,42,68,46],[72,1,72,2],[72,3,72,14],[72,15,72,28],[72,29,72,41],[72,42,72,46],[69,1,69,2],[69,3,69,14],[69,15,69,28],[69,29,69,41],[69,42,69,46],[70,1,70,2],[70,3,70,14],[70,15,70,28],[70,29,70,41],[70,42,70,46],[71,1,71,2],[71,3,71,14],[71,15,71,28],[71,29,71,41],[71,42,71,46],[65,42,65,46],[66,1,66,2],[66,3,66,14],[66,15,66,28],[66,29,66,41],[66,42,66,46],[63,1,63,2],[63,3,63,14],[63,15,63,28],[63,29,63,41],[63,42,63,46],[64,1,64,2],[64,3,64,14],[64,15,64,28],[64,29,64,41],[64,42,64,46],[65,1,65,2],[65,3,65,14],[65,15,65,28],[65,29,65,41],[61,1,61,2],[61,3,61,14],[61,15,61,28],[61,29,61,41],[61,42,61,46],[62,1,62,2],[62,3,62,14],[62,15,62,28],[62,29,62,41],[62,42,62,46],[59,1,59,2],[59,3,59,14],[59,15,59,28],[59,29,59,41],[59,42,59,46],[60,1,60,2],[60,3,60,14],[60,15,60,28],[60,29,60,41],[60,42,60,46],[50,1,50,2],[50,3,50,37],[50,38,50,39],[50,40,50,41],[50,42,50,43],[50,44,50,46],[58,1,58,2],[58,3,58,14],[58,15,58,28],[58,29,58,41],[58,42,58,46],[55,1,55,2],[55,3,55,14],[55,15,55,28],[55,29,55,41],[55,42,55,46],[56,1,56,2],[56,3,56,14],[56,15,56,28],[56,29,56,41],[56,42,56,46],[48,1,48,2],[48,3,48,37],[48,38,48,39],[48,40,48,41],[48,42,48,43],[48,44,48,46],[49,1,49,2],[49,3,49,37],[49,38,49,39],[49,40,49,41],[49,42,49,43],[49,44,49,46],[46,1,46,2],[46,3,46,37],[46,38,46,39],[46,40,46,41],[46,42,46,43],[46,44,46,46],[47,1,47,2],[47,3,47,37],[47,38,47,39],[47,40,47,41],[47,42,47,43],[47,44,47,46],[44,1,44,2],[44,3,44,37],[44,38,44,39],[44,40,44,41],[44,42,44,43],[44,44,44,46],[45,1,45,2],[45,3,45,37],[45,38,45,39],[45,40,45,41],[45,42,45,43],[45,44,45,46],[37,47,37,49],[38,47,38,49],[39,47,39,49],[33,47,33,49],[34,47,34,49],[35,47,35,49],[36,47,36,49],[24,47,24,49],[25,47,25,49],[26,47,26,49],[27,47,27,49],[28,47,28,49],[29,47,29,49],[30,47,30,49],[31,47,31,49],[32,47,32,49],[12,47,15,49],[16,47,16,49],[17,47,17,49],[18,47,18,49],[19,47,19,49],[20,47,20,49],[23,47,23,49],[21,47,22,49],[57,42,57,46],[40,1,40,46],[41,1,41,2],[41,3,41,37],[41,38,41,39],[41,40,41,41],[41,42,41,43],[41,44,41,46],[38,44,38,46],[39,1,39,2],[39,15,39,37],[39,38,39,39],[39,40,39,41],[39,42,39,43],[39,44,39,46],[38,1,38,2],[80,2,80,46],[81,2,81,46],[82,2,82,46],[83,2,83,46],[84,2,84,46],[85,2,85,46],[75,2,75,46],[76,2,76,46],[77,2,77,46],[78,2,78,46],[79,2,79,46],[86,62,86,69],[87,62,87,69],[88,62,88,69],[89,62,89,69],[80,62,80,69],[81,62,81,69],[82,62,82,69],[83,62,83,69],[84,62,84,69],[85,62,85,69],[115,2,115,46],[21,1,22,2],[21,7,22,14],[21,15,22,37],[21,44,22,46],[21,42,22,43],[21,40,22,41],[21,38,22,39],[109,2,109,46],[110,2,110,46],[111,2,111,46],[112,2,112,46],[113,2,113,46],[114,2,114,46],[103,2,103,46],[104,2,104,46],[105,2,105,46],[106,2,106,46],[107,2,107,46],[108,2,108,46],[97,2,97,46],[98,2,98,46],[99,2,99,46],[100,2,100,46],[101,2,101,46],[102,2,102,46],[91,2,91,46],[92,2,92,46],[93,2,93,46],[94,2,94,46],[95,2,95,46],[96,2,96,46],[86,2,86,46],[87,2,87,46],[88,2,88,46],[89,2,89,46],[90,2,90,46],[77,62,77,69],[78,62,78,69],[79,62,79,69],[74,1,74,46],[57,1,57,2],[57,3,57,14],[51,1,51,46],[52,1,52,2],[52,3,52,14],[52,15,52,28],[52,29,52,41],[52,42,52,46],[53,1,53,2],[53,3,53,14],[53,15,53,28],[53,29,53,41],[53,42,53,46],[54,1,54,2],[54,3,54,14],[54,15,54,28],[54,29,54,41],[54,42,54,46],[57,15,57,28],[57,29,57,41],[43,1,43,2],[43,3,43,37],[43,38,43,39],[43,40,43,41],[43,42,43,43],[43,44,43,46],[42,1,42,2],[42,3,42,37],[42,38,42,39],[42,40,42,41],[42,42,42,43],[42,44,42,46],[38,3,39,14],[38,15,38,37],[38,38,38,39],[38,40,38,41],[38,42,38,43],[36,44,36,46],[37,1,37,2],[37,7,37,14],[37,15,37,37],[37,38,37,39],[37,40,37,41],[37,42,37,43],[37,44,37,46],[36,1,36,2],[36,7,36,14],[36,15,36,37],[36,38,36,39],[36,40,36,41],[36,42,36,43],[34,44,34,46],[35,1,35,2],[35,15,35,37],[35,38,35,39],[35,40,35,41],[35,42,35,43],[35,44,35,46],[34,1,34,2],[34,7,35,14],[34,15,34,37],[34,38,34,39],[34,40,34,41],[34,42,34,43],[30,44,30,46],[33,1,33,2],[33,15,33,37],[33,38,33,39],[33,40,33,41],[33,42,33,43],[33,44,33,46],[32,1,32,2],[32,15,32,37],[32,38,32,39],[32,40,32,41],[32,42,32,43],[32,44,32,46],[29,1,29,2],[29,15,29,37],[29,38,29,39],[29,40,29,41],[29,42,29,43],[29,44,29,46],[28,1,28,2],[28,3,37,6],[28,7,29,14],[28,15,28,37],[28,38,28,39],[28,40,28,41],[31,1,31,2],[31,15,31,37],[31,38,31,39],[31,40,31,41],[31,42,31,43],[31,44,31,46],[30,1,30,2],[30,7,33,14],[30,15,30,37],[30,38,30,39],[30,40,30,41],[30,42,30,43],[25,44,25,46],[26,1,26,2],[26,15,26,37],[26,38,26,39],[26,40,26,41],[26,42,26,43],[26,44,26,46],[28,42,28,43],[28,44,28,46],[23,44,23,46],[24,1,24,2],[24,15,24,37],[24,38,24,39],[24,40,24,41],[24,42,24,43],[24,44,24,46],[23,1,23,2],[23,7,27,14],[23,15,23,37],[23,38,23,39],[23,40,23,41],[23,42,23,43],[25,1,25,2],[25,15,25,37],[25,38,25,39],[25,40,25,41],[27,1,27,2],[27,15,27,37],[27,38,27,39],[27,40,27,41],[27,42,27,43],[27,44,27,46],[25,42,25,43],[19,15,19,37],[19,38,19,39],[19,40,19,41],[19,42,19,43],[19,44,19,46],[18,1,18,2],[18,7,19,14],[18,15,18,37],[18,38,18,39],[18,40,18,41],[18,42,18,43],[16,1,16,2],[16,3,27,6],[16,7,16,14],[16,15,16,37],[16,38,16,39],[16,40,16,41],[16,42,16,43],[16,44,16,46],[17,1,17,2],[17,7,17,14],[17,15,17,37],[17,38,17,39],[17,40,17,41],[17,42,17,43],[17,44,17,46],[20,44,20,46],[20,1,20,2],[20,7,20,14],[20,15,20,37],[20,38,20,39],[20,40,20,41],[20,42,20,43],[18,44,18,46],[19,1,19,2],[12,1,15,2],[12,3,15,14],[12,15,15,37],[12,38,12,43],[12,44,15,46],[11,1,11,46],[13,38,15,39],[13,40,15,41],[13,42,13,43],[14,42,15,43],[0,1,0,46],[1,1,1,46],[2,1,2,46],[4,1,10,6],[4,7,4,14],[4,15,4,37],[4,38,4,46],[5,7,6,14],[5,15,6,37],[3,1,3,46],[7,7,10,14],[5,38,6,46],[7,15,8,37],[7,38,8,46],[9,15,10,37],[9,38,10,46]]}
[null,"耐火クロススクリーン　別記第三号（A４)　"]
[null,"検査結果表"]
[null,"（耐火クロススクリーン）"]
[]
[null,"当該検査に関与した検査者",null,null,null,null,null,null,null,null,null,null,null,null,null,"氏　　　　　名",null,null,null,null,null,null,null,null,null,null,null,null,null,null,null,null,null,null,null,null,null,null,"検査者番号"]
[null,null,null,null,null,null,null,"代表となる検査者",null,null,null,null,null,null,null,{"$f":"IF(第二面!S32<>\"\",第二面!S32,\"\")","v":""},null,null,null,null,null,null,null,null,null,null,null,null,null,null,null,null,null,null,null,null,null,null,{"$f":"IF(P8<>\"\",1,\"\")","v":""}]
[]
[null,null,null,null,null,null,null,"その他の検査者",null,null,null,null,null,null,null,{"$f":"IF(第二面!S42<>\"\",第二面!S42,\"\")","v":""},null,null,null,null,null,null,null,null,null,null,null,null,null,null,null,null,null,null,null,null,null,null,{"$f":"IF(P8<>\"\",2,\"\")","v":""}]
[]
[null,null,null,null,null,null,null,null,null,null,null,null,null,null,null,{"$f":"IF('第二面  (別紙)'!Q18<>\"\",'第二面  (別紙)'!Q18,\"\")","v":""},null,null,null,null,null,null,null,null,null,null,null,null,null,null,null,null,null,null,null,null,null,null,{"$f":"IF(P10<>\"\",3,\"\")","v":""}]
[]
[]
[null,"番号",null,"検　査　項　目　",null,null,null,null,null,null,null,null,null,null,null,"検　査　事　項",null,null,null,null,null,null,null,null,null,null,null,null,null,null,null,null,null,null,null,null,null,null,"検査結果",null,null,null,null,null,"担当\n検査者\n番号",null,null,"該当 　しない　項目"]
[null,null,null,null,null,null,null,null,null,null,null,null,null,null,null,null,null,null,null,null,null,null,null,null,null,null,null,null,null,null,null,null,null,null,null,null,null,null,"指摘\nなし",null,"要是正"]
[null,null,null,null,null,null,null,null,null,null,null,null,null,null,null,null,null,null,null,null,null,null,null,null,null,null,null,null,null,null,null,null,null,null,null,null,null,null,null,null,null,null,"既存\n不適格"]
[]
[null,"(1)",null,"耐火クロススクリーン",null,null,null,"設置場所の周囲状況",null,null,null,null,null,null,null,"閉鎖の障害となる物品の放置の状況",null,null,null,null,null,null,null,null,null,null,null,null,null,null,null,null,null,null,null,null,null,null,null,null,null,null,null,null,null,null,null,null,null,null,null,null,null,null,null,null,null,null,null,null,null,null,null,null,null,null,"  (1)  設置場所の周囲状況","耐火クロススクリーン：設置場所の周囲状況"]
[null,"(2)",null,null,null,null,null,"駆動装置",null,null,null,null,null,null,null,"ローラチェーンの劣化及び損傷の状況",null,null,null,null,null,null,null,null,null,null,null,null,null,null,null,null,null,null,null,null,null,null,null,null,null,null,null,null,null,null,null,null,null,null,null,null,null,null,null,null,null,null,null,null,null,null,null,null,null,null,"  (2)  駆動装置","耐火クロススクリーン：駆動装置"]
[null,"(3)",null,null,null,null,null,"カーテン部 ",null,null,null,null,null,null,null,"耐火クロス及び座板の劣化及び損傷の状況",null,null,null,null,null,null,null,null,null,null,null,null,null,null,null,null,null,null,null,null,null,null,null,null,null,null,null,null,null,null,null,null,null,null,null,null,null,null,null,null,null,null,null,null,null,null,null,null,null,null,"  (3)  カーテン部","耐火クロススクリーン：カーテン部"]
[null,"(4)",null,null,null,null,null,null,null,null,null,null,null,null,null,"吊り元の劣化及び損傷並びに固定の状況",null,null,null,null,null,null,null,null,null,null,null,null,null,null,null,null,null,null,null,null,null,null,null,null,null,null,null,null,null,null,null,null,null,null,null,null,null,null,null,null,null,null,null,null,null,null,null,null,null,null,"  (4)  カーテン部","耐火クロススクリーン：カーテン部"]
[null,"(5)",null,null,null,null,null,"ケース",null,null,null,null,null,null,null,"劣化及び損傷の状況",null,null,null,null,null,null,null,null,null,null,null,null,null,null,null,null,null,null,null,null,null,null,null,null,null,null,null,null,null,null,null,null,null,null,null,null,null,null,null,null,null,null,null,null,null,null,null,null,null,null,"  (5)  ケース","耐火クロススクリーン：ケース"]
[null,"(6)",null,null,null,null,null,"まぐさ及びガイドレール",null,null,null,null,null,null,null,"劣化及び損傷の状況",null,null,null,null,null,null,null,null,null,null,null,null,null,null,null,null,null,null,null,null,null,null,null,null,null,null,null,null,null,null,null,null,null,null,null,null,null,null,null,null,null,null,null,null,null,null,null,null,null,null,"  (6)  まぐさ及びガイドレール","耐火クロススクリーン：まぐさ及びガイドレール"]
[null,null,null,null,null,null,null,null,null,null,null,null,null,null,null,null,null,null,null,null,null,null,null,null,null,null,null,null,null,null,null,null,null,null,null,null,null,null,null,null,null,null,null,null,null,null,null,null,null,null,null,null,null,null,null,null,null,null,null,null,null,null,null,null,null,null,"  (7)  危害防止装置","耐火クロススクリーン：危害防止装置"]
[null,"(7)",null,null,null,null,null,"危害防止装置",null,null,null,null,null,null,null,"危害防止用連動中継器の配線の状況",null,null,null,null,null,null,null,null,null,null,null,null,null,null,null,null,null,null,null,null,null,null,null,null,null,null,null,null,null,null,null,null,null,null,null,null,null,null,null,null,null,null,null,null,null,null,null,null,null,null,"  (8)  危害防止装置","耐火クロススクリーン：危害防止装置"]
[null,"(8)",null,null,null,null,null,null,null,null,null,null,null,null,null,"危害防止装置用予備電源の劣化及び損傷の状況",null,null,null,null,null,null,null,null,null,null,null,null,null,null,null,null,null,null,null,null,null,null,null,null,null,null,null,null,null,null,null,null,null,null,null,null,null,null,null,null,null,null,null,null,null,null,null,null,null,null,"  (9)  危害防止装置","耐火クロススクリーン：危害防止装置"]
[null,"(9)",null,null,null,null,null,null,null,null,null,null,null,null,null,"危害防止装置用予備電源の容量の状況",null,null,null,null,null,null,null,null,null,null,null,null,null,null,null,null,null,null,null,null,null,null,null,null,null,null,null,null,null,null,null,null,null,null,null,null,null,null,null,null,null,null,null,null,null,null,null,null,null,null," (10)  危害防止装置","耐火クロススクリーン：危害防止装置"]
[null,"(10)",null,null,null,null,null,null,null,null,null,null,null,null,null,"座板感知部の劣化及び損傷並びに作動の状況",null,null,null,null,null,null,null,null,null,null,null,null,null,null,null,null,null,null,null,null,null,null,null,null,null,null,null,null,null,null,null,null,null,null,null,null,null,null,null,null,null,null,null,null,null,null,null,null,null,null," (11)  危害防止装置","耐火クロススクリーン： 危害防止装置"]
[null,"(11)",null,null,null,null,null,null,null,null,null,null,null,null,null,"作動の状況",null,null,null,null,null,null,null,null,null,null,null,null,null,null,null,null,null,null,null,null,null,null,null,null,null,null,null,null,null,null,null,null,null,null,null,null,null,null,null,null,null,null,null,null,null,null,null,null,null,null," (12)  煙感知器、熱煙複合式感知器及び熱感知器","連動機構： 煙感知器、熱煙複合式感知器及び熱感知器"]
[null,"(12)",null,"連動機構",null,null,null,"煙感知器、熱煙複合式感知器及び熱感知器",null,null,null,null,null,null,null,"設置位置",null,null,null,null,null,null,null,null,null,null,null,null,null,null,null,null,null,null,null,null,null,null,null,null,null,null,null,null,null,null,null,null,null,null,null,null,null,null,null,null,null,null,null,null,null,null,null,null,null,null," (13)  煙感知器、熱煙複合式感知器及び熱感知器","連動機構：煙感知器、熱煙複合式感知器及び熱感知器"]
[null,"(13)",null,null,null,null,null,null,null,null,null,null,null,null,null,"感知の状況",null,null,null,null,null,null,null,null,null,null,null,null,null,null,null,null,null,null,null,null,null,null,null,null,null,null,null,null,null,null,null,null,null,null,null,null,null,null,null,null,null,null,null,null,null,null,null,null,null,null," (14)  連動制御器","連動機構：連動制御器"]
[null,"(14)",null,null,null,null,null,"連動制御器",null,null,null,null,null,null,null,"スイッチ類及び表示灯の状況",null,null,null,null,null,null,null,null,null,null,null,null,null,null,null,null,null,null,null,null,null,null,null,null,null,null,null,null,null,null,null,null,null,null,null,null,null,null,null,null,null,null,null,null,null,null,null,null,null,null," (15)  連動制御器","連動機構：連動制御器"]
[null,"(15)",null,null,null,null,null,null,null,null,null,null,null,null,null,"結線接続の状況",null,null,null,null,null,null,null,null,null,null,null,null,null,null,null,null,null,null,null,null,null,null,null,null,null,null,null,null,null,null,null,null,null,null,null,null,null,null,null,null,null,null,null,null,null,null,null,null,null,null," (16)  連動制御器","連動機構： 連動制御器"]
[null,"(16)",null,null,null,null,null,null,null,null,null,null,null,null,null,"接地の状況",null,null,null,null,null,null,null,null,null,null,null,null,null,null,null,null,null,null,null,null,null,null,null,null,null,null,null,null,null,null,null,null,null,null,null,null,null,null,null,null,null,null,null,null,null,null,null,null,null,null," (17)  連動制御器","連動機構：連動制御器"]
[null,"(17)",null,null,null,null,null,null,null,null,null,null,null,null,null,"予備電源への切り替えの状況",null,null,null,null,null,null,null,null,null,null,null,null,null,null,null,null,null,null,null,null,null,null,null,null,null,null,null,null,null,null,null,null,null,null,null,null,null,null,null,null,null,null,null,null,null,null,null,null,null,null," (18)  連動機構用予備電源","連動機構：連動機構用予備電源"]
[null,"(18)",null,null,null,null,null,"連動機構用予備電源",null,null,null,null,null,null,null,"劣化及び損傷の状況",null,null,null,null,null,null,null,null,null,null,null,null,null,null,null,null,null,null,null,null,null,null,null,null,null,null,null,null,null,null,null,null,null,null,null,null,null,null,null,null,null,null,null,null,null,null,null,null,null,null," (19)  連動機構用予備電源","連動機構：連動機構用予備電源"]
[null,"(19)",null,null,null,null,null,null,null,null,null,null,null,null,null,"容量の状況",null,null,null,null,null,null,null,null,null,null,null,null,null,null,null,null,null,null,null,null,null,null,null,null,null,null,null,null,null,null,null,null,null,null,null,null,null,null,null,null,null,null,null,null,null,null,null,null,null,null," (20)  自動閉鎖装置","連動機構：自動閉鎖装置"]
[null,"(20)",null,null,null,null,null,"自動閉鎖装置",null,null,null,null,null,null,null,"設置の状況",null,null,null,null,null,null,null,null,null,null,null,null,null,null,null,null,null,null,null,null,null,null,null,null,null,null,null,null,null,null,null,null,null,null,null,null,null,null,null,null,null,null,null,null,null,null,null,null,null,null," (21)  手動閉鎖装置","連動機構：手動閉鎖装置"]
[null,"(21)",null,null,null,null,null,"手動閉鎖装置",null,null,null,null,null,null,null,"設置の状況",null,null,null,null,null,null,null,null,null,null,null,null,null,null,null,null,null,null,null,null,null,null,null,null,null,null,null,null,null,null,null,null,null,null,null,null,null,null,null,null,null,null,null,null,null,null,null,null,null,null," (22)  総合的な作動の状況"," 総合的な作動の状況"]
[null,"(22)",null,"総合的な作動の状況",null,null,null,null,null,null,null,null,null,null,null,"耐火クロススクリーンの閉鎖の状況",null,null,null,null,null,null,null,null,null,null,null,null,null,null,null,null,null,null,null,null,null,null,null,null,null,null,null,null,null,null,null,null,null,null,null,null,null,null,null,null,null,null,null,null,null,null,null,null,null,null," (23)  総合的な作動の状況"," 総合的な作動の状況"]
[null,"(23)",null,null,null,null,null,null,null,null,null,null,null,null,null,"防火区画の形成の状況"]
[null,"上記以外の検査項目"]
[]
[]
[]
[]
[]
[]
[]
[]
[]
[]
[null,"特記事項"]
[null,"番号",null,"検査項目",null,null,null,null,null,null,null,null,null,null,null,"指摘の具体的内容等",null,null,null,null,null,null,null,null,null,null,null,null,null,"改善の具体的内容等",null,null,null,null,null,null,null,null,null,null,null,null,"改善（予定）年月"]
[null,null,null,{"$f":"IF(B54=\"\",\"\",VLOOKUP(B54,$BO$17:$BP$39,2,0))","v":""}]
[null,null,null,{"$f":"IF(B55=\"\",\"\",VLOOKUP(B55,$BO$17:$BP$39,2,0))","v":""}]
[null,null,null,""]
[null,null,null,""]
[null,null,null,""]
[null,null,null,""]
[null,null,null,""]
[null,null,null,""]
[null,null,null,""]
[null,null,null,""]
[null,null,null,""]
[null,null,null,""]
[null,null,null,""]
[null,null,null,""]
[null,null,null,""]
[null,null,null,""]
[null,null,null,""]
[null,null,null,""]
[null,null,null,""]
[null,null,null,""]
[]
[null,"（注意）"]
[null,"①","　この書類は、建築物ごとに作成してください。"]
[null,"②","　記入欄が不足する場合は、枠を拡大、行を追加して記入するか、別紙に必要な事項を記入して添えてください。"]
[null,"③","　「当該検査に関与した検査者」欄は、建築基準法施行規則別記第36の８様式第二面４欄に記入した検査者について記入"]
[null,null,"　し、「検査者番号」欄に検査者を特定できる番号、記号等を記入してください。当該防火設備の検査を行った検査者が"]
[null,null,"  １人の場合は、その他の検査者欄は削除して構いません。"]
[null,"④","　該当しない検査項目がある場合は、当該項目の「番号」欄から「担当検査者番号」欄までを取消線で抹消してください。"]
[null,"⑤","　「検査結果」欄は、別表（い）欄に掲げる各検査項目ごとに記入してください。"]
[null,"⑥","　「検査結果」欄のうち「要是正」欄は、別表（い）欄に掲げる検査項目について同表（ろ）欄に掲げる検査事項のいず"]
[null,null,"  れかが同表（に）欄に掲げる判定基準に該当する場合に○印を記入してください。"]
[null,"⑦","　「検査結果」欄のうち「指摘なし」欄は、⑥に該当しない場合に○印を記入してください。"]
[null,"⑧","　「既存不適格」欄は、「要是正」欄に○印を記入した場合で、建築基準法第３条第２項の規定の適用を受けているもの"]
[null,null,"  であることが確認されたときは、○印を記入してください。"]
[null,"⑨","　「担当検査者番号」欄は、「検査に関与した検査者」欄で記入した番号、記号等を記入してください。ただし、当該防"]
[null,null,"　火設備の検査を行った検査者が１人の場合は、記入しなくても構いません。"]
[null,"⑩","　「上記以外の検査項目」欄は、第１ただし書の規定により特定行政庁が検査項目を追加したときに、当該検査項目を追"]
[null,null,"  加し、⑤から⑨に準じて検査結果等を記入してください。また、第１第２項の規定により同項に規定する図書等に検査"]
[null,null,"  の方法が記載されている場合に、当該図書等に記載されている検査項目を追加し、⑤から⑨に準じて検査結果等を記入"]
[null,null,"  してください。なお、これらの項目がない場合は、この欄を削除して構いません。"]
[null,"⑪","　「特記事項」は、検査の結果、要是正の指摘があった場合のほか、指摘がない場合にあっても特記すべき事項がある場"]
[null,null,"　合に、該当する検査項目の番号、検査項目を記入し、「指摘の具体的内容等」欄に指摘又は特記すべき事項の具体的内"]
[null,null,"　容を記入するとともに、改善済みの場合及び改善策が明らかになっている場合は「改善策の具体的内容等」欄にその内"]
[null,null,"　容を記入し、改善した場合は「改善（予定）年月」欄に当該年月を記入し、改善予定年月が明らかになっている場合は"]
[null,null,"　「改善（予定）年月」欄に当該年月を（　）書きで記入してください。"]
[null,"⑫","　各階平面図を別添１の様式に従い添付し、耐火クロススクリーンの設置されている箇所及び指摘(特記すべき事項を含"]
[null,null,"　む）のあった箇所を明記してください。なお、別添１の様式は別記第一号、別記第三号又は別記第四号の各々の別添１"]
[null,null,"　の様式に記載すべき事項を合わせて記載することとして構いません。"]
[null,"⑬","　要是正とされた検査項目（既存不適格の場合を除く。）については、要是正とされた部分を撮影した写真を別添２の"]
[null,null,"　様式に従い添付するとともに、撮影した写真の位置を別添１の様式に明記してください。"]

{"sheet":"別記第四号（ドレンチャー）","index":8,"n_rows":105,"n_cols":68,"rows_kept":105,"cut":false,"hidden":false,"merged":[[74,1,74,2],[74,3,74,14],[74,15,74,28],[74,29,74,41],[74,42,74,46],[72,1,72,2],[72,3,72,14],[72,15,72,28],[72,29,72,41],[72,42,72,46],[73,1,73,2],[73,3,73,14],[73,15,73,28],[73,29,73,41],[73,42,73,46],[70,42,70,46],[71,1,71,2],[71,3,71,14],[71,15,71,28],[71,29,71,41],[71,42,71,46],[68,1,68,2],[68,3,68,14],[68,15,68,28],[68,29,68,41],[68,42,68,46],[69,1,69,2],[69,3,69,14],[69,15,69,28],[69,29,69,41],[69,42,69,46],[70,1,70,2],[70,3,70,14],[70,15,70,28],[70,29,70,41],[66,1,66,2],[66,3,66,14],[66,15,66,28],[66,29,66,41],[66,42,66,46],[67,1,67,2],[67,3,67,14],[67,15,67,28],[67,29,67,41],[67,42,67,46],[64,1,64,2],[64,3,64,14],[64,15,64,28],[64,29,64,41],[64,42,64,46],[65,1,65,2],[65,3,65,14],[65,15,65,28],[65,29,65,41],[65,42,65,46],[52,1,52,2],[52,3,52,37],[52,38,52,39],[52,40,52,41],[52,42,52,43],[52,44,52,46],[60,1,60,2],[60,3,60,14],[60,15,60,28],[60,29,60,41],[60,42,60,46],[58,1,58,2],[58,3,58,14],[58,15,58,28],[58,29,58,41],[58,42,58,46],[55,42,55,46],[56,1,56,2],[56,3,56,14],[56,15,56,28],[56,29,56,41],[56,42,56,46],[55,1,55,2],[55,3,55,14],[50,1,50,2],[50,3,50,37],[50,38,50,39],[50,40,50,41],[50,42,50,43],[50,44,50,46],[51,1,51,2],[51,3,51,37],[51,38,51,39],[51,40,51,41],[51,42,51,43],[51,44,51,46],[48,1,48,2],[48,3,48,37],[48,38,48,39],[48,40,48,41],[48,42,48,43],[48,44,48,46],[49,1,49,2],[49,3,49,37],[49,38,49,39],[49,40,49,41],[49,42,49,43],[49,44,49,46],[34,47,34,49],[35,47,35,49],[36,47,36,49],[37,47,37,49],[38,47,38,49],[39,47,39,49],[21,47,21,49],[40,47,40,49],[41,47,41,49],[25,47,25,49],[26,47,26,49],[27,47,27,49],[28,47,28,49],[29,47,29,49],[30,47,30,49],[31,47,31,49],[32,47,32,49],[33,47,33,49],[22,47,22,49],[12,47,15,49],[16,47,16,49],[17,47,17,49],[18,47,18,49],[19,47,19,49],[20,47,20,49],[23,47,23,49],[24,47,24,49],[57,1,57,2],[57,3,57,14],[57,15,57,28],[57,29,57,41],[57,42,57,46],[54,3,54,14],[54,15,54,28],[54,29,54,41],[54,42,54,46],[54,1,54,2],[26,40,26,41],[26,42,26,43],[26,44,26,46],[24,15,24,37],[25,15,25,37],[26,15,26,37],[55,15,55,28],[55,29,55,41],[24,38,24,39],[24,40,24,41],[24,42,24,43],[24,44,24,46],[25,38,25,39],[25,40,25,41],[25,42,25,43],[25,44,25,46],[44,40,44,41],[44,42,44,43],[44,44,44,46],[42,1,42,46],[43,1,43,2],[43,3,43,37],[43,38,43,39],[43,40,43,41],[43,42,43,43],[43,44,43,46],[40,44,40,46],[41,1,41,2],[41,15,41,37],[41,38,41,39],[22,44,22,46],[24,1,24,2],[25,1,25,2],[26,1,26,2],[21,1,21,2],[21,15,21,37],[21,38,21,39],[26,38,26,39],[112,2,112,46],[90,2,90,46],[84,2,84,46],[77,2,77,46],[78,2,78,46],[79,2,79,46],[53,1,53,46],[45,1,45,2],[45,3,45,37],[45,38,45,39],[45,40,45,41],[45,42,45,43],[45,44,45,46],[44,1,44,2],[44,3,44,37],[44,38,44,39],[100,2,100,46],[101,2,101,46],[102,2,102,46],[103,2,103,46],[104,2,104,46],[105,2,105,46],[94,2,94,46],[95,2,95,46],[96,2,96,46],[97,2,97,46],[98,2,98,46],[99,2,99,46],[114,2,114,46],[115,2,115,46],[116,2,116,46],[117,2,117,46],[106,2,106,46],[107,2,107,46],[108,2,108,46],[109,2,109,46],[110,2,110,46],[111,2,111,46],[113,2,113,46],[90,62,90,69],[91,2,91,46],[91,62,91,69],[92,2,92,46],[93,2,93,46],[87,2,87,46],[87,62,87,69],[88,2,88,46],[88,62,88,69],[89,2,89,46],[89,62,89,69],[84,62,84,69],[85,2,85,46],[85,62,85,69],[86,2,86,46],[86,62,86,69],[81,2,81,46],[81,62,81,69],[82,2,82,46],[82,62,82,69],[83,2,83,46],[83,62,83,69],[79,62,79,69],[80,2,80,46],[80,62,80,69],[59,1,59,2],[59,3,59,14],[59,15,59,28],[59,29,59,41],[59,42,59,46],[76,1,76,46],[61,1,61,2],[61,3,61,14],[61,15,61,28],[61,29,61,41],[61,42,61,46],[62,1,62,2],[62,3,62,14],[62,15,62,28],[62,29,62,41],[62,42,62,46],[63,1,63,2],[63,3,63,14],[63,15,63,28],[63,29,63,41],[63,42,63,46],[46,1,46,2],[46,3,46,37],[46,38,46,39],[46,40,46,41],[46,42,46,43],[46,44,46,46],[47,1,47,2],[47,3,47,37],[47,38,47,39],[47,40,47,41],[47,42,47,43],[47,44,47,46],[41,40,41,41],[41,42,41,43],[41,44,41,46],[40,1,40,2],[40,3,41,14],[40,15,40,37],[40,38,40,39],[40,40,40,41],[40,42,40,43],[38,44,38,46],[39,1,39,2],[39,7,39,14],[39,15,39,37],[39,38,39,39],[39,40,39,41],[39,42,39,43],[39,44,39,46],[38,1,38,2],[38,7,38,14],[38,15,38,37],[38,38,38,39],[38,40,38,41],[38,42,38,43],[36,44,36,46],[37,1,37,2],[37,15,37,37],[37,38,37,39],[37,40,37,41],[37,42,37,43],[37,44,37,46],[36,1,36,2],[36,7,37,14],[36,15,36,37],[36,38,36,39],[36,40,36,41],[36,42,36,43],[35,1,35,2],[35,15,35,37],[35,38,35,39],[35,40,35,41],[35,42,35,43],[35,44,35,46],[34,1,34,2],[34,15,34,37],[34,38,34,39],[34,40,34,41],[34,42,34,43],[34,44,34,46],[32,40,32,41],[32,42,32,43],[32,44,32,46],[33,1,33,2],[33,15,33,37],[33,38,33,39],[33,40,33,41],[33,42,33,43],[33,44,33,46],[28,1,28,2],[28,15,28,37],[28,38,28,39],[28,40,28,41],[28,42,28,43],[28,44,28,46],[30,42,30,43],[30,44,30,46],[31,1,31,2],[31,15,31,37],[31,38,31,39],[31,40,31,41],[31,42,31,43],[31,44,31,46],[30,1,30,2],[30,3,39,6],[30,7,31,14],[30,15,30,37],[30,38,30,39],[30,40,30,41],[32,1,32,2],[32,7,35,14],[32,15,32,37],[32,38,32,39],[23,1,23,2],[23,15,23,37],[23,38,23,39],[23,40,23,41],[23,42,23,43],[23,44,23,46],[22,1,22,2],[22,7,29,14],[22,15,22,37],[22,38,22,39],[22,40,22,41],[22,42,22,43],[27,1,27,2],[27,15,27,37],[27,38,27,39],[27,40,27,41],[29,1,29,2],[29,15,29,37],[29,38,29,39],[29,40,29,41],[29,42,29,43],[29,44,29,46],[27,42,27,43],[27,44,27,46],[18,1,18,2],[18,15,18,37],[18,38,18,39],[18,40,18,41],[18,42,18,43],[20,44,20,46],[20,7,21,14],[21,40,21,41],[21,42,21,43],[20,1,20,2],[20,15,20,37],[20,38,20,39],[20,40,20,41],[20,42,20,43],[21,44,21,46],[16,1,16,2],[16,3,29,6],[16,7,16,14],[16,15,16,37],[16,38,16,39],[16,40,16,41],[16,42,16,43],[16,44,16,46],[17,1,17,2],[17,7,17,14],[17,15,17,37],[17,38,17,39],[17,40,17,41],[17,42,17,43],[17,44,17,46],[18,44,18,46],[19,1,19,2],[19,15,19,37],[19,38,19,39],[19,40,19,41],[19,42,19,43],[19,44,19,46],[19,7,19,14],[18,7,18,14],[12,1,15,2],[12,3,15,14],[12,15,15,37],[12,38,12,43],[12,44,15,46],[11,1,11,46],[13,38,15,39],[13,40,15,41],[13,42,13,43],[14,42,15,43],[0,1,0,46],[1,1,1,46],[2,1,2,46],[4,1,10,6],[4,7,4,14],[4,15,4,37],[4,38,4,46],[5,7,6,14],[5,15,6,37],[3,1,3,46],[7,7,10,14],[5,38,6,46],[7,15,8,37],[7,38,8,46],[9,15,10,37],[9,38,10,46]]}
[null,"ドレンチャー等　別記第四号（A４)　"]
[null,"検査結果表"]
[null,"（ドレンチャーその他の水幕を形成する防火設備）"]
[]
[null,"当該検査に関与した検査者",null,null,null,null,null,null,null,null,null,null,null,null,null,"氏　　　　　名",null,null,null,null,null,null,null,null,null,null,null,null,null,null,null,null,null,null,null,null,null,null,"検査者番号"]
[null,null,null,null,null,null,null,"代表となる検査者",null,null,null,null,null,null,null,{"$f":"IF(第二面!S32<>\"\",第二面!S32,\"\")","v":""},null,null,null,null,null,null,null,null,null,null,null,null,null,null,null,null,null,null,null,null,null,null,{"$f":"IF(P8<>\"\",1,\"\")","v":""}]
[]
[null,null,null,null,null,null,null,"その他の検査者",null,null,null,null,null,null,null,{"$f":"IF(第二面!S42<>\"\",第二面!S42,\"\")","v":""},null,null,null,null,null,null,null,null,null,null,null,null,null,null,null,null,null,null,null,null,null,null,{"$f":"IF(P8<>\"\",2,\"\")","v":""}]
[]
[null,null,null,null,null,null,null,null,null,null,null,null,null,null,null,{"$f":"IF('第二面  (別紙)'!Q18<>\"\",'第二面  (別紙)'!Q18,\"\")","v":""},null,null,null,null,null,null,null,null,null,null,null,null,null,null,null,null,null,null,null,null,null,null,{"$f":"IF(P10<>\"\",3,\"\")","v":""}]
[]
[]
[null,"番号",null,"検　査　項　目　",null,null,null,null,null,null,null,null,null,null,null,"検　査　事　項",null,null,null,null,null,null,null,null,null,null,null,null,null,null,null,null,null,null,null,null,null,null,"検査結果",null,null,null,null,null,"担当\n検査者\n番号",null,null,"該当　 しない　項目"]
[null,null,null,null,null,null,null,null,null,null,null,null,null,null,null,null,null,null,null,null,null,null,null,null,null,null,null,null,null,null,null,null,null,null,null,null,null,null,"指摘\nなし",null,"要是正"]
[null,null,null,null,null,null,null,null,null,null,null,null,null,null,null,null,null,null,null,null,null,null,null,null,null,null,null,null,null,null,null,null,null,null,null,null,null,null,null,null,null,null,"既存\n不適格"]
[]
[null,"(1)",null,"ドレンチャー等",null,null,null,"設置場所の周囲状況",null,null,null,null,null,null,null,"作動の障害となる物品の放置の状況",null,null,null,null,null,null,null,null,null,null,null,null,null,null,null,null,null,null,null,null,null,null,null,null,null,null,null,null,null,null,null,null,null,null,null,null,null,null,null,null,null,null,null,null,null,null,null,null,null,null,"  (1)  設置場所の周囲状況","ドレンチャー等：設置場所の周囲状況"]
[null,"(2)",null,null,null,null,null,"散水ヘッド ",null,null,null,null,null,null,null,"散水ヘッドの設置の状況",null,null,null,null,null,null,null,null,null,null,null,null,null,null,null,null,null,null,null,null,null,null,null,null,null,null,null,null,null,null,null,null,null,null,null,null,null,null,null,null,null,null,null,null,null,null,null,null,null,null,"  (2)  散水ヘッド ","ドレンチャー等：散水ヘッド "]
[null,"(3)",null,null,null,null,null,"開閉弁",null,null,null,null,null,null,null,"開閉弁の状況",null,null,null,null,null,null,null,null,null,null,null,null,null,null,null,null,null,null,null,null,null,null,null,null,null,null,null,null,null,null,null,null,null,null,null,null,null,null,null,null,null,null,null,null,null,null,null,null,null,null,"  (3)  開閉弁","ドレンチャー等：開閉弁"]
[null,"(4)",null,null,null,null,null,"排水設備",null,null,null,null,null,null,null,"排水の状況",null,null,null,null,null,null,null,null,null,null,null,null,null,null,null,null,null,null,null,null,null,null,null,null,null,null,null,null,null,null,null,null,null,null,null,null,null,null,null,null,null,null,null,null,null,null,null,null,null,null,"  (4)  排水設備","ドレンチャー等：排水設備"]
[null,"(5)",null,null,null,null,null,"水源",null,null,null,null,null,null,null,"貯水槽の劣化及び損傷、水質並びに水量の状況",null,null,null,null,null,null,null,null,null,null,null,null,null,null,null,null,null,null,null,null,null,null,null,null,null,null,null,null,null,null,null,null,null,null,null,null,null,null,null,null,null,null,null,null,null,null,null,null,null,null,"  (5)  水源","ドレンチャー等：水源"]
[null,"(6)",null,null,null,null,null,null,null,null,null,null,null,null,null,"給水装置の状況",null,null,null,null,null,null,null,null,null,null,null,null,null,null,null,null,null,null,null,null,null,null,null,null,null,null,null,null,null,null,null,null,null,null,null,null,null,null,null,null,null,null,null,null,null,null,null,null,null,null,"  (6)  水源","ドレンチャー等： 水源"]
[null,"(7)",null,null,null,null,null,"加圧送水装置",null,null,null,null,null,null,null,"ポンプ制御盤のスイッチ類及び表示灯の状況",null,null,null,null,null,null,null,null,null,null,null,null,null,null,null,null,null,null,null,null,null,null,null,null,null,null,null,null,null,null,null,null,null,null,null,null,null,null,null,null,null,null,null,null,null,null,null,null,null,null,"  (7)  加圧送水装置","ドレンチャー等：加圧送水装置"]
[null,"(8)",null,null,null,null,null,null,null,null,null,null,null,null,null,"結線接続の状況",null,null,null,null,null,null,null,null,null,null,null,null,null,null,null,null,null,null,null,null,null,null,null,null,null,null,null,null,null,null,null,null,null,null,null,null,null,null,null,null,null,null,null,null,null,null,null,null,null,null,"  (8)  加圧送水装置","ドレンチャー等：加圧送水装置"]
[null,"(9)",null,null,null,null,null,null,null,null,null,null,null,null,null,"接地の状況",null,null,null,null,null,null,null,null,null,null,null,null,null,null,null,null,null,null,null,null,null,null,null,null,null,null,null,null,null,null,null,null,null,null,null,null,null,null,null,null,null,null,null,null,null,null,null,null,null,null,"  (9)  加圧送水装置","ドレンチャー等：加圧送水装置"]
[null,"(10)",null,null,null,null,null,null,null,null,null,null,null,null,null,"ポンプ及び電動機の状況",null,null,null,null,null,null,null,null,null,null,null,null,null,null,null,null,null,null,null,null,null,null,null,null,null,null,null,null,null,null,null,null,null,null,null,null,null,null,null,null,null,null,null,null,null,null,null,null,null,null," (10)  加圧送水装置","ドレンチャー等：加圧送水装置"]
[null,"(11)",null,null,null,null,null,null,null,null,null,null,null,null,null,"加圧送水装置用予備電源への切り替えの状況",null,null,null,null,null,null,null,null,null,null,null,null,null,null,null,null,null,null,null,null,null,null,null,null,null,null,null,null,null,null,null,null,null,null,null,null,null,null,null,null,null,null,null,null,null,null,null,null,null,null," (11)  加圧送水装置","ドレンチャー等：加圧送水装置"]
[null,"(12)",null,null,null,null,null,null,null,null,null,null,null,null,null,"加圧送水装置用予備電源の劣化及び損傷の状況",null,null,null,null,null,null,null,null,null,null,null,null,null,null,null,null,null,null,null,null,null,null,null,null,null,null,null,null,null,null,null,null,null,null,null,null,null,null,null,null,null,null,null,null,null,null,null,null,null,null," (12)  加圧送水装置","ドレンチャー等：加圧送水装置"]
[null,"(13)",null,null,null,null,null,null,null,null,null,null,null,null,null,"加圧送水装置用予備電源の容量の状況",null,null,null,null,null,null,null,null,null,null,null,null,null,null,null,null,null,null,null,null,null,null,null,null,null,null,null,null,null,null,null,null,null,null,null,null,null,null,null,null,null,null,null,null,null,null,null,null,null,null," (13)  加圧送水装置","ドレンチャー等：加圧送水装置"]
[null,"(14)",null,null,null,null,null,null,null,null,null,null,null,null,null,"圧力計、呼水槽、起動用圧力スイッチ等の付属装置の状況",null,null,null,null,null,null,null,null,null,null,null,null,null,null,null,null,null,null,null,null,null,null,null,null,null,null,null,null,null,null,null,null,null,null,null,null,null,null,null,null,null,null,null,null,null,null,null,null,null,null," (14)  加圧送水装置","ドレンチャー等：加圧送水装置"]
[null,"(15)",null,"連動機構",null,null,null,"煙感知器、熱煙複合式感知器及び熱感知器（火災感知用ヘッド等の感知装置を含む。）",null,null,null,null,null,null,null,"設置位置",null,null,null,null,null,null,null,null,null,null,null,null,null,null,null,null,null,null,null,null,null,null,null,null,null,null,null,null,null,null,null,null,null,null,null,null,null,null,null,null,null,null,null,null,null,null,null,null,null,null," (15)  煙感知器、熱煙複合式感知器及び熱感知器","連動機構： 煙感知器、熱煙複合式感知器及び熱感知器"]
[null,"(16)",null,null,null,null,null,null,null,null,null,null,null,null,null,"感知の状況",null,null,null,null,null,null,null,null,null,null,null,null,null,null,null,null,null,null,null,null,null,null,null,null,null,null,null,null,null,null,null,null,null,null,null,null,null,null,null,null,null,null,null,null,null,null,null,null,null,null," (16)  煙感知器、熱煙複合式感知器及び熱感知器","連動機構： 煙感知器、熱煙複合式感知器及び熱感知器"]
[null,"(17)",null,null,null,null,null,"制御盤",null,null,null,null,null,null,null,"スイッチ類及び表示灯の状況",null,null,null,null,null,null,null,null,null,null,null,null,null,null,null,null,null,null,null,null,null,null,null,null,null,null,null,null,null,null,null,null,null,null,null,null,null,null,null,null,null,null,null,null,null,null,null,null,null,null," (17)  制御盤","連動機構：  制御盤"]
[null,"(18)",null,null,null,null,null,null,null,null,null,null,null,null,null,"結線接続の状況",null,null,null,null,null,null,null,null,null,null,null,null,null,null,null,null,null,null,null,null,null,null,null,null,null,null,null,null,null,null,null,null,null,null,null,null,null,null,null,null,null,null,null,null,null,null,null,null,null,null," (18)  制御盤","連動機構： 制御盤"]
[null,"(19)",null,null,null,null,null,null,null,null,null,null,null,null,null,"接地の状況",null,null,null,null,null,null,null,null,null,null,null,null,null,null,null,null,null,null,null,null,null,null,null,null,null,null,null,null,null,null,null,null,null,null,null,null,null,null,null,null,null,null,null,null,null,null,null,null,null,null," (19)  制御盤","連動機構： 制御盤"]
[null,"(20)",null,null,null,null,null,null,null,null,null,null,null,null,null,"予備電源への切り替えの状況",null,null,null,null,null,null,null,null,null,null,null,null,null,null,null,null,null,null,null,null,null,null,null,null,null,null,null,null,null,null,null,null,null,null,null,null,null,null,null,null,null,null,null,null,null,null,null,null,null,null," (20)  制御盤","連動機構： 制御盤"]
[null,"(21)",null,null,null,null,null,"連動機構用予備電源",null,null,null,null,null,null,null,"劣化及び損傷の状況",null,null,null,null,null,null,null,null,null,null,null,null,null,null,null,null,null,null,null,null,null,null,null,null,null,null,null,null,null,null,null,null,null,null,null,null,null,null,null,null,null,null,null,null,null,null,null,null,null,null," (21)  連動機構用予備電源","連動機構： 連動機構用予備電源"]
[null,"(22)",null,null,null,null,null,null,null,null,null,null,null,null,null,"容量の状況",null,null,null,null,null,null,null,null,null,null,null,null,null,null,null,null,null,null,null,null,null,null,null,null,null,null,null,null,null,null,null,null,null,null,null,null,null,null,null,null,null,null,null,null,null,null,null,null,null,null," (22)  連動機構用予備電源","連動機構： 連動機構用予備電源"]
[null,"(23)",null,null,null,null,null,"自動閉鎖装置",null,null,null,null,null,null,null,"設置の状況",null,null,null,null,null,null,null,null,null,null,null,null,null,null,null,null,null,null,null,null,null,null,null,null,null,null,null,null,null,null,null,null,null,null,null,null,null,null,null,null,null,null,null,null,null,null,null,null,null,null," (23)  自動作動装置","連動機構： 自動作動装置"]
[null,"(24)",null,null,null,null,null,"手動閉鎖装置",null,null,null,null,null,null,null,"設置の状況",null,null,null,null,null,null,null,null,null,null,null,null,null,null,null,null,null,null,null,null,null,null,null,null,null,null,null,null,null,null,null,null,null,null,null,null,null,null,null,null,null,null,null,null,null,null,null,null,null,null," (24)  手動作動装置","連動機構：  手動作動装置"]
[null,"(25)",null,"総合的な作動の状況",null,null,null,null,null,null,null,null,null,null,null,"ドレンチャー等の作動の状況",null,null,null,null,null,null,null,null,null,null,null,null,null,null,null,null,null,null,null,null,null,null,null,null,null,null,null,null,null,null,null,null,null,null,null,null,null,null,null,null,null,null,null,null,null,null,null,null,null,null," (25)  総合的な作動の状況","総合的な作動の状況"]
[null,"(26)",null,null,null,null,null,null,null,null,null,null,null,null,null,"防火区画の形成の状況",null,null,null,null,null,null,null,null,null,null,null,null,null,null,null,null,null,null,null,null,null,null,null,null,null,null,null,null,null,null,null,null,null,null,null,null,null,null,null,null,null,null,null,null,null,null,null,null,null,null," (26)  総合的な作動の状況"," 総合的な作動の状況"]
[null,"上記以外の検査項目"]
[]
[]
[]
[]
[]
[]
[]
[]
[]
[]
[null,"特記事項"]
[null,"番号",null,"検査項目",null,null,null,null,null,null,null,null,null,null,null,"指摘の具体的内容等",null,null,null,null,null,null,null,null,null,null,null,null,null,"改善の具体的内容等",null,null,null,null,null,null,null,null,null,null,null,null,"改善（予定）年月"]
[null,null,null,{"$f":"IF(B56=\"\",\"\",VLOOKUP(B56,$BO$17:$BP$42,2,0))","v":""}]
[null,null,null,{"$f":"IF(B57=\"\",\"\",VLOOKUP(B57,$BO$17:$BP$42,2,0))","v":""}]
[null,null,null,""]
[null,null,null,""]
[null,null,null,""]
[null,null,null,""]
[null,null,null,""]
[null,null,null,""]
[null,null,null,""]
[null,null,null,""]
[null,null,null,""]
[null,null,null,""]
[null,null,null,""]
[null,null,null,""]
[null,null,null,""]
[null,null,null,""]
[null,null,null,""]
[null,null,null,""]
[null,null,null,""]
[null,null,null,""]
[]
[null,"（注意）"]
[null,"①","　この書類は、建築物ごとに作成してください。"]
[null,"②","　記入欄が不足する場合は、枠を拡大、行を追加して記入するか、別紙に必要な事項を記入して添えてください。"]
[null,"③","　「当該検査に関与した検査者」欄は、建築基準法施行規則別記第36の８様式第二面４欄に記入した検査者について記入"]
[null,null,"　し、「検査者番号」欄に検査者を特定できる番号、記号等を記入してください。当該防火設備の検査を行った検査者が"]
[null,null,"  １人の場合は、その他の検査者欄は削除して構いません。"]
[null,"④","　該当しない検査項目がある場合は、当該項目の「番号」欄から「担当検査者番号」欄までを取消線で抹消してください。"]
[null,"⑤","　「検査結果」欄は、別表（い）欄に掲げる各検査項目ごとに記入してください。"]
[null,"⑥","　「検査結果」欄のうち「要是正」欄は、別表（い）欄に掲げる検査項目について同表（ろ）欄に掲げる検査事項のいず"]
[null,null,"  れかが同表（に）欄に掲げる判定基準に該当する場合に○印を記入してください。"]
[null,"⑦","　「検査結果」欄のうち「指摘なし」欄は、⑥に該当しない場合に○印を記入してください。"]
[null,"⑧","　「既存不適格」欄は、「要是正」欄に○印を記入した場合で、建築基準法第３条第２項の規定の適用を受けているもの"]
[null,null,"  であることが確認されたときは、○印を記入してください。"]
[null,"⑨","　「担当検査者番号」欄は、「検査に関与した検査者」欄で記入した番号、記号等を記入してください。ただし、当該防"]
[null,null,"　火設備の検査を行った検査者が１人の場合は、記入しなくても構いません。"]
[null,"⑩","　「上記以外の検査項目」欄は、第１ただし書の規定により特定行政庁が検査項目を追加したときに、当該検査項目を追"]
[null,null,"  加し、⑤から⑨に準じて検査結果等を記入してください。また、第１第２項の規定により同項に規定する図書等に検査"]
[null,null,"  の方法が記載されている場合に、当該図書等に記載されている検査項目を追加し、⑤から⑨に準じて検査結果等を記入"]
[null,null,"  してください。なお、これらの項目がない場合は、この欄を削除して構いません。"]
[null,"⑪","　「特記事項」は、検査の結果、要是正の指摘があった場合のほか、指摘がない場合にあっても特記すべき事項がある場"]
[null,null,"　合に、該当する検査項目の番号、検査項目を記入し、「指摘の具体的内容等」欄に指摘又は特記すべき事項の具体的内"]
[null,null,"　容を記入するとともに、改善済みの場合及び改善策が明らかになっている場合は「改善策の具体的内容等」欄にその内"]
[null,null,"　容を記入し、改善した場合は「改善（予定）年月」欄に当該年月を記入し、改善予定年月が明らかになっている場合は"]
[null,null,"　「改善（予定）年月」欄に当該年月を（　）書きで記入してください。"]
[null,"⑫","　各階平面図を別添１の様式に従い添付し、ドレンチャーその他の水幕を形成する防火設備の設置されている箇所及び"]
[null,null,"　指摘(特記すべき事項を含む）のあった箇所を明記してください。なお、別添１の様式は別記第一号、別記第三号又は"]
[null,null,"　別記第四号の各々の別添１の様式に記載すべき事項を合わせて記載することとして構いません。"]
[null,"⑬","　要是正とされた検査項目（既存不適格の場合を除く。）については、要是正とされた部分を撮影した写真を別添２の"]
[null,null,"　様式に従い添付するとともに、撮影した写真の位置を別添１の様式に明記してください。"]

{"sheet":"別添1様式　防火図面","index":9,"n_rows":39,"n_cols":8,"rows_kept":39,"cut":false,"hidden":false,"merged":[[0,7,0,10],[38,0,38,12],[39,0,39,12]]}
["別添１様式（Ａ３）",null,null,null,null,null,null,"検　 査　 結　 果　 図"]
[]
[]
[]
[]
[]
[]
[]
[]
[]
[]
[]
[]
[]
[]
[]
[]
[]
[]
[]
[]
[]
[]
[]
[]
[]
[]
[]
[]
[]
[]
[]
[]
[]
[]
[]
[]
[]
["　注）　各階平面図を添付し、検査の対象となる防火設備の設置されている箇所及び指摘（特記すべき事項を含む）のあった箇所を明記すること。"]

{"sheet":"別添2様式　防火写真 ","index":10,"n_rows":46,"n_cols":91,"rows_kept":46,"cut":false,"hidden":false,"merged":[[74,1,74,47],[8,4,10,11],[45,49,72,73],[45,74,45,95],[46,74,72,95],[11,74,11,95],[12,74,38,95],[39,49,39,95],[40,49,44,51],[40,52,41,59],[40,60,41,79],[40,80,41,95],[42,60,44,79],[42,80,42,95],[43,80,43,82],[43,84,43,88],[6,1,10,3],[6,4,7,11],[9,36,9,40],[6,52,7,59],[8,52,10,59],[6,12,7,31],[6,60,7,79],[6,80,7,95],[8,60,10,79],[8,80,8,95],[9,80,9,82],[9,84,9,88],[9,90,9,95],[10,80,10,95],[0,49,0,95],[1,49,1,95],[2,49,2,95],[3,49,3,95],[4,49,4,95],[4,1,4,47],[5,1,5,47],[3,1,3,47],[0,1,0,47],[1,1,1,47],[2,1,2,47],[5,49,5,95],[6,49,10,51],[40,32,41,47],[42,12,44,31],[45,26,45,47],[42,32,42,47],[43,32,43,34],[43,36,43,40],[43,42,43,47],[44,32,44,47],[6,32,7,47],[8,12,10,31],[8,32,8,47],[9,42,9,47],[9,32,9,34],[10,32,10,47],[37,104,39,123],[43,90,43,95],[44,80,44,95],[46,26,72,47],[11,49,38,73],[42,52,44,59],[11,26,11,47],[42,4,44,11],[45,1,72,25],[11,1,38,25],[40,1,44,3],[40,4,41,11],[39,1,39,47],[12,26,38,47],[40,12,41,31]]}
[]
[]
[]
[null,"別添２様式（A４）",null,null,null,null,null,null,null,null,null,null,null,null,null,null,null,null,null,null,null,null,null,null,null,null,null,null,null,null,null,null,null,null,null,null,null,null,null,null,null,null,null,null,null,null,null,null,null,"別添２様式（A４）"]
[null,"関係写真",null,null,null,null,null,null,null,null,null,null,null,null,null,null,null,null,null,null,null,null,null,null,null,null,null,null,null,null,null,null,null,null,null,null,null,null,null,null,null,null,null,null,null,null,null,null,null,"関係写真"]
[]
[null,"部位",null,null,"番号",null,null,null,null,null,null,null,"検査項目",null,null,null,null,null,null,null,null,null,null,null,null,null,null,null,null,null,null,null,"検査結果",null,null,null,null,null,null,null,null,null,null,null,null,null,null,null,null,"部位",null,null,"番号",null,null,null,null,null,null,null,"検査項目",null,null,null,null,null,null,null,null,null,null,null,null,null,null,null,null,null,null,null,"検査結果"]
[]
[]
[null,null,null,null,null,null,null,null,null,null,null,null,null,null,null,null,null,null,null,null,null,null,null,null,null,null,null,null,null,null,null,null,null,null,null,null,"要是正",null,null,null,null,null,"その他",null,null,null,null,null,null,null,null,null,null,null,null,null,null,null,null,null,null,null,null,null,null,null,null,null,null,null,null,null,null,null,null,null,null,null,null,null,null,null,null,null,"要是正",null,null,null,null,null,"その他"]
[]
[null,"写真貼付",null,null,null,null,null,null,null,null,null,null,null,null,null,null,null,null,null,null,null,null,null,null,null,null," 特記事項",null,null,null,null,null,null,null,null,null,null,null,null,null,null,null,null,null,null,null,null,null,null,"写真貼付",null,null,null,null,null,null,null,null,null,null,null,null,null,null,null,null,null,null,null,null,null,null,null,null," 特記事項"]
[]
[]
[]
[]
[]
[]
[]
[]
[]
[]
[]
[]
[]
[]
[]
[]
[]
[]
[]
[]
[]
[]
[]
[]
[]
[]
[]
[]
[null,"部位",null,null,"番号",null,null,null,null,null,null,null,"検査項目",null,null,null,null,null,null,null,null,null,null,null,null,null,null,null,null,null,null,null,"検査結果",null,null,null,null,null,null,null,null,null,null,null,null,null,null,null,null,"部位",null,null,"番号",null,null,null,null,null,null,null,"検査項目",null,null,null,null,null,null,null,null,null,null,null,null,null,null,null,null,null,null,null,"検査結果"]
[]
[]
[null,null,null,null,null,null,null,null,null,null,null,null,null,null,null,null,null,null,null,null,null,null,null,null,null,null,null,null,null,null,null,null,null,null,null,null,"要是正",null,null,null,null,null,"その他",null,null,null,null,null,null,null,null,null,null,null,null,null,null,null,null,null,null,null,null,null,null,null,null,null,null,null,null,null,null,null,null,null,null,null,null,null,null,null,null,null,"要是正",null,null,null,null,null,"その他"]
[]
[null,"写真貼付",null,null,null,null,null,null,null,null,null,null,null,null,null,null,null,null,null,null,null,null,null,null,null,null," 特記事項",null,null,null,null,null,null,null,null,null,null,null,null,null,null,null,null,null,null,null,null,null,null,"写真貼付",null,null,null,null,null,null,null,null,null,null,null,null,null,null,null,null,null,null,null,null,null,null,null,null," 特記事項"]

{"sheet":"概要書第一面","index":11,"n_rows":46,"n_cols":45,"rows_kept":46,"cut":false,"hidden":false,"merged":[[53,0,53,46],[48,0,48,46],[49,0,49,46],[50,0,50,46],[51,0,51,46],[52,0,52,46],[44,0,44,46],[45,45,45,46],[45,0,45,25],[46,0,46,46],[47,0,47,46],[45,34,45,35],[45,37,45,38],[45,40,45,43],[37,0,37,46],[39,0,39,46],[40,22,40,25],[40,34,40,46],[38,0,38,12],[38,13,38,46],[40,27,40,28],[31,0,31,46],[32,0,32,46],[33,0,33,46],[34,17,34,19],[36,17,36,19],[34,21,34,46],[36,21,36,46],[35,0,35,46],[0,0,0,46],[1,0,1,46],[2,0,2,46],[3,0,3,46],[4,0,4,46],[42,0,42,15],[42,25,42,43],[42,44,42,46],[5,0,5,46],[7,11,7,46],[6,0,6,46],[12,0,12,46],[7,0,7,10],[8,0,8,10],[8,12,8,29],[8,31,8,44],[28,0,28,46],[29,0,29,1],[29,13,29,21],[29,23,29,46],[30,0,30,46],[43,0,43,46],[36,0,36,15],[24,0,24,10],[25,0,25,10],[29,3,29,10],[34,0,34,15],[24,12,24,46],[25,12,25,46],[26,0,26,46],[27,0,27,46],[42,17,42,20],[40,0,40,15],[40,29,40,30],[40,32,40,33],[40,17,40,20],[41,0,41,46],[21,0,21,10],[22,0,22,10],[23,0,23,10],[21,11,21,46],[22,22,22,46],[23,12,23,46],[22,15,22,21],[22,11,22,14],[18,0,18,10],[18,12,18,45],[19,0,19,46],[20,0,20,46],[15,0,15,10],[16,0,16,10],[17,0,17,10],[16,29,16,45],[15,29,15,45],[15,12,15,27],[16,12,16,27],[17,12,17,27],[14,0,14,10],[14,11,14,45],[13,0,13,45],[9,0,9,10],[10,0,10,10],[11,0,11,10],[9,12,9,29],[9,31,9,44],[10,12,10,44],[11,12,11,44]]}
["第三十六号の九様式（第六条、第六条の三、第十一条の四関係）　（Ａ４）"]
[]
["定期検査報告概要書"]
["（防火設備）"]
["（第一面）"]
[]
[]
["　【１. 所有者】"]
["　　　【イ. 氏名のフリガナ】",null,null,null,null,null,null,null,null,null,null,null,{"$f":"IF(第一面!N21<>\"\",第一面!N21,\"\")","v":""},null,null,null,null,null,null,null,null,null,null,null,null,null,null,null,null,null,null,{"$f":"IF(第一面!AG21<>\"\",第一面!AG21,\"\")","v":""}]
["　　　【ロ. 氏名】",null,null,null,null,null,null,null,null,null,null,null,{"$f":"IF(第一面!N22<>\"\",第一面!N22,\"\")","v":""},null,null,null,null,null,null,null,null,null,null,null,null,null,null,null,null,null,null,{"$f":"IF(第一面!AG22<>\"\",第一面!AG22,\"\")","v":""}]
["　　　【ハ. 郵便番号】",null,null,null,null,null,null,null,null,null,null,null,{"$f":"IF(第一面!N23<>\"\",第一面!N23,\"\")","v":""}]
["　　　【ニ. 住所】",null,null,null,null,null,null,null,null,null,null,null,{"$f":"IF(第一面!N24<>\"\",第一面!N24,\"\")","v":""}]
[]
[]
["　【２. 管理者】"]
["　　　【イ. 氏名のフリガナ】",null,null,null,null,null,null,null,null,null,null,null,{"$f":"IF(第一面!N29<>\"\",第一面!N29,\"\")","v":""},null,null,null,null,null,null,null,null,null,null,null,null,null,null,null,null,{"$f":"IF(第一面!AG29<>\"\",第一面!AG29,\"\")","v":""}]
["　　　【ロ. 氏名】",null,null,null,null,null,null,null,null,null,null,null,{"$f":"IF(第一面!N30<>\"\",第一面!N30,\"\")","v":""},null,null,null,null,null,null,null,null,null,null,null,null,null,null,null,null,{"$f":"IF(第一面!AG30<>\"\",第一面!AG30,\"\")","v":""}]
["　　　【ハ. 郵便番号】",null,null,null,null,null,null,null,null,null,null,null,{"$f":"IF(第一面!N31<>\"\",第一面!N31,\"\")","v":""}]
["　　　【ニ. 住所】",null,null,null,null,null,null,null,null,null,null,null,{"$f":"IF(第一面!N32<>\"\",第一面!N32,\"\")","v":""}]
[]
[]
["　【３. 報告対象建築物】"]
["　　　【イ. 所在地】",null,null,null,null,null,null,null,null,null,null,{"$f":"IF(第一面!N37<>\"\",第一面!N37,\"\")","v":"埼玉県"},null,null,null,{"$f":"IF(第一面!R37<>\"\",第一面!R37,\"\")","v":"リスト選択"},null,null,null,null,null,null,{"$f":"IF(第一面!Y37<>\"\",第一面!Y37,\"\")","v":""}]
["　　　【ロ. 名称のフリガナ】",null,null,null,null,null,null,null,null,null,null,null,{"$f":"IF(第一面!N38<>\"\",第一面!N38,\"\")","v":""}]
["　　　【ハ. 名称】",null,null,null,null,null,null,null,null,null,null,null,{"$f":"IF(第一面!N39<>\"\",第一面!N39,\"\")","v":""}]
["　　　【ニ. 用途】",null,null,null,null,null,null,null,null,null,null,null,{"$f":"IF(第一面!N40<>\"\",第一面!N40,\"\")","v":""}]
[]
[]
["　【４. 検査による指摘の概要】"]
[null,null,{"$f":"第一面!C44","v":0},"要是正の指摘あり",null,null,null,null,null,null,null,"（",{"$f":"第一面!M44","v":0},"既存不適格）",null,null,null,null,null,null,null,null,{"$f":"第一面!W44","v":0},"指摘なし"]
[]
[]
[]
["　【5. 不具合の発生状況】"]
["　　　【イ. 不具合】",null,null,null,null,null,null,null,null,null,null,null,null,null,null,null,{"$f":"第二面!T72","v":0},"有",null,null,{"$f":"第二面!Y72","v":0},"無"]
[]
["　　　【ロ. 不具合記録】",null,null,null,null,null,null,null,null,null,null,null,null,null,null,null,{"$f":"第二面!T74","v":0},"有",null,null,{"$f":"第二面!Y74","v":0},"無"]
[]
["　　　【ハ. 不具合の概要】"]
[]
["　　　【ニ. 改善の状況】",null,null,null,null,null,null,null,null,null,null,null,null,null,null,null,{"$f":"第二面!T76","v":0},"実施済",null,null,null,{"$f":"第二面!X76","v":0},"改善予定",null,null,null,"（",{"$f":"第二面!AD76","v":0},null,{"$f":"第二面!AF76","v":0},null,"年",{"$f":"第二面!AI76","v":0},null,"月に改善予定 ）"]
[]
[null,null,null,null,null,null,null,null,null,null,null,null,null,null,null,null,{"$f":"第二面!AR76","v":0},"予定なし",null,null,null,"（","理由：",null,null,null,null,null,null,null,null,null,null,null,null,null,null,null,null,null,null,null,null,null,"）"]
[]
[]
[null,null,null,null,null,null,null,null,null,null,null,null,null,null,null,null,null,null,null,null,null,null,null,null,null,null,"（","台帳番号：",null,null,null,null,{"$f":"第一面!AF47","v":0},"-",{"$f":"第一面!AI47","v":" "},null,"-",{"$f":"第一面!AL47","v":" "},null,"-",{"$f":"第一面!AO47","v":0},null,null,null,"）"]

{"sheet":"概要書第二面","index":12,"n_rows":79,"n_cols":46,"rows_kept":79,"cut":false,"hidden":false,"merged":[[63,1,68,46],[9,0,9,46],[10,0,10,46],[13,45,13,46],[14,45,14,46],[15,45,15,46],[16,0,16,46],[17,0,17,46],[18,0,18,46],[12,37,12,44],[12,0,12,16],[12,17,12,21],[12,22,12,24],[12,26,12,28],[12,30,12,32],[11,0,11,46],[12,45,12,46],[61,0,61,46],[62,0,62,45],[55,10,55,18],[55,20,55,23],[55,29,55,34],[55,36,55,39],[57,10,57,18],[60,0,60,46],[54,0,54,46],[55,0,55,8],[57,0,57,8],[57,20,57,23],[57,29,57,34],[59,0,59,8],[55,25,55,27],[57,25,57,27],[59,25,59,46],[55,41,55,46],[57,41,57,46],[56,0,56,46],[58,0,58,46],[59,10,59,18],[59,20,59,23],[57,36,57,39],[78,0,78,46],[69,0,69,46],[70,0,70,46],[72,0,72,46],[71,35,71,36],[71,38,71,39],[71,41,71,44],[76,0,76,46],[77,0,77,46],[71,0,71,26],[71,45,71,46],[73,0,73,46],[74,0,74,46],[75,0,75,46],[43,0,43,16],[43,18,43,19],[43,21,43,26],[43,28,43,31],[43,33,43,36],[43,38,43,44],[51,10,51,18],[51,20,51,23],[51,0,51,8],[51,25,51,27],[51,29,51,46],[53,10,53,12],[53,14,53,31],[44,0,44,16],[45,0,45,16],[46,0,46,16],[47,0,47,46],[48,0,48,46],[44,17,44,46],[45,17,45,46],[46,17,46,46],[49,0,49,46],[50,0,50,46],[53,0,53,8],[53,32,53,46],[52,0,52,46],[39,0,39,16],[39,36,39,44],[40,0,40,16],[41,0,41,16],[39,17,39,34],[40,17,40,46],[41,17,41,46],[42,17,42,46],[37,0,37,16],[38,0,38,16],[38,18,38,19],[38,25,38,30],[38,32,38,34],[38,36,38,44],[42,0,42,16],[34,0,34,16],[35,0,35,16],[36,0,36,16],[34,17,34,46],[35,17,35,46],[36,17,36,46],[37,17,37,46],[29,0,29,16],[29,36,29,44],[29,17,29,34],[33,0,33,16],[33,18,33,19],[33,21,33,26],[33,28,33,31],[33,33,33,36],[33,38,33,44],[30,0,30,16],[31,0,31,16],[32,0,32,16],[30,17,30,46],[31,17,31,46],[32,17,32,46],[21,18,21,19],[23,18,23,22],[23,24,23,46],[21,40,21,46],[21,37,21,38],[22,0,22,46],[26,0,26,46],[27,0,27,46],[28,21,28,23],[21,0,21,16],[21,21,21,22],[21,23,21,25],[21,27,21,29],[21,31,21,33],[21,35,21,36],[28,0,28,16],[28,18,28,19],[28,25,28,30],[28,32,28,34],[28,36,28,44],[23,0,23,16],[24,0,24,46],[25,0,25,46],[19,0,19,16],[19,21,19,22],[19,23,19,25],[19,27,19,29],[19,31,19,33],[19,17,19,20],[19,35,19,46],[20,0,20,46],[13,0,13,16],[13,18,13,23],[13,25,13,32],[14,0,14,16],[14,17,14,21],[14,22,14,24],[14,26,14,28],[14,30,14,32],[13,34,13,44],[14,37,14,44],[15,34,15,44],[15,0,15,16],[15,18,15,23],[15,25,15,32],[8,28,8,46],[0,0,0,46],[1,0,1,46],[2,0,2,46],[4,0,4,46],[6,0,6,16],[6,17,6,18],[6,19,6,21],[6,26,6,27],[6,28,6,30],[3,0,3,46],[6,22,6,25],[6,31,6,46],[5,0,5,46],[7,0,7,16],[8,0,8,16],[7,19,7,24],[8,19,8,24],[7,17,7,18],[8,17,8,18],[7,28,7,46]]}
["（第二面）"]
[]
["防火設備の状況等"]
[]
[]
["　【１. 建築物の概要】"]
["　　　【イ. 階数】",null,null,null,null,null,null,null,null,null,null,null,null,null,null,null,null,"地上",null,{"$f":"IF(第二面!V7<>\"\",第二面!V7,\"\")","v":""},null,null,"階",null,null,null,"地下",null,{"$f":"IF(第二面!AE7<>\"\",第二面!AE7,\"\")","v":""},null,null,"階"]
["　　　【ロ. 建築面積】",null,null,null,null,null,null,null,null,null,null,null,null,null,null,null,null,null,null,{"$f":"IF(第二面!V8<>\"\",第二面!V8,\"\")","v":""},null,null,null,null,null,null,"㎡"]
["　　　【ハ. 延べ面積】",null,null,null,null,null,null,null,null,null,null,null,null,null,null,null,null,null,null,{"$f":"IF(第二面!V9<>\"\",第二面!V9,\"\")","v":""},null,null,null,null,null,null,"㎡"]
[]
[]
["　【２.　確認済証交付年月日等】"]
["　　　【イ. 確認済証交付年月日】",null,null,null,null,null,null,null,null,null,null,null,null,null,null,null,null,{"$f":"IF(第二面!T13<>\"\",第二面!T13,\"\")","v":""},null,null,null,null,{"$f":"IF(第二面!Y13<>\"\",第二面!Y13,\"\")","v":""},null,null,"年",{"$f":"IF(第二面!AC13<>\"\",第二面!AC13,\"\")","v":""},null,null,"月",{"$f":"IF(第二面!AG13<>\"\",第二面!AG13,\"\")","v":""},null,null,"日",null,"第",null,{"$f":"IF(第二面!AM13<>\"\",第二面!AM13,\"\")","v":""},null,null,null,null,null,null,null,"号"]
["　　　【ロ. 確認済証交付者】",null,null,null,null,null,null,null,null,null,null,null,null,null,null,null,null,{"$f":"IF(第二面!T14<>\"\",第二面!T14,\"\")","v":""},"建築主事",null,null,null,null,null,{"$f":"IF(第二面!AA14<>\"\",第二面!AA14,\"\")","v":""},"指定確認検査機関",null,null,null,null,null,null,null,"（",{"$f":"IF(第二面!AK14<>\"\",第二面!AK14,\"\")","v":""},null,null,null,null,null,null,null,null,null,null,"）"]
["　　　【ハ. 検査済証交付年月日】",null,null,null,null,null,null,null,null,null,null,null,null,null,null,null,null,{"$f":"IF(第二面!T15<>\"\",第二面!T15,\"\")","v":""},null,null,null,null,{"$f":"IF(第二面!Y15<>\"\",第二面!Y15,\"\")","v":""},null,null,"年",{"$f":"IF(第二面!AC15<>\"\",第二面!AC15,\"\")","v":""},null,null,"月",{"$f":"IF(第二面!AG15<>\"\",第二面!AG15,\"\")","v":""},null,null,"日",null,"第",null,{"$f":"IF(第二面!AM15<>\"\",第二面!AM15,\"\")","v":""},null,null,null,null,null,null,null,"号"]
["　　　【ニ. 検査済証交付者】",null,null,null,null,null,null,null,null,null,null,null,null,null,null,null,null,{"$f":"IF(第二面!T16<>\"\",第二面!T16,\"\")","v":""},"建築主事",null,null,null,null,null,{"$f":"IF(第二面!AA16<>\"\",第二面!AA16,\"\")","v":""},"指定確認検査機関",null,null,null,null,null,null,null,"（",{"$f":"IF(第二面!AK16<>\"\",第二面!AK16,\"\")","v":""},null,null,null,null,null,null,null,null,null,null,"）"]
[]
[]
["　【３.　検査日等】"]
["　　　【イ. 今回の検査】",null,null,null,null,null,null,null,null,null,null,null,null,null,null,null,null,null,null,null,null,{"$f":"IF(第二面!X20<>\"\",第二面!X20,\"\")","v":""},null,{"$f":"IF(第二面!Z20<>\"\",第二面!Z20,\"\")","v":""},null,null,"年",{"$f":"IF(第二面!AD20<>\"\",第二面!AD20,\"\")","v":""},null,null,"月",{"$f":"IF(第二面!AH20<>\"\",第二面!AH20,\"\")","v":""},null,null,"日","実施"]
[]
["　　　【ロ. 前回の検査】",null,null,null,null,null,null,null,null,null,null,null,null,null,null,null,null,{"$f":"IF(第二面!T22<>\"\",第二面!T22,\"\")","v":""},"実施",null,"（",{"$f":"IF(第二面!X22<>\"\",第二面!X22,\"\")","v":""},null,{"$f":"IF(第二面!Z22<>\"\",第二面!Z22,\"\")","v":""},null,null,"年",{"$f":"IF(第二面!AD22<>\"\",第二面!AD22,\"\")","v":""},null,null,"月",{"$f":"IF(第二面!AH22<>\"\",第二面!AH22,\"\")","v":""},null,null,"日","報告",null,"）",null,{"$f":"IF(第二面!AP22<>\"\",第二面!AP22,\"\")","v":""},"未実施"]
[]
["　　　【ハ. 前回の検査に関する書類の写し】",null,null,null,null,null,null,null,null,null,null,null,null,null,null,null,null,{"$f":"IF(第二面!T24<>\"\",第二面!T24,\"\")","v":""},"有",null,null,null,null,{"$f":"IF(第二面!Z24<>\"\",第二面!Z24,\"\")","v":""},"無"]
[]
[]
["　【４. 防火設備の検査者】"]
["　（代表となる検査者）"]
["　　　【イ. 資格】",null,null,null,null,null,null,null,null,null,null,null,null,null,null,null,null,"（",{"$f":"IF(第二面!V29<>\"\",第二面!V29,\"\")","v":""},null,"）","建築士",null,null,"（",{"$f":"IF(第二面!AC29<>\"\",第二面!AC29,\"\")","v":""},null,null,null,null,null,"）","登録",null,null,"第",{"$f":"IF(第二面!AM29<>\"\",第二面!AM29,\"\")","v":""},null,null,null,null,null,null,null,null,"号"]
[null,null,null,null,null,null,null,null,null,null,null,null,null,null,null,null,null,"防火設備検査員",null,null,null,null,null,null,null,null,null,null,null,null,null,null,null,null,null,"第",{"$f":"IF(第二面!AM30<>\"\",第二面!AM30,\"\")","v":""},null,null,null,null,null,null,null,null,"号"]
["　　　【ロ. 氏名のフリガナ】",null,null,null,null,null,null,null,null,null,null,null,null,null,null,null,null,{"$f":"IF(第二面!S31<>\"\",第二面!S31,\"\")","v":""}]
["　　　【ハ. 氏名】",null,null,null,null,null,null,null,null,null,null,null,null,null,null,null,null,{"$f":"IF(第二面!S32<>\"\",第二面!S32,\"\")","v":""}]
["　　　【ニ. 勤務先】",null,null,null,null,null,null,null,null,null,null,null,null,null,null,null,null,{"$f":"IF(第二面!S33<>\"\",第二面!S33,\"\")","v":""}]
[null,null,null,null,null,null,null,null,null,null,null,null,null,null,null,null,null,"（",{"$f":"IF(第二面!U34<>\"\",第二面!U34,\"\")","v":""},null,"）","建築士事務所",null,null,null,null,null,"（",{"$f":"IF(第二面!AE34<>\"\",第二面!AE34,\"\")","v":""},null,null,null,"）","知事登録",null,null,null,"第",{"$f":"IF(第二面!AO34<>\"\",第二面!AO34,\"\")","v":""},null,null,null,null,null,null,"号"]
["　　　【ホ. 郵便番号】",null,null,null,null,null,null,null,null,null,null,null,null,null,null,null,null,{"$f":"IF(第二面!S35<>\"\",第二面!S35,\"\")","v":""}]
["　　　【ヘ. 所在地】",null,null,null,null,null,null,null,null,null,null,null,null,null,null,null,null,{"$f":"IF(第二面!S36<>\"\",第二面!S36,\"\")","v":""}]
["　　　【ト. 電話番号】",null,null,null,null,null,null,null,null,null,null,null,null,null,null,null,null,{"$f":"IF(第二面!S37<>\"\",第二面!S37,\"\")","v":""}]
["　（その他の検査者）"]
["　　　【イ. 資格】",null,null,null,null,null,null,null,null,null,null,null,null,null,null,null,null,"（",{"$f":"IF(第二面!V39<>\"\",第二面!V39,\"\")","v":""},null,"）","建築士",null,null,"（",{"$f":"IF(第二面!AC39<>\"\",第二面!AC39,\"\")","v":""},null,null,null,null,null,"）","登録",null,null,"第",{"$f":"IF(第二面!AM39<>\"\",第二面!AM39,\"\")","v":""},null,null,null,null,null,null,null,null,"号"]
[null,null,null,null,null,null,null,null,null,null,null,null,null,null,null,null,null,"防火設備検査員",null,null,null,null,null,null,null,null,null,null,null,null,null,null,null,null,null,"第",{"$f":"IF(第二面!AM40<>\"\",第二面!AM40,\"\")","v":""},null,null,null,null,null,null,null,null,"号"]
["　　　【ロ. 氏名のフリガナ】",null,null,null,null,null,null,null,null,null,null,null,null,null,null,null,null,{"$f":"IF(第二面!S41<>\"\",第二面!S41,\"\")","v":""}]
["　　　【ハ. 氏名】",null,null,null,null,null,null,null,null,null,null,null,null,null,null,null,null,{"$f":"IF(第二面!S42<>\"\",第二面!S42,\"\")","v":""}]
["　　　【ニ. 勤務先】",null,null,null,null,null,null,null,null,null,null,null,null,null,null,null,null,{"$f":"IF(第二面!S43<>\"\",第二面!S43,\"\")","v":""}]
[null,null,null,null,null,null,null,null,null,null,null,null,null,null,null,null,null,"（",{"$f":"IF(第二面!U44<>\"\",第二面!U44,\"\")","v":""},null,"）","建築士事務所",null,null,null,null,null,"（",{"$f":"IF(第二面!AE44<>\"\",第二面!AE44,\"\")","v":""},null,null,null,"）","知事登録",null,null,null,"第",{"$f":"IF(第二面!AO44<>\"\",第二面!AO44,\"\")","v":""},null,null,null,null,null,null,"号"]
["　　　【ホ. 郵便番号】",null,null,null,null,null,null,null,null,null,null,null,null,null,null,null,null,{"$f":"IF(第二面!S45<>\"\",第二面!S45,\"\")","v":""}]
["　　　【ヘ. 所在地】",null,null,null,null,null,null,null,null,null,null,null,null,null,null,null,null,{"$f":"IF(第二面!S46<>\"\",第二面!S46,\"\")","v":""}]
["　　　【ト. 電話番号】",null,null,null,null,null,null,null,null,null,null,null,null,null,null,null,null,{"$f":"IF(第二面!S47<>\"\",第二面!S47,\"\")","v":""}]
[]
[]
["　【５. 防火設備の概要】"]
["　　　【イ. 避難安全検証法等の適用】"]
[null,null,null,null,null,null,null,null,null,{"$f":"IF(第二面!G53<>\"\",第二面!G53,\"\")","v":""},"階避難安全検証法",null,null,null,null,null,null,null,null,"（",{"$f":"IF(第二面!S53<>\"\",第二面!S53,\"\")","v":""},null,null,null,"階","）",null,null,{"$f":"IF(第二面!Y53<>\"\",第二面!Y53,\"\")","v":""},"全館避難安全検証法"]
[]
[null,null,null,null,null,null,null,null,null,{"$f":"IF(第二面!G55<>\"\",第二面!G55,\"\")","v":""},"その他",null,null,"（",{"$f":"IF(第二面!L55<>\"\",第二面!L55,\"\")","v":""},null,null,null,null,null,null,null,null,null,null,null,null,null,null,null,null,null,"）"]
["　　　【ロ. 防火設備】"]
[null,null,null,null,null,null,null,null,null,{"$f":"IF(第二面!G58<>\"\",第二面!G58,\"\")","v":""},"防火扉",null,null,null,null,null,null,null,null,"（",{"$f":"IF(第二面!S58<>\"\",第二面!S58,\"\")","v":""},null,null,null,"枚","）",null,null,{"$f":"IF(第二面!Y58<>\"\",第二面!Y58,\"\")","v":""},"防火シャッター",null,null,null,null,null,"（",{"$f":"IF(第二面!AG58<>\"\",第二面!AG58,\"\")","v":""},null,null,null,"枚","）"]
[]
[null,null,null,null,null,null,null,null,null,{"$f":"IF(第二面!G60<>\"\",第二面!G60,\"\")","v":""},"耐火クロススクリーン",null,null,null,null,null,null,null,null,"（",{"$f":"IF(第二面!S60<>\"\",第二面!S60,\"\")","v":""},null,null,null,"枚","）",null,null,{"$f":"IF(第二面!Y60<>\"\",第二面!Y60,\"\")","v":""},"ドレンチャー",null,null,null,null,null,"（",{"$f":"IF(第二面!AG60<>\"\",第二面!AG60,\"\")","v":""},null,null,null,"台","）"]
[]
[null,null,null,null,null,null,null,null,null,{"$f":"IF(第二面!G62<>\"\",第二面!G62,\"\")","v":""},"その他",null,null,null,null,null,null,null,null,"（",{"$f":"IF(第二面!S62<>\"\",第二面!S62,\"\")","v":""},null,null,null,"台","）"]
[]
[]
["　【6. 備考】"]
[null,{"$f":"IF(第二面!B80<>\"\",第二面!B80,\"\")","v":""}]
[]
[]
[]
[]
[]
[]
[]
[null,null,null,null,null,null,null,null,null,null,null,null,null,null,null,null,null,null,null,null,null,null,null,null,null,null,null,"（","台帳番号：",null,null,null,null,{"$f":"IF(概要書第一面!AG46<>\"\",概要書第一面!AG46,\"\")","v":0},"-",{"$f":"IF(概要書第一面!AI46<>\"\",概要書第一面!AI46,\"\")","v":" "},null,"-",{"$f":"IF(概要書第一面!AL46<>\"\",概要書第一面!AL46,\"\")","v":" "},null,"-",{"$f":"IF(概要書第一面!AO46<>\"\",概要書第一面!AO46,\"\")","v":0},null,null,null,"）"]
[]
[]
[]
[]
["　(注意)"]
["　　この様式には、第三十六号の八様式に記入した内容と同一の内容を記入してください。第二面は、同様式第二面において"]
["　　指摘があった防火設備についてのみ作成し、第一面に添えてください。"]

{"sheet":"概要書第二面  (別紙) ","index":13,"n_rows":59,"n_cols":46,"rows_kept":59,"cut":false,"hidden":false,"merged":[[59,0,59,46],[60,0,60,46],[58,45,58,46],[58,0,58,26],[2,0,2,46],[13,0,13,46],[58,35,58,36],[58,38,58,39],[58,41,58,44],[53,0,53,15],[54,0,54,15],[55,0,55,15],[53,17,53,46],[54,17,54,46],[55,17,55,46],[56,0,56,46],[57,0,57,46],[51,0,51,15],[52,0,52,15],[52,18,52,19],[52,21,52,26],[52,28,52,31],[52,33,52,36],[52,38,52,44],[48,0,48,15],[48,36,48,44],[49,0,49,15],[50,0,50,15],[49,17,49,46],[48,17,48,34],[50,17,50,46],[51,17,51,46],[45,0,45,46],[47,0,47,15],[47,18,47,19],[47,25,47,30],[47,32,47,34],[47,36,47,44],[42,0,42,15],[43,0,43,15],[44,0,44,15],[42,17,42,46],[43,17,43,46],[44,17,44,46],[46,0,46,46],[40,0,40,15],[41,0,41,15],[41,18,41,19],[41,21,41,26],[41,28,41,31],[41,33,41,36],[41,38,41,44],[37,0,37,15],[37,36,37,44],[38,0,38,15],[39,0,39,15],[37,17,37,34],[38,17,38,46],[39,17,39,46],[40,17,40,46],[34,0,34,46],[36,0,36,15],[36,18,36,19],[36,25,36,30],[36,32,36,34],[36,36,36,44],[31,0,31,15],[32,0,32,15],[33,0,33,15],[31,17,31,46],[32,17,32,46],[33,17,33,46],[35,0,35,46],[29,0,29,15],[30,0,30,15],[30,18,30,19],[30,21,30,26],[30,28,30,31],[30,33,30,36],[30,38,30,44],[26,0,26,15],[26,36,26,44],[27,0,27,15],[28,0,28,15],[26,17,26,34],[27,17,27,46],[28,17,28,46],[29,17,29,46],[23,0,23,46],[25,0,25,15],[25,18,25,19],[25,25,25,30],[25,32,25,34],[25,36,25,44],[20,0,20,15],[21,0,21,15],[22,0,22,15],[20,17,20,46],[21,17,21,46],[22,17,22,46],[24,0,24,46],[18,0,18,15],[19,0,19,15],[19,18,19,19],[19,21,19,26],[19,28,19,31],[19,33,19,36],[19,38,19,44],[15,0,15,15],[15,36,15,44],[16,0,16,15],[17,0,17,15],[15,17,15,34],[16,17,16,46],[17,17,17,46],[18,17,18,46],[12,0,12,46],[14,0,14,15],[14,18,14,19],[14,25,14,30],[14,32,14,34],[14,36,14,44],[9,0,9,15],[10,0,10,15],[11,0,11,15],[9,17,9,46],[10,17,10,46],[11,17,11,46],[7,0,7,15],[8,0,8,15],[8,18,8,19],[8,21,8,26],[8,28,8,31],[8,33,8,36],[8,38,8,44],[4,0,4,15],[4,36,4,44],[5,0,5,15],[6,0,6,15],[4,17,4,34],[5,17,5,46],[6,17,6,46],[7,17,7,46],[0,0,0,46],[1,0,1,46],[3,0,3,15],[3,18,3,19],[3,25,3,30],[3,32,3,34],[3,36,3,44]]}
["（第二面の別紙）"]
[]
["　（その他の検査者）"]
["　　　【イ.　資格】",null,null,null,null,null,null,null,null,null,null,null,null,null,null,null,null,"（",{"$f":"'第二面  (別紙)'!AV4","v":""},null,"）","建築士",null,null,"（",{"$f":"'第二面  (別紙)'!AW4","v":""},null,null,null,null,null,"）","登録",null,null,"第",{"$f":"'第二面  (別紙)'!AK4:AS4","v":0},null,null,null,null,null,null,null,null,"号"]
[null,null,null,null,null,null,null,null,null,null,null,null,null,null,null,null,null,"防火設備検査員",null,null,null,null,null,null,null,null,null,null,null,null,null,null,null,null,null,"第",{"$f":"'第二面  (別紙)'!AK5:AS5","v":0},null,null,null,null,null,null,null,null,"号"]
["　　　【ロ.　氏名のフリガナ】",null,null,null,null,null,null,null,null,null,null,null,null,null,null,null,null,{"$f":"'第二面  (別紙)'!Q6","v":""}]
["　　　【ハ.　氏名】",null,null,null,null,null,null,null,null,null,null,null,null,null,null,null,null,{"$f":"'第二面  (別紙)'!Q7","v":0}]
["　　　【ニ.　勤務先】",null,null,null,null,null,null,null,null,null,null,null,null,null,null,null,null,{"$f":"'第二面  (別紙)'!Q8","v":0}]
[null,null,null,null,null,null,null,null,null,null,null,null,null,null,null,null,null,"（",{"$f":"'第二面  (別紙)'!AV9","v":""},null,"）","建築士事務所",null,null,null,null,null,"（",{"$f":"'第二面  (別紙)'!AW9","v":""},null,null,null,"）","知事登録",null,null,null,"第",{"$f":"'第二面  (別紙)'!AM9:AS9","v":0},null,null,null,null,null,null,"号"]
["　　　【ホ.　郵便番号】",null,null,null,null,null,null,null,null,null,null,null,null,null,null,null,null,{"$f":"'第二面  (別紙)'!Q10","v":0}]
["　　　【ヘ.　所在地】",null,null,null,null,null,null,null,null,null,null,null,null,null,null,null,null,{"$f":"'第二面  (別紙)'!Q11","v":0}]
["　　　【ト.　電話番号】",null,null,null,null,null,null,null,null,null,null,null,null,null,null,null,null,{"$f":"'第二面  (別紙)'!Q12","v":0}]
[]
["　（その他の検査者）"]
["　　　【イ.　資格】",null,null,null,null,null,null,null,null,null,null,null,null,null,null,null,null,"（",{"$f":"'第二面  (別紙)'!AV15","v":""},null,"）","建築士",null,null,"（",{"$f":"'第二面  (別紙)'!AW15","v":""},null,null,null,null,null,"）","登録",null,null,"第",{"$f":"'第二面  (別紙)'!AK15:AS15","v":0},null,null,null,null,null,null,null,null,"号"]
[null,null,null,null,null,null,null,null,null,null,null,null,null,null,null,null,null,"防火設備検査員",null,null,null,null,null,null,null,null,null,null,null,null,null,null,null,null,null,"第",{"$f":"'第二面  (別紙)'!AK16:AS16","v":0},null,null,null,null,null,null,null,null,"号"]
["　　　【ロ.　氏名のフリガナ】",null,null,null,null,null,null,null,null,null,null,null,null,null,null,null,null,{"$f":"'第二面  (別紙)'!Q17","v":""}]
["　　　【ハ.　氏名】",null,null,null,null,null,null,null,null,null,null,null,null,null,null,null,null,{"$f":"'第二面  (別紙)'!Q18","v":0}]
["　　　【ニ.　勤務先】",null,null,null,null,null,null,null,null,null,null,null,null,null,null,null,null,{"$f":"'第二面  (別紙)'!Q19","v":0}]
[null,null,null,null,null,null,null,null,null,null,null,null,null,null,null,null,null,"（",{"$f":"'第二面  (別紙)'!AV20","v":""},null,"）","建築士事務所",null,null,null,null,null,"（",{"$f":"'第二面  (別紙)'!AW20","v":""},null,null,null,"）","知事登録",null,null,null,"第",{"$f":"'第二面  (別紙)'!AM20:AS20","v":0},null,null,null,null,null,null,"号"]
["　　　【ホ.　郵便番号】",null,null,null,null,null,null,null,null,null,null,null,null,null,null,null,null,{"$f":"'第二面  (別紙)'!Q21","v":0}]
["　　　【ヘ.　所在地】",null,null,null,null,null,null,null,null,null,null,null,null,null,null,null,null,{"$f":"'第二面  (別紙)'!Q22","v":0}]
["　　　【ト.　電話番号】",null,null,null,null,null,null,null,null,null,null,null,null,null,null,null,null,{"$f":"'第二面  (別紙)'!Q23","v":0}]
[]
["　（その他の検査者）"]
["　　　【イ.　資格】",null,null,null,null,null,null,null,null,null,null,null,null,null,null,null,null,"（",{"$f":"'第二面  (別紙)'!AV26","v":""},null,"）","建築士",null,null,"（",{"$f":"'第二面  (別紙)'!AW26","v":""},null,null,null,null,null,"）","登録",null,null,"第",{"$f":"'第二面  (別紙)'!AK26:AS26","v":0},null,null,null,null,null,null,null,null,"号"]
[null,null,null,null,null,null,null,null,null,null,null,null,null,null,null,null,null,"防火設備検査員",null,null,null,null,null,null,null,null,null,null,null,null,null,null,null,null,null,"第",{"$f":"'第二面  (別紙)'!AK27:AS27","v":0},null,null,null,null,null,null,null,null,"号"]
["　　　【ロ.　氏名のフリガナ】",null,null,null,null,null,null,null,null,null,null,null,null,null,null,null,null,{"$f":"'第二面  (別紙)'!Q28","v":""}]
["　　　【ハ.　氏名】",null,null,null,null,null,null,null,null,null,null,null,null,null,null,null,null,{"$f":"'第二面  (別紙)'!Q29","v":0}]
["　　　【ニ.　勤務先】",null,null,null,null,null,null,null,null,null,null,null,null,null,null,null,null,{"$f":"'第二面  (別紙)'!Q30","v":0}]
[null,null,null,null,null,null,null,null,null,null,null,null,null,null,null,null,null,"（",{"$f":"'第二面  (別紙)'!AV31","v":""},null,"）","建築士事務所",null,null,null,null,null,"（",{"$f":"'第二面  (別紙)'!AW31","v":""},null,null,null,"）","知事登録",null,null,null,"第",{"$f":"'第二面  (別紙)'!AM31:AS31","v":0},null,null,null,null,null,null,"号"]
["　　　【ホ.　郵便番号】",null,null,null,null,null,null,null,null,null,null,null,null,null,null,null,null,{"$f":"'第二面  (別紙)'!Q32","v":0}]
["　　　【ヘ.　所在地】",null,null,null,null,null,null,null,null,null,null,null,null,null,null,null,null,{"$f":"'第二面  (別紙)'!Q33","v":0}]
["　　　【ト.　電話番号】",null,null,null,null,null,null,null,null,null,null,null,null,null,null,null,null,{"$f":"'第二面  (別紙)'!Q34","v":0}]
[]
["　（その他の検査者）"]
["　　　【イ.　資格】",null,null,null,null,null,null,null,null,null,null,null,null,null,null,null,null,"（",{"$f":"'第二面  (別紙)'!AV37","v":""},null,"）","建築士",null,null,"（",{"$f":"'第二面  (別紙)'!AW37","v":""},null,null,null,null,null,"）","登録",null,null,"第",{"$f":"'第二面  (別紙)'!AK37:AS37","v":0},null,null,null,null,null,null,null,null,"号"]
[null,null,null,null,null,null,null,null,null,null,null,null,null,null,null,null,null,"防火設備検査員",null,null,null,null,null,null,null,null,null,null,null,null,null,null,null,null,null,"第",{"$f":"'第二面  (別紙)'!AK38:AS38","v":0},null,null,null,null,null,null,null,null,"号"]
["　　　【ロ.　氏名のフリガナ】",null,null,null,null,null,null,null,null,null,null,null,null,null,null,null,null,{"$f":"'第二面  (別紙)'!Q39","v":""}]
["　　　【ハ.　氏名】",null,null,null,null,null,null,null,null,null,null,null,null,null,null,null,null,{"$f":"'第二面  (別紙)'!Q40","v":0}]
["　　　【ニ.　勤務先】",null,null,null,null,null,null,null,null,null,null,null,null,null,null,null,null,{"$f":"'第二面  (別紙)'!Q41","v":0}]
[null,null,null,null,null,null,null,null,null,null,null,null,null,null,null,null,null,"（",{"$f":"'第二面  (別紙)'!AV42","v":""},null,"）","建築士事務所",null,null,null,null,null,"（",{"$f":"'第二面  (別紙)'!AW42","v":""},null,null,null,"）","知事登録",null,null,null,"第",{"$f":"'第二面  (別紙)'!AM42:AS42","v":0},null,null,null,null,null,null,"号"]
["　　　【ホ.　郵便番号】",null,null,null,null,null,null,null,null,null,null,null,null,null,null,null,null,{"$f":"'第二面  (別紙)'!Q43","v":0}]
["　　　【ヘ.　所在地】",null,null,null,null,null,null,null,null,null,null,null,null,null,null,null,null,{"$f":"'第二面  (別紙)'!Q44","v":0}]
["　　　【ト.　電話番号】",null,null,null,null,null,null,null,null,null,null,null,null,null,null,null,null,{"$f":"'第二面  (別紙)'!Q45","v":0}]
[]
["　（その他の検査者）"]
["　　　【イ.　資格】",null,null,null,null,null,null,null,null,null,null,null,null,null,null,null,null,"（",{"$f":"'第二面  (別紙)'!AV48","v":""},null,"）","建築士",null,null,"（",{"$f":"'第二面  (別紙)'!AW48","v":""},null,null,null,null,null,"）","登録",null,null,"第",{"$f":"'第二面  (別紙)'!AK48:AS48","v":0},null,null,null,null,null,null,null,null,"号"]
[null,null,null,null,null,null,null,null,null,null,null,null,null,null,null,null,null,"防火設備検査員",null,null,null,null,null,null,null,null,null,null,null,null,null,null,null,null,null,"第",{"$f":"'第二面  (別紙)'!AK49:AS49","v":0},null,null,null,null,null,null,null,null,"号"]
["　　　【ロ.　氏名のフリガナ】",null,null,null,null,null,null,null,null,null,null,null,null,null,null,null,null,{"$f":"'第二面  (別紙)'!Q50","v":""}]
["　　　【ハ.　氏名】",null,null,null,null,null,null,null,null,null,null,null,null,null,null,null,null,{"$f":"'第二面  (別紙)'!Q51","v":0}]
["　　　【ニ.　勤務先】",null,null,null,null,null,null,null,null,null,null,null,null,null,null,null,null,{"$f":"'第二面  (別紙)'!Q52","v":0}]
[null,null,null,null,null,null,null,null,null,null,null,null,null,null,null,null,null,"（",{"$f":"'第二面  (別紙)'!AV53","v":""},null,"）","建築士事務所",null,null,null,null,null,"（",{"$f":"'第二面  (別紙)'!AW53","v":""},null,null,null,"）","知事登録",null,null,null,"第",{"$f":"'第二面  (別紙)'!AM53:AS53","v":0},null,null,null,null,null,null,"号"]
["　　　【ホ.　郵便番号】",null,null,null,null,null,null,null,null,null,null,null,null,null,null,null,null,{"$f":"'第二面  (別紙)'!Q54","v":0}]
["　　　【ヘ.　所在地】",null,null,null,null,null,null,null,null,null,null,null,null,null,null,null,null,{"$f":"'第二面  (別紙)'!Q55","v":0}]
["　　　【ト.　電話番号】",null,null,null,null,null,null,null,null,null,null,null,null,null,null,null,null,{"$f":"'第二面  (別紙)'!Q56","v":0}]
[]
[]
[null,null,null,null,null,null,null,null,null,null,null,null,null,null,null,null,null,null,null,null,null,null,null,null,null,null,null,"（","台帳番号：",null,null,null,null,{"$f":"IF(概要書第一面!AG46<>\"\",概要書第一面!AG46,\"\")","v":0},"-",{"$f":"IF(概要書第一面!AI46<>\"\",概要書第一面!AI46,\"\")","v":" "},null,"-",{"$f":"IF(概要書第一面!AL46<>\"\",概要書第一面!AL46,\"\")","v":" "},null,"-",{"$f":"IF(概要書第一面!AO46<>\"\",概要書第一面!AO46,\"\")","v":0},null,null,null,"）"]

{"sheet":"市区町村","index":14,"n_rows":73,"n_cols":8,"rows_kept":73,"cut":false,"hidden":true,"merged":[]}
["リスト選択","　","　"," "," "]
["上尾市","上尾市長","　","08","19",null,"（第二面）【4.】建築士"]
["朝霞市","川越建築安全センター所長","　","01","27",null,"国土交通大臣"]
["入間郡越生町","川越建築安全センター所長","　","01","46",null,"埼玉県知事"]
["入間郡三芳町","川越建築安全センター所長","　","01","44",null,"東京都知事"]
["入間郡毛呂山町","川越建築安全センター所長","　","01","45",null,"千葉県知事"]
["入間市","川越建築安全センター所長","　","01","25",null,null,"←追加入力可"]
["大里郡寄居町","熊谷建築安全センター所長","　","01","78",null,null,"←追加入力可"]
["桶川市","越谷建築安全センター所長","　","01","31"]
["春日部市","春日部市長","　","10","14",null,"（第二面）【2.】指定確認検査機関"]
["加須市","熊谷建築安全センター所長","　","01","10",null,"(財)さいたま住宅検査ｾﾝﾀｰ"]
["川口市","川口市長","　","02","03",null,"(一財)さいたま住宅検査ｾﾝﾀｰ"]
["川越市","川越市長","　","05","01",null,"(財)日本建築ｾﾝﾀｰ"]
["北足立郡伊奈町","越谷建築安全センター所長","　","01","41",null,"(一財)日本建築ｾﾝﾀｰ"]
["北葛飾郡杉戸町","越谷建築安全センター所長","　","01","89",null,"(財)日本建築設備･昇降機ｾﾝﾀｰ"]
["北葛飾郡松伏町","越谷建築安全センター所長","　","01","90",null,"(一財)日本建築設備･昇降機ｾﾝﾀｰ"]
["北本市","越谷建築安全センター所長","　","01","33",null,"日本E.R.I(株)"]
["行田市","熊谷建築安全センター所長","　","01","06",null,"(財)住宅金融普及協会"]
["久喜市","久喜市長","　","14","32",null,"(一財)住宅金融普及協会"]
["熊谷市","熊谷市長","　","13","02",null,"(株)東日本住宅評価センター"]
["鴻巣市","越谷建築安全センター所長","　","01","17",null,"(株)東京建築検査機構"]
["越谷市","越谷市長","　","07","22",null,"ﾊｳｽﾌﾟﾗｽ確認検査(株)"]
["児玉郡神川町","熊谷建築安全センター所長","　","01","69",null,"(株)住宅性能評価ｾﾝﾀｰ"]
["児玉郡上里町","熊谷建築安全センター所長","　","01","71",null,"ﾋﾞｭｰﾛｰﾍﾞﾘﾀｽｼﾞｬﾊﾟﾝ(株)"]
["児玉郡美里町","熊谷建築安全センター所長","　","01","67",null,"(株)都市居住評価ｾﾝﾀｰ"]
["さいたま市岩槻区","さいたま市長","　","03","13",null,"(財)ﾍﾞﾀｰﾘﾋﾞﾝｸﾞ"]
["さいたま市浦和区","さいたま市長","　","03","04",null,"(一財)ﾍﾞﾀｰﾘﾋﾞﾝｸﾞ"]
["さいたま市大宮区","さいたま市長","　","03","05",null,"(株)ﾋﾞﾙﾃﾞｨﾝｸﾞﾅﾋﾞｹﾞｰｼｮﾝ確認評価機構"]
["さいたま市北区","さいたま市長","　","03","05",null,"富士建築ｾﾝﾀｰ(株)"]
["さいたま市桜区","さいたま市長","　","03","04",null,"ﾕｰﾃﾞｨｰｱｲ確認検査(株)"]
["さいたま市中央区","さいたま市長","　","03","20",null,"ｲｰﾊｳｽ建築ｾﾝﾀｰ(株)"]
["さいたま市西区","さいたま市長","　","03","05",null,"(社)日本住宅性能評価機構"]
["さいたま市緑区","さいたま市長","　","03","04",null,"(一社)日本住宅性能評価機構"]
["さいたま市南区","さいたま市長","　","03","04",null,"(株)ｶﾞｲｱ"]
["さいたま市見沼区","さいたま市長","　","03","05",null,"(株)ｸﾞｯﾄﾞ･ｱｲｽﾞ建築検査機構"]
["坂戸市","川越建築安全センター所長","　","01","39",null,"(株)ｼﾞｪｲ･ｲｰ･ｻﾎﾟｰﾄ"]
["幸手市","越谷建築安全センター所長","　","01","40",null,"日本建築検査協会(株)"]
["狭山市","狭山市長","　","11","15",null,"(株)国際確認検査ｾﾝﾀｰ"]
["志木市","川越建築安全センター所長","　","01","28",null,"日本確認ｾﾝﾀｰ(株)"]
["白岡市","越谷建築安全センター所長","　","01","85",null,"(株)J建築検査ｾﾝﾀｰ"]
["草加市","草加市長","　","09","21",null,"多摩確認検査(株)"]
["秩父郡小鹿野町","熊谷建築安全センター所長","(秩父駐在)","01","62",null,"ｱｳｪｲ建築評価ﾈｯﾄ(株)"]
["秩父郡長瀞町","熊谷建築安全センター所長","(秩父駐在)","01","60",null,"(株)EMI確認検査機構"]
["秩父郡東秩父村","川越建築安全センター所長","　","01","66",null,"(株)確認ｻｰﾋﾞｽ"]
["秩父郡皆野町","熊谷建築安全センター所長","(秩父駐在)","01","59",null,"SBIｱｰｷｸｵﾘﾃｨ(株)"]
["秩父郡横瀬町","熊谷建築安全センター所長","(秩父駐在)","01","58",null,"SGSｼﾞｬﾊﾟﾝ(株)"]
["秩父市","熊谷建築安全センター所長","(秩父駐在)","01","07",null,"日本建物評価機構(株)"]
["鶴ヶ島市","川越建築安全センター所長","　","01","47",null,"(株)神奈川建築確認検査機関"]
["所沢市","所沢市長","　","06","08",null,"(株)北関東建築検査機構"]
["戸田市","越谷建築安全センター所長","　","01","24",null,"(株)高良GUT"]
["新座市","新座市長","　","12","30",null,"(株)都市建築確認ｾﾝﾀｰ"]
["蓮田市","越谷建築安全センター所長","　","01","38",null,"(株)埼玉建築確認検査機構"]
["羽生市","熊谷建築安全センター所長","　","01","16",null,"(財)住宅保証機構"]
["飯能市","川越建築安全センター所長","　","01","09",null,"(一財)住宅保証機構"]
["東松山市","川越建築安全センター所長","　","01","12",null,"(株)日本住宅保証検査機構"]
["比企郡小川町","川越建築安全センター所長","　","01","52",null,"ｲｰﾎｰﾑｽﾞ(株)"]
["比企郡川島町","川越建築安全センター所長","　","01","55",null,null,"←追加入力可"]
["比企郡ときがわ町","川越建築安全センター所長","　","01","53",null,null,"←追加入力可"]
["比企郡滑川町","川越建築安全センター所長","　","01","50",null,null,"←追加入力可"]
["比企郡鳩山町","川越建築安全センター所長","　","01","57",null,null,"←追加入力可"]
["比企郡吉見町","川越建築安全センター所長","　","01","56",null,null,"←追加入力可"]
["比企郡嵐山町","川越建築安全センター所長","　","01","51",null,null,"←追加入力可"]
["日高市","川越建築安全センター所長","　","01","48"]
["深谷市","熊谷建築安全センター所長","　","01","18"]
["富士見市","川越建築安全センター所長","　","01","35"]
["ふじみ野市","川越建築安全センター所長","　","01","36"]
["本庄市","熊谷建築安全センター所長","　","01","11"]
["三郷市","越谷建築安全センター所長","　","01","37"]
["南埼玉郡宮代町","越谷建築安全センター所長","　","01","84"]
["八潮市","越谷建築安全センター所長","　","01","34"]
["吉川市","越谷建築安全センター所長","　","01","91"]
["和光市","川越建築安全センター所長","　","01","29"]
["蕨市","越谷建築安全センター所長","　","01","23"]

{"sheet":"建築士登録・都道府県","index":15,"n_rows":58,"n_cols":8,"rows_kept":58,"cut":false,"hidden":true,"merged":[]}
[null,"建築士登録",null,"都道府県"]
[]
[null,"国土交通大臣",null,"埼玉県"]
[null,null,null,"東京都"]
[null,"埼玉県知事",null,"神奈川県"]
[null,"東京都知事",null,"千葉県"]
[null,"神奈川県知事",null,"茨城県"]
[null,"千葉県知事",null,"栃木県"]
[null,"茨城県知事",null,"群馬県"]
[null,"栃木県知事"]
[null,"群馬県知事",null,"北海道"]
[null,null,null,"青森県"]
[null,"北海道知事",null,"岩手県"]
[null,"青森県知事",null,"宮城県"]
[null,"岩手県知事",null,"秋田県"]
[null,"宮城県知事",null,"山形県"]
[null,"秋田県知事",null,"福島県"]
[null,"山形県知事"]
[null,"福島県知事",null,"新潟県"]
[null,null,null,"富山県"]
[null,"新潟県知事",null,"石川県"]
[null,"富山県知事",null,"福井県"]
[null,"石川県知事"]
[null,"福井県知事",null,"山梨県"]
[null,null,null,"長野県"]
[null,"山梨県知事",null,"岐阜県"]
[null,"長野県知事",null,"静岡県"]
[null,"岐阜県知事",null,"愛知県"]
[null,"静岡県知事",null,"三重県"]
[null,"愛知県知事"]
[null,"三重県知事",null,"滋賀県"]
[null,null,null,"京都府"]
[null,"滋賀県知事",null,"大阪府"]
[null,"京都府知事",null,"兵庫県"]
[null,"大阪府知事",null,"奈良県"]
[null,"兵庫県知事",null,"和歌山県"]
[null,"奈良県知事"]
[null,"和歌山県知事",null,"鳥取県"]
[null,null,null,"島根県"]
[null,"鳥取県知事",null,"岡山県"]
[null,"島根県知事",null,"広島県"]
[null,"岡山県知事",null,"山口県"]
[null,"広島県知事",null,null,null,null,null,"        "]
[null,"山口県知事",null,"徳島県"]
[null,null,null,"香川県"]
[null,"徳島県知事",null,"愛媛県"]
[null,"香川県知事",null,"高知県"]
[null,"愛媛県知事"]
[null,"高知県知事                      ",null,"福岡県"]
[null,null,null,"佐賀県"]
[null,"福岡県知事",null,"長崎県"]
[null,"佐賀県知事",null,"熊本県"]
[null,"長崎県知事",null,"大分県"]
[null,"熊本県知事",null,"宮崎県"]
[null,"大分県知事",null,"鹿児島県"]
[null,"宮崎県知事",null,"沖縄県"]
[null,"鹿児島県知事"]
[null,"沖縄県知事"]